Organisation Name,Organisation Code,Unique Ref No,Effective Date,Directorate where expenditure incurred,Supplier Name,Payment Date,Net Amount,Purpose of Spend,Procurement Classification (Higher Level),Procurement Classification (Lower Level),Capital/Revenue
Walsall Council,http://opendatacommunities.org/id/metropolitan-district-council/walsall,WC115-01,30/04/2020,Childrens,247 CARS (WILLENHALL) LIMITED,24/04/2020,950.10,52000-WITH DRIVER-HIRE OF VEHICLES,HOME TO SCHOOL TRANSPORT,Transport,Revenue
Walsall Council,http://opendatacommunities.org/id/metropolitan-district-council/walsall,WC115-02,30/04/2020,Childrens,247 CARS (WILLENHALL) LIMITED,24/04/2020,"1,023.10",52000-WITH DRIVER-HIRE OF VEHICLES,HOME TO SCHOOL TRANSPORT,Transport,Revenue
Walsall Council,http://opendatacommunities.org/id/metropolitan-district-council/walsall,WC115-03,30/04/2020,Adult Social Care,5 CARE SERVICES LTD,23/04/2020,254.84,73507-DOMICILIARY CARE,SENSORY SUPPORT,Third Party Payments,Revenue
Walsall Council,http://opendatacommunities.org/id/metropolitan-district-council/walsall,WC115-04,30/04/2020,Adult Social Care,5 CARE SERVICES LTD,23/04/2020,274.49,73507-DOMICILIARY CARE,PHYSICAL SUPPORT,Third Party Payments,Revenue
Walsall Council,http://opendatacommunities.org/id/metropolitan-district-council/walsall,WC115-05,30/04/2020,Adult Social Care,5 CARE SERVICES LTD,23/04/2020,300.22,73507-DOMICILIARY CARE,SOCIAL SUPPORT,Third Party Payments,Revenue
Walsall Council,http://opendatacommunities.org/id/metropolitan-district-council/walsall,WC115-06,30/04/2020,Adult Social Care,5 CARE SERVICES LTD,23/04/2020,315.75,73507-DOMICILIARY CARE,LEARNING DISABILITY SUPPORT,Third Party Payments,Revenue
Walsall Council,http://opendatacommunities.org/id/metropolitan-district-council/walsall,WC115-07,30/04/2020,Adult Social Care,5 CARE SERVICES LTD,23/04/2020,330.64,73507-DOMICILIARY CARE,PHYSICAL SUPPORT,Third Party Payments,Revenue
Walsall Council,http://opendatacommunities.org/id/metropolitan-district-council/walsall,WC115-08,30/04/2020,Adult Social Care,5 CARE SERVICES LTD,23/04/2020,330.75,73507-DOMICILIARY CARE,MENTAL HEALTH SUPPORT,Third Party Payments,Revenue
Walsall Council,http://opendatacommunities.org/id/metropolitan-district-council/walsall,WC115-09,30/04/2020,Adult Social Care,5 CARE SERVICES LTD,07/04/2020,343.92,73507-DOMICILIARY CARE,PHYSICAL SUPPORT,Third Party Payments,Revenue
Walsall Council,http://opendatacommunities.org/id/metropolitan-district-council/walsall,WC115-10,30/04/2020,Adult Social Care,5 CARE SERVICES LTD,07/04/2020,343.92,73507-DOMICILIARY CARE,PHYSICAL SUPPORT,Third Party Payments,Revenue
Walsall Council,http://opendatacommunities.org/id/metropolitan-district-council/walsall,WC115-11,30/04/2020,Adult Social Care,5 CARE SERVICES LTD,23/04/2020,346.22,73507-DOMICILIARY CARE,PHYSICAL SUPPORT,Third Party Payments,Revenue
Walsall Council,http://opendatacommunities.org/id/metropolitan-district-council/walsall,WC115-12,30/04/2020,Adult Social Care,5 CARE SERVICES LTD,23/04/2020,355.84,73507-DOMICILIARY CARE,PHYSICAL SUPPORT,Third Party Payments,Revenue
Walsall Council,http://opendatacommunities.org/id/metropolitan-district-council/walsall,WC115-13,30/04/2020,Adult Social Care,5 CARE SERVICES LTD,23/04/2020,356.14,73507-DOMICILIARY CARE,PHYSICAL SUPPORT,Third Party Payments,Revenue
Walsall Council,http://opendatacommunities.org/id/metropolitan-district-council/walsall,WC115-14,30/04/2020,Adult Social Care,5 CARE SERVICES LTD,14/04/2020,365.67,73025-PROFESSIONAL SERVICES-PRIV CONTRACTOR & OTHER AGENCIES,INTERMEDIATE CARE SERVICE,Third Party Payments,Revenue
Walsall Council,http://opendatacommunities.org/id/metropolitan-district-council/walsall,WC115-15,30/04/2020,Adult Social Care,5 CARE SERVICES LTD,23/04/2020,379.39,73507-DOMICILIARY CARE,PHYSICAL SUPPORT,Third Party Payments,Revenue
Walsall Council,http://opendatacommunities.org/id/metropolitan-district-council/walsall,WC115-16,30/04/2020,Adult Social Care,5 CARE SERVICES LTD,23/04/2020,381.26,73507-DOMICILIARY CARE,SENSORY SUPPORT,Third Party Payments,Revenue
Walsall Council,http://opendatacommunities.org/id/metropolitan-district-council/walsall,WC115-17,30/04/2020,Adult Social Care,5 CARE SERVICES LTD,14/04/2020,384.72,73025-PROFESSIONAL SERVICES-PRIV CONTRACTOR & OTHER AGENCIES,INTERMEDIATE CARE SERVICE,Third Party Payments,Revenue
Walsall Council,http://opendatacommunities.org/id/metropolitan-district-council/walsall,WC115-18,30/04/2020,Adult Social Care,5 CARE SERVICES LTD,23/04/2020,386.96,73507-DOMICILIARY CARE,LEARNING DISABILITY SUPPORT,Third Party Payments,Revenue
Walsall Council,http://opendatacommunities.org/id/metropolitan-district-council/walsall,WC115-19,30/04/2020,Adult Social Care,5 CARE SERVICES LTD,23/04/2020,390.37,73507-DOMICILIARY CARE,PHYSICAL SUPPORT,Third Party Payments,Revenue
Walsall Council,http://opendatacommunities.org/id/metropolitan-district-council/walsall,WC115-20,30/04/2020,Adult Social Care,5 CARE SERVICES LTD,23/04/2020,442.38,73507-DOMICILIARY CARE,PHYSICAL SUPPORT,Third Party Payments,Revenue
Walsall Council,http://opendatacommunities.org/id/metropolitan-district-council/walsall,WC115-21,30/04/2020,Adult Social Care,5 CARE SERVICES LTD,23/04/2020,450.37,73507-DOMICILIARY CARE,PHYSICAL SUPPORT,Third Party Payments,Revenue
Walsall Council,http://opendatacommunities.org/id/metropolitan-district-council/walsall,WC115-22,30/04/2020,Adult Social Care,5 CARE SERVICES LTD,23/04/2020,493.13,73507-DOMICILIARY CARE,SENSORY SUPPORT,Third Party Payments,Revenue
Walsall Council,http://opendatacommunities.org/id/metropolitan-district-council/walsall,WC115-23,30/04/2020,Adult Social Care,5 CARE SERVICES LTD,23/04/2020,535.09,73507-DOMICILIARY CARE,PHYSICAL SUPPORT,Third Party Payments,Revenue
Walsall Council,http://opendatacommunities.org/id/metropolitan-district-council/walsall,WC115-24,30/04/2020,Adult Social Care,5 CARE SERVICES LTD,30/04/2020,539.84,73025-PROFESSIONAL SERVICES-PRIV CONTRACTOR & OTHER AGENCIES,INTERMEDIATE CARE SERVICE,Third Party Payments,Revenue
Walsall Council,http://opendatacommunities.org/id/metropolitan-district-council/walsall,WC115-25,30/04/2020,Adult Social Care,5 CARE SERVICES LTD,23/04/2020,545.51,73507-DOMICILIARY CARE,PHYSICAL SUPPORT,Third Party Payments,Revenue
Walsall Council,http://opendatacommunities.org/id/metropolitan-district-council/walsall,WC115-26,30/04/2020,Adult Social Care,5 CARE SERVICES LTD,21/04/2020,563.14,73025-PROFESSIONAL SERVICES-PRIV CONTRACTOR & OTHER AGENCIES,INTERMEDIATE CARE SERVICE,Third Party Payments,Revenue
Walsall Council,http://opendatacommunities.org/id/metropolitan-district-council/walsall,WC115-27,30/04/2020,Adult Social Care,5 CARE SERVICES LTD,23/04/2020,602.90,73507-DOMICILIARY CARE,PHYSICAL SUPPORT,Third Party Payments,Revenue
Walsall Council,http://opendatacommunities.org/id/metropolitan-district-council/walsall,WC115-28,30/04/2020,Adult Social Care,5 CARE SERVICES LTD,23/04/2020,610.23,73507-DOMICILIARY CARE,PHYSICAL SUPPORT,Third Party Payments,Revenue
Walsall Council,http://opendatacommunities.org/id/metropolitan-district-council/walsall,WC115-29,30/04/2020,Adult Social Care,5 CARE SERVICES LTD,23/04/2020,628.15,73507-DOMICILIARY CARE,PHYSICAL SUPPORT,Third Party Payments,Revenue
Walsall Council,http://opendatacommunities.org/id/metropolitan-district-council/walsall,WC115-30,30/04/2020,Adult Social Care,5 CARE SERVICES LTD,23/04/2020,679.66,73507-DOMICILIARY CARE,PHYSICAL SUPPORT,Third Party Payments,Revenue
Walsall Council,http://opendatacommunities.org/id/metropolitan-district-council/walsall,WC115-31,30/04/2020,Adult Social Care,5 CARE SERVICES LTD,07/04/2020,687.84,73507-DOMICILIARY CARE,PHYSICAL SUPPORT,Third Party Payments,Revenue
Walsall Council,http://opendatacommunities.org/id/metropolitan-district-council/walsall,WC115-32,30/04/2020,Adult Social Care,5 CARE SERVICES LTD,23/04/2020,745.09,73507-DOMICILIARY CARE,SENSORY SUPPORT,Third Party Payments,Revenue
Walsall Council,http://opendatacommunities.org/id/metropolitan-district-council/walsall,WC115-33,30/04/2020,Adult Social Care,5 CARE SERVICES LTD,23/04/2020,769.59,73507-DOMICILIARY CARE,PHYSICAL SUPPORT,Third Party Payments,Revenue
Walsall Council,http://opendatacommunities.org/id/metropolitan-district-council/walsall,WC115-34,30/04/2020,Adult Social Care,5 CARE SERVICES LTD,23/04/2020,801.77,73507-DOMICILIARY CARE,PHYSICAL SUPPORT,Third Party Payments,Revenue
Walsall Council,http://opendatacommunities.org/id/metropolitan-district-council/walsall,WC115-35,30/04/2020,Adult Social Care,5 CARE SERVICES LTD,23/04/2020,817.98,73507-DOMICILIARY CARE,PHYSICAL SUPPORT,Third Party Payments,Revenue
Walsall Council,http://opendatacommunities.org/id/metropolitan-district-council/walsall,WC115-36,30/04/2020,Adult Social Care,5 CARE SERVICES LTD,23/04/2020,839.54,73507-DOMICILIARY CARE,LEARNING DISABILITY SUPPORT,Third Party Payments,Revenue
Walsall Council,http://opendatacommunities.org/id/metropolitan-district-council/walsall,WC115-37,30/04/2020,Adult Social Care,5 CARE SERVICES LTD,23/04/2020,874.79,73507-DOMICILIARY CARE,PHYSICAL SUPPORT,Third Party Payments,Revenue
Walsall Council,http://opendatacommunities.org/id/metropolitan-district-council/walsall,WC115-38,30/04/2020,Adult Social Care,5 CARE SERVICES LTD,23/04/2020,893.56,73507-DOMICILIARY CARE,SENSORY SUPPORT,Third Party Payments,Revenue
Walsall Council,http://opendatacommunities.org/id/metropolitan-district-council/walsall,WC115-39,30/04/2020,Adult Social Care,5 CARE SERVICES LTD,23/04/2020,894.84,73507-DOMICILIARY CARE,PHYSICAL SUPPORT,Third Party Payments,Revenue
Walsall Council,http://opendatacommunities.org/id/metropolitan-district-council/walsall,WC115-40,30/04/2020,Adult Social Care,5 CARE SERVICES LTD,23/04/2020,899.44,73507-DOMICILIARY CARE,PHYSICAL SUPPORT,Third Party Payments,Revenue
Walsall Council,http://opendatacommunities.org/id/metropolitan-district-council/walsall,WC115-41,30/04/2020,Adult Social Care,5 CARE SERVICES LTD,23/04/2020,915.00,73507-DOMICILIARY CARE,PHYSICAL SUPPORT,Third Party Payments,Revenue
Walsall Council,http://opendatacommunities.org/id/metropolitan-district-council/walsall,WC115-42,30/04/2020,Adult Social Care,5 CARE SERVICES LTD,23/04/2020,918.79,73507-DOMICILIARY CARE,PHYSICAL SUPPORT,Third Party Payments,Revenue
Walsall Council,http://opendatacommunities.org/id/metropolitan-district-council/walsall,WC115-43,30/04/2020,Adult Social Care,5 CARE SERVICES LTD,27/04/2020,927.68,73025-PROFESSIONAL SERVICES-PRIV CONTRACTOR & OTHER AGENCIES,INTERMEDIATE CARE SERVICE,Third Party Payments,Revenue
Walsall Council,http://opendatacommunities.org/id/metropolitan-district-council/walsall,WC115-44,30/04/2020,Adult Social Care,5 CARE SERVICES LTD,30/04/2020,971.60,73025-PROFESSIONAL SERVICES-PRIV CONTRACTOR & OTHER AGENCIES,INTERMEDIATE CARE SERVICE,Third Party Payments,Revenue
Walsall Council,http://opendatacommunities.org/id/metropolitan-district-council/walsall,WC115-45,30/04/2020,Adult Social Care,5 CARE SERVICES LTD,27/04/2020,"1,031.76",73507-DOMICILIARY CARE,PHYSICAL SUPPORT,Third Party Payments,Revenue
Walsall Council,http://opendatacommunities.org/id/metropolitan-district-council/walsall,WC115-46,30/04/2020,Adult Social Care,5 CARE SERVICES LTD,23/04/2020,"1,053.00",73507-DOMICILIARY CARE,MENTAL HEALTH SUPPORT,Third Party Payments,Revenue
Walsall Council,http://opendatacommunities.org/id/metropolitan-district-council/walsall,WC115-47,30/04/2020,Adult Social Care,5 CARE SERVICES LTD,23/04/2020,"1,092.20",73507-DOMICILIARY CARE,PHYSICAL SUPPORT,Third Party Payments,Revenue
Walsall Council,http://opendatacommunities.org/id/metropolitan-district-council/walsall,WC115-48,30/04/2020,Adult Social Care,5 CARE SERVICES LTD,23/04/2020,"1,109.89",73507-DOMICILIARY CARE,LEARNING DISABILITY SUPPORT,Third Party Payments,Revenue
Walsall Council,http://opendatacommunities.org/id/metropolitan-district-council/walsall,WC115-49,30/04/2020,Adult Social Care,5 CARE SERVICES LTD,23/04/2020,"1,117.02",73507-DOMICILIARY CARE,LEARNING DISABILITY SUPPORT,Third Party Payments,Revenue
Walsall Council,http://opendatacommunities.org/id/metropolitan-district-council/walsall,WC115-50,30/04/2020,Adult Social Care,5 CARE SERVICES LTD,23/04/2020,"1,166.32",73507-DOMICILIARY CARE,PHYSICAL SUPPORT,Third Party Payments,Revenue
Walsall Council,http://opendatacommunities.org/id/metropolitan-district-council/walsall,WC115-51,30/04/2020,Adult Social Care,5 CARE SERVICES LTD,08/04/2020,"1,225.35",73025-PROFESSIONAL SERVICES-PRIV CONTRACTOR & OTHER AGENCIES,INTERMEDIATE CARE SERVICE,Third Party Payments,Revenue
Walsall Council,http://opendatacommunities.org/id/metropolitan-district-council/walsall,WC115-52,30/04/2020,Adult Social Care,5 CARE SERVICES LTD,23/04/2020,"1,245.19",73507-DOMICILIARY CARE,PHYSICAL SUPPORT,Third Party Payments,Revenue
Walsall Council,http://opendatacommunities.org/id/metropolitan-district-council/walsall,WC115-53,30/04/2020,Adult Social Care,5 CARE SERVICES LTD,23/04/2020,"1,248.92",73507-DOMICILIARY CARE,PHYSICAL SUPPORT,Third Party Payments,Revenue
Walsall Council,http://opendatacommunities.org/id/metropolitan-district-council/walsall,WC115-54,30/04/2020,Adult Social Care,5 CARE SERVICES LTD,23/04/2020,"1,295.15",73507-DOMICILIARY CARE,PHYSICAL SUPPORT,Third Party Payments,Revenue
Walsall Council,http://opendatacommunities.org/id/metropolitan-district-council/walsall,WC115-55,30/04/2020,Adult Social Care,5 CARE SERVICES LTD,23/04/2020,"1,394.61",73507-DOMICILIARY CARE,PHYSICAL SUPPORT,Third Party Payments,Revenue
Walsall Council,http://opendatacommunities.org/id/metropolitan-district-council/walsall,WC115-56,30/04/2020,Adult Social Care,5 CARE SERVICES LTD,23/04/2020,"1,429.39",73507-DOMICILIARY CARE,PHYSICAL SUPPORT,Third Party Payments,Revenue
Walsall Council,http://opendatacommunities.org/id/metropolitan-district-council/walsall,WC115-57,30/04/2020,Adult Social Care,5 CARE SERVICES LTD,21/04/2020,"1,454.16",73507-DOMICILIARY CARE,PHYSICAL SUPPORT,Third Party Payments,Revenue
Walsall Council,http://opendatacommunities.org/id/metropolitan-district-council/walsall,WC115-58,30/04/2020,Adult Social Care,5 CARE SERVICES LTD,23/04/2020,"1,500.81",73507-DOMICILIARY CARE,PHYSICAL SUPPORT,Third Party Payments,Revenue
Walsall Council,http://opendatacommunities.org/id/metropolitan-district-council/walsall,WC115-59,30/04/2020,Adult Social Care,5 CARE SERVICES LTD,23/04/2020,"1,529.52",73507-DOMICILIARY CARE,PHYSICAL SUPPORT,Third Party Payments,Revenue
Walsall Council,http://opendatacommunities.org/id/metropolitan-district-council/walsall,WC115-60,30/04/2020,Adult Social Care,5 CARE SERVICES LTD,23/04/2020,"1,547.64",73507-DOMICILIARY CARE,PHYSICAL SUPPORT,Third Party Payments,Revenue
Walsall Council,http://opendatacommunities.org/id/metropolitan-district-council/walsall,WC115-61,30/04/2020,Adult Social Care,5 CARE SERVICES LTD,23/04/2020,"1,570.98",73507-DOMICILIARY CARE,PHYSICAL SUPPORT,Third Party Payments,Revenue
Walsall Council,http://opendatacommunities.org/id/metropolitan-district-council/walsall,WC115-62,30/04/2020,Childrens,5 CARE SERVICES LTD,30/04/2020,"1,595.00",63000-PROFESSIONAL FEES AND SERVICES,DIRECTLY COMMISSIONED NURSING SERVICES,Supplies & Services,Revenue
Walsall Council,http://opendatacommunities.org/id/metropolitan-district-council/walsall,WC115-63,30/04/2020,Adult Social Care,5 CARE SERVICES LTD,23/04/2020,"1,701.70",73507-DOMICILIARY CARE,PHYSICAL SUPPORT,Third Party Payments,Revenue
Walsall Council,http://opendatacommunities.org/id/metropolitan-district-council/walsall,WC115-64,30/04/2020,Adult Social Care,5 CARE SERVICES LTD,23/04/2020,"1,795.78",73507-DOMICILIARY CARE,PHYSICAL SUPPORT,Third Party Payments,Revenue
Walsall Council,http://opendatacommunities.org/id/metropolitan-district-council/walsall,WC115-65,30/04/2020,Adult Social Care,5 CARE SERVICES LTD,23/04/2020,"1,818.02",73507-DOMICILIARY CARE,PHYSICAL SUPPORT,Third Party Payments,Revenue
Walsall Council,http://opendatacommunities.org/id/metropolitan-district-council/walsall,WC115-66,30/04/2020,Adult Social Care,5 CARE SERVICES LTD,23/04/2020,"1,897.63",73507-DOMICILIARY CARE,MENTAL HEALTH SUPPORT,Third Party Payments,Revenue
Walsall Council,http://opendatacommunities.org/id/metropolitan-district-council/walsall,WC115-67,30/04/2020,Adult Social Care,5 CARE SERVICES LTD,23/04/2020,"1,978.37",73507-DOMICILIARY CARE,PHYSICAL SUPPORT,Third Party Payments,Revenue
Walsall Council,http://opendatacommunities.org/id/metropolitan-district-council/walsall,WC115-68,30/04/2020,Adult Social Care,5 CARE SERVICES LTD,23/04/2020,"2,305.66",73507-DOMICILIARY CARE,PHYSICAL SUPPORT,Third Party Payments,Revenue
Walsall Council,http://opendatacommunities.org/id/metropolitan-district-council/walsall,WC115-69,30/04/2020,Adult Social Care,5 CARE SERVICES LTD,08/04/2020,"2,527.32",73025-PROFESSIONAL SERVICES-PRIV CONTRACTOR & OTHER AGENCIES,INTERMEDIATE CARE SERVICE,Third Party Payments,Revenue
Walsall Council,http://opendatacommunities.org/id/metropolitan-district-council/walsall,WC115-70,30/04/2020,Adult Social Care,5 CARE SERVICES LTD,23/04/2020,"3,475.63",73507-DOMICILIARY CARE,PHYSICAL SUPPORT,Third Party Payments,Revenue
Walsall Council,http://opendatacommunities.org/id/metropolitan-district-council/walsall,WC115-71,30/04/2020,Adult Social Care,5 CARE SERVICES LTD,24/04/2020,"43,858.39",73507-DOMICILIARY CARE,PHYSICAL SUPPORT,Third Party Payments,Revenue
Walsall Council,http://opendatacommunities.org/id/metropolitan-district-council/walsall,WC115-72,30/04/2020,Adult Social Care,A & A SERVICES WEST MIDLANDS,03/04/2020,850.00,73025-PROFESSIONAL SERVICES-PRIV CONTRACTOR & OTHER AGENCIES,INTERMEDIATE CARE SERVICE,Third Party Payments,Revenue
Walsall Council,http://opendatacommunities.org/id/metropolitan-district-council/walsall,WC115-73,30/04/2020,Economy & Environment,A ASHTON,20/04/2020,360.00,60006-NEW-FURNITURE & EQUIPMENT,INFRASTRUCTURE MAINTENANCE,Supplies & Services,Revenue
Walsall Council,http://opendatacommunities.org/id/metropolitan-district-council/walsall,WC115-74,30/04/2020,Resources and Transformation,A D T FIRE AND SECURITY PLC,21/04/2020,224.24,73002-SECURITY-PRIV CONTRACTOR FEES,CENTRALISED MAINTENANCE,Third Party Payments,Revenue
Walsall Council,http://opendatacommunities.org/id/metropolitan-district-council/walsall,WC115-75,30/04/2020,Resources and Transformation,A D T FIRE AND SECURITY PLC,20/04/2020,"1,223.09",73002-SECURITY-PRIV CONTRACTOR FEES,CENTRALISED MAINTENANCE,Third Party Payments,Revenue
Walsall Council,http://opendatacommunities.org/id/metropolitan-district-council/walsall,WC115-76,30/04/2020,Adult Social Care,A F BLAKEMORE & SON LTD,24/04/2020,386.69,61016-FOOD AND BEVERAGES-PROVISIONS,GOSCOTE,Supplies & Services,Revenue
Walsall Council,http://opendatacommunities.org/id/metropolitan-district-council/walsall,WC115-77,30/04/2020,Childrens,REDACTED,06/04/2020,712.12,73506-DIRECT PAYMENT,FAMILY SUPPORT - DIRECT PAYMENTS,Third Party Payments,Revenue
Walsall Council,http://opendatacommunities.org/id/metropolitan-district-council/walsall,WC115-78,30/04/2020,Adult Social Care,ABBEY COURT NURSING & RESIDEN,06/04/2020,"1,814.96",73500-RESIDENTIAL,PHYSICAL SUPPORT,Third Party Payments,Revenue
Walsall Council,http://opendatacommunities.org/id/metropolitan-district-council/walsall,WC115-79,30/04/2020,Adult Social Care,ABBEY COURT NURSING & RESIDEN,06/04/2020,"1,972.24",73501-RESIDENTIAL EMI,PHYSICAL SUPPORT,Third Party Payments,Revenue
Walsall Council,http://opendatacommunities.org/id/metropolitan-district-council/walsall,WC115-80,30/04/2020,Adult Social Care,ABBEY COURT NURSING & RESIDEN,06/04/2020,"1,972.24",73501-RESIDENTIAL EMI,PHYSICAL SUPPORT,Third Party Payments,Revenue
Walsall Council,http://opendatacommunities.org/id/metropolitan-district-council/walsall,WC115-81,30/04/2020,Adult Social Care,ABBEY COURT NURSING & RESIDEN,06/04/2020,"1,972.24",73501-RESIDENTIAL EMI,SUPPORT WITH MEMORY & COGNITION,Third Party Payments,Revenue
Walsall Council,http://opendatacommunities.org/id/metropolitan-district-council/walsall,WC115-82,30/04/2020,Adult Social Care,ABBEY COURT NURSING & RESIDEN,06/04/2020,"2,358.08",73503-NURSING EMI,MENTAL HEALTH SUPPORT,Third Party Payments,Revenue
Walsall Council,http://opendatacommunities.org/id/metropolitan-district-council/walsall,WC115-83,30/04/2020,Adult Social Care,ABBEY HEALTHCARE HOMES LTD,06/04/2020,"2,317.04",73500-RESIDENTIAL,PHYSICAL SUPPORT,Third Party Payments,Revenue
Walsall Council,http://opendatacommunities.org/id/metropolitan-district-council/walsall,WC115-84,30/04/2020,Adult Social Care,ABBEY HEALTHCARE HOMES LTD,06/04/2020,"3,030.00",73500-RESIDENTIAL,LEARNING DISABILITY SUPPORT,Third Party Payments,Revenue
Walsall Council,http://opendatacommunities.org/id/metropolitan-district-council/walsall,WC115-85,30/04/2020,Adult Social Care,ABBEY HEALTHCARE HOMES LTD,06/04/2020,"3,030.00",73500-RESIDENTIAL,PHYSICAL SUPPORT,Third Party Payments,Revenue
Walsall Council,http://opendatacommunities.org/id/metropolitan-district-council/walsall,WC115-86,30/04/2020,Adult Social Care,ABBEY HEALTHCARE HOMES LTD,06/04/2020,"3,434.00",73500-RESIDENTIAL,LEARNING DISABILITY SUPPORT,Third Party Payments,Revenue
Walsall Council,http://opendatacommunities.org/id/metropolitan-district-council/walsall,WC115-87,30/04/2020,Adult Social Care,ABBEY HEALTHCARE HOMES LTD,06/04/2020,"3,514.44",73503-NURSING EMI,PHYSICAL SUPPORT,Third Party Payments,Revenue
Walsall Council,http://opendatacommunities.org/id/metropolitan-district-council/walsall,WC115-88,30/04/2020,Adult Social Care,ABBEY HEALTHCARE HOMES LTD,06/04/2020,"30,857.14",73502-NURSING,PHYSICAL SUPPORT,Third Party Payments,Revenue
Walsall Council,http://opendatacommunities.org/id/metropolitan-district-council/walsall,WC115-89,30/04/2020,Childrens,ABC DAY NURSERY (WILLENHALL) LIMITED,01/04/2020,"14,004.90",66505-OTHER-GRANTS TO OTHER ORGS,EARLY YEARS - 2 YR OLDS,Third Party Payments,Revenue
Walsall Council,http://opendatacommunities.org/id/metropolitan-district-council/walsall,WC115-90,30/04/2020,Childrens,ABC DAY NURSERY (WILLENHALL) LIMITED,01/04/2020,"22,028.18",66505-OTHER-GRANTS TO OTHER ORGS,EARLY YEARS - 3 YR OLDS,Third Party Payments,Revenue
Walsall Council,http://opendatacommunities.org/id/metropolitan-district-council/walsall,WC115-91,30/04/2020,Economy & Environment,ABEL ALARM CO LTD,24/04/2020,246.00,40015-ALARM CALL OUTS-OP MTCE,CEMETERIES CENTRAL ADMINISTRATION,Premises,Revenue
Walsall Council,http://opendatacommunities.org/id/metropolitan-district-council/walsall,WC115-92,30/04/2020,Adult Social Care,REDACTED,06/04/2020,"2,174.01",73506-DIRECT PAYMENT,LEARNING DISABILITY SUPPORT,Third Party Payments,Revenue
Walsall Council,http://opendatacommunities.org/id/metropolitan-district-council/walsall,WC115-93,30/04/2020,Childrens,ABLEWELL CARS,24/04/2020,316.60,52000-WITH DRIVER-HIRE OF VEHICLES,HOME TO SCHOOL TRANSPORT,Transport,Revenue
Walsall Council,http://opendatacommunities.org/id/metropolitan-district-council/walsall,WC115-94,30/04/2020,Childrens,ABLEWELL CARS,24/04/2020,528.00,52000-WITH DRIVER-HIRE OF VEHICLES,HOME TO SCHOOL TRANSPORT,Transport,Revenue
Walsall Council,http://opendatacommunities.org/id/metropolitan-district-council/walsall,WC115-95,30/04/2020,Childrens,ABLEWELL CARS,24/04/2020,633.05,52000-WITH DRIVER-HIRE OF VEHICLES,HOME TO SCHOOL TRANSPORT,Transport,Revenue
Walsall Council,http://opendatacommunities.org/id/metropolitan-district-council/walsall,WC115-96,30/04/2020,Childrens,ABS TAXIS (ALDRIDGE),24/04/2020,563.50,52000-WITH DRIVER-HIRE OF VEHICLES,HOME TO SCHOOL TRANSPORT,Transport,Revenue
Walsall Council,http://opendatacommunities.org/id/metropolitan-district-council/walsall,WC115-97,30/04/2020,Childrens,ABS TAXIS (ALDRIDGE),24/04/2020,705.70,52000-WITH DRIVER-HIRE OF VEHICLES,HOME TO SCHOOL TRANSPORT,Transport,Revenue
Walsall Council,http://opendatacommunities.org/id/metropolitan-district-council/walsall,WC115-98,30/04/2020,Childrens,ABS TAXIS (ALDRIDGE),24/04/2020,850.50,52000-WITH DRIVER-HIRE OF VEHICLES,HOME TO SCHOOL TRANSPORT,Transport,Revenue
Walsall Council,http://opendatacommunities.org/id/metropolitan-district-council/walsall,WC115-99,30/04/2020,Childrens,ABU BAKR NURSERY,01/04/2020,"1,886.40",66505-OTHER-GRANTS TO OTHER ORGS,EARLY YEARS - 2 YR OLDS,Third Party Payments,Revenue
Walsall Council,http://opendatacommunities.org/id/metropolitan-district-council/walsall,WC115-100,30/04/2020,Childrens,ABU BAKR NURSERY,01/04/2020,"16,339.05",66505-OTHER-GRANTS TO OTHER ORGS,EARLY YEARS - 2 YR OLDS,Third Party Payments,Revenue
Walsall Council,http://opendatacommunities.org/id/metropolitan-district-council/walsall,WC115-101,30/04/2020,Childrens,ABU BAKR NURSERY,01/04/2020,"42,112.69",66505-OTHER-GRANTS TO OTHER ORGS,EARLY YEARS - 3 YR OLDS,Third Party Payments,Revenue
Walsall Council,http://opendatacommunities.org/id/metropolitan-district-council/walsall,WC115-102,30/04/2020,Adult Social Care,ACCORD - AGE MATTERS,06/04/2020,410.71,76423-DIRECT PAYMENTS SUPPORT,DIRECT PAYMENT SUPPORT ORGANISATIONS,Transfer Payments,Revenue
Walsall Council,http://opendatacommunities.org/id/metropolitan-district-council/walsall,WC115-103,30/04/2020,Resources and Transformation,ACCORD - AGE MATTERS,21/04/2020,"5,000.00",63000-PROFESSIONAL FEES AND SERVICES,COMMUNITY DEVELOPMENT ADDITIONAL PAYMENTS,Supplies & Services,Revenue
Walsall Council,http://opendatacommunities.org/id/metropolitan-district-council/walsall,WC115-104,30/04/2020,Adult Social Care,ACCORD HOUSING ASSOCIATION LIMITED - HOBS MEADOW,27/04/2020,324.00,73500-RESIDENTIAL,LEARNING DISABILITY SUPPORT,Third Party Payments,Revenue
Walsall Council,http://opendatacommunities.org/id/metropolitan-district-council/walsall,WC115-105,30/04/2020,Adult Social Care,ACCORD HOUSING ASSOCIATION LIMITED - HOBS MEADOW,06/04/2020,"4,550.44",73500-RESIDENTIAL,LEARNING DISABILITY SUPPORT,Third Party Payments,Revenue
Walsall Council,http://opendatacommunities.org/id/metropolitan-district-council/walsall,WC115-106,30/04/2020,Adult Social Care,ACCORD HOUSING ASSOCIATION LIMITED - HOBS MEADOW,06/04/2020,"4,550.44",73500-RESIDENTIAL,LEARNING DISABILITY SUPPORT,Third Party Payments,Revenue
Walsall Council,http://opendatacommunities.org/id/metropolitan-district-council/walsall,WC115-107,30/04/2020,Adult Social Care,ACCORD HOUSING ASSOCIATION LIMITED - HOBS MEADOW,06/04/2020,"4,550.44",73500-RESIDENTIAL,LEARNING DISABILITY SUPPORT,Third Party Payments,Revenue
Walsall Council,http://opendatacommunities.org/id/metropolitan-district-council/walsall,WC115-108,30/04/2020,Adult Social Care,ACCORD HOUSING ASSOCIATION LIMITED - HOBS MEADOW,06/04/2020,"4,550.44",73500-RESIDENTIAL,LEARNING DISABILITY SUPPORT,Third Party Payments,Revenue
Walsall Council,http://opendatacommunities.org/id/metropolitan-district-council/walsall,WC115-109,30/04/2020,Adult Social Care,ACCORD HOUSING ASSOCIATION LTD#135,21/04/2020,-401.31,73507-DOMICILIARY CARE,PHYSICAL SUPPORT,Third Party Payments,Revenue
Walsall Council,http://opendatacommunities.org/id/metropolitan-district-council/walsall,WC115-110,30/04/2020,Adult Social Care,ACCORD HOUSING ASSOCIATION LTD#135,07/04/2020,254.17,73507-DOMICILIARY CARE,PHYSICAL SUPPORT,Third Party Payments,Revenue
Walsall Council,http://opendatacommunities.org/id/metropolitan-district-council/walsall,WC115-111,30/04/2020,Adult Social Care,ACCORD HOUSING ASSOCIATION LTD#135,07/04/2020,254.44,73507-DOMICILIARY CARE,LEARNING DISABILITY SUPPORT,Third Party Payments,Revenue
Walsall Council,http://opendatacommunities.org/id/metropolitan-district-council/walsall,WC115-112,30/04/2020,Adult Social Care,ACCORD HOUSING ASSOCIATION LTD#135,07/04/2020,262.44,73508-COMMUNITY SUPPORTED LIVING/SUPPORTED ACCOMMODATION,MENTAL HEALTH SUPPORT,Third Party Payments,Revenue
Walsall Council,http://opendatacommunities.org/id/metropolitan-district-council/walsall,WC115-113,30/04/2020,Adult Social Care,ACCORD HOUSING ASSOCIATION LTD#135,07/04/2020,266.41,73507-DOMICILIARY CARE,SOCIAL SUPPORT,Third Party Payments,Revenue
Walsall Council,http://opendatacommunities.org/id/metropolitan-district-council/walsall,WC115-114,30/04/2020,Adult Social Care,ACCORD HOUSING ASSOCIATION LTD#135,27/04/2020,267.12,73508-COMMUNITY SUPPORTED LIVING/SUPPORTED ACCOMMODATION,PHYSICAL SUPPORT,Third Party Payments,Revenue
Walsall Council,http://opendatacommunities.org/id/metropolitan-district-council/walsall,WC115-115,30/04/2020,Adult Social Care,ACCORD HOUSING ASSOCIATION LTD#135,27/04/2020,267.12,73508-COMMUNITY SUPPORTED LIVING/SUPPORTED ACCOMMODATION,PHYSICAL SUPPORT,Third Party Payments,Revenue
Walsall Council,http://opendatacommunities.org/id/metropolitan-district-council/walsall,WC115-116,30/04/2020,Adult Social Care,ACCORD HOUSING ASSOCIATION LTD#135,21/04/2020,270.94,73508-COMMUNITY SUPPORTED LIVING/SUPPORTED ACCOMMODATION,MENTAL HEALTH SUPPORT,Third Party Payments,Revenue
Walsall Council,http://opendatacommunities.org/id/metropolitan-district-council/walsall,WC115-117,30/04/2020,Adult Social Care,ACCORD HOUSING ASSOCIATION LTD#135,07/04/2020,274.13,73508-COMMUNITY SUPPORTED LIVING/SUPPORTED ACCOMMODATION,LEARNING DISABILITY SUPPORT,Third Party Payments,Revenue
Walsall Council,http://opendatacommunities.org/id/metropolitan-district-council/walsall,WC115-118,30/04/2020,Adult Social Care,ACCORD HOUSING ASSOCIATION LTD#135,07/04/2020,276.01,73507-DOMICILIARY CARE,PHYSICAL SUPPORT,Third Party Payments,Revenue
Walsall Council,http://opendatacommunities.org/id/metropolitan-district-council/walsall,WC115-119,30/04/2020,Adult Social Care,ACCORD HOUSING ASSOCIATION LTD#135,21/04/2020,284.96,73507-DOMICILIARY CARE,PHYSICAL SUPPORT,Third Party Payments,Revenue
Walsall Council,http://opendatacommunities.org/id/metropolitan-district-council/walsall,WC115-120,30/04/2020,Adult Social Care,ACCORD HOUSING ASSOCIATION LTD#135,21/04/2020,286.74,73508-COMMUNITY SUPPORTED LIVING/SUPPORTED ACCOMMODATION,MENTAL HEALTH SUPPORT,Third Party Payments,Revenue
Walsall Council,http://opendatacommunities.org/id/metropolitan-district-council/walsall,WC115-121,30/04/2020,Adult Social Care,ACCORD HOUSING ASSOCIATION LTD#135,21/04/2020,290.10,73507-DOMICILIARY CARE,PHYSICAL SUPPORT,Third Party Payments,Revenue
Walsall Council,http://opendatacommunities.org/id/metropolitan-district-council/walsall,WC115-122,30/04/2020,Adult Social Care,ACCORD HOUSING ASSOCIATION LTD#135,21/04/2020,290.42,73507-DOMICILIARY CARE,MENTAL HEALTH SUPPORT,Third Party Payments,Revenue
Walsall Council,http://opendatacommunities.org/id/metropolitan-district-council/walsall,WC115-123,30/04/2020,Adult Social Care,ACCORD HOUSING ASSOCIATION LTD#135,07/04/2020,291.43,73507-DOMICILIARY CARE,LEARNING DISABILITY SUPPORT,Third Party Payments,Revenue
Walsall Council,http://opendatacommunities.org/id/metropolitan-district-council/walsall,WC115-124,30/04/2020,Adult Social Care,ACCORD HOUSING ASSOCIATION LTD#135,21/04/2020,305.15,73507-DOMICILIARY CARE,LEARNING DISABILITY SUPPORT,Third Party Payments,Revenue
Walsall Council,http://opendatacommunities.org/id/metropolitan-district-council/walsall,WC115-125,30/04/2020,Adult Social Care,ACCORD HOUSING ASSOCIATION LTD#135,21/04/2020,305.16,73507-DOMICILIARY CARE,PHYSICAL SUPPORT,Third Party Payments,Revenue
Walsall Council,http://opendatacommunities.org/id/metropolitan-district-council/walsall,WC115-126,30/04/2020,Adult Social Care,ACCORD HOUSING ASSOCIATION LTD#135,02/04/2020,305.67,73508-COMMUNITY SUPPORTED LIVING/SUPPORTED ACCOMMODATION,LEARNING DISABILITY SUPPORT,Third Party Payments,Revenue
Walsall Council,http://opendatacommunities.org/id/metropolitan-district-council/walsall,WC115-127,30/04/2020,Adult Social Care,ACCORD HOUSING ASSOCIATION LTD#135,07/04/2020,314.20,73507-DOMICILIARY CARE,PHYSICAL SUPPORT,Third Party Payments,Revenue
Walsall Council,http://opendatacommunities.org/id/metropolitan-district-council/walsall,WC115-128,30/04/2020,Adult Social Care,ACCORD HOUSING ASSOCIATION LTD#135,21/04/2020,321.12,73507-DOMICILIARY CARE,SENSORY SUPPORT,Third Party Payments,Revenue
Walsall Council,http://opendatacommunities.org/id/metropolitan-district-council/walsall,WC115-129,30/04/2020,Adult Social Care,ACCORD HOUSING ASSOCIATION LTD#135,21/04/2020,321.14,73508-COMMUNITY SUPPORTED LIVING/SUPPORTED ACCOMMODATION,MENTAL HEALTH SUPPORT,Third Party Payments,Revenue
Walsall Council,http://opendatacommunities.org/id/metropolitan-district-council/walsall,WC115-130,30/04/2020,Adult Social Care,ACCORD HOUSING ASSOCIATION LTD#135,27/04/2020,334.32,73507-DOMICILIARY CARE,PHYSICAL SUPPORT,Third Party Payments,Revenue
Walsall Council,http://opendatacommunities.org/id/metropolitan-district-council/walsall,WC115-131,30/04/2020,Adult Social Care,ACCORD HOUSING ASSOCIATION LTD#135,27/04/2020,334.32,73507-DOMICILIARY CARE,MENTAL HEALTH SUPPORT,Third Party Payments,Revenue
Walsall Council,http://opendatacommunities.org/id/metropolitan-district-council/walsall,WC115-132,30/04/2020,Adult Social Care,ACCORD HOUSING ASSOCIATION LTD#135,07/04/2020,334.46,73507-DOMICILIARY CARE,PHYSICAL SUPPORT,Third Party Payments,Revenue
Walsall Council,http://opendatacommunities.org/id/metropolitan-district-council/walsall,WC115-133,30/04/2020,Adult Social Care,ACCORD HOUSING ASSOCIATION LTD#135,07/04/2020,340.47,73507-DOMICILIARY CARE,SOCIAL SUPPORT,Third Party Payments,Revenue
Walsall Council,http://opendatacommunities.org/id/metropolitan-district-council/walsall,WC115-134,30/04/2020,Adult Social Care,ACCORD HOUSING ASSOCIATION LTD#135,07/04/2020,348.87,73507-DOMICILIARY CARE,PHYSICAL SUPPORT,Third Party Payments,Revenue
Walsall Council,http://opendatacommunities.org/id/metropolitan-district-council/walsall,WC115-135,30/04/2020,Adult Social Care,ACCORD HOUSING ASSOCIATION LTD#135,21/04/2020,350.33,73507-DOMICILIARY CARE,SUPPORT WITH MEMORY & COGNITION,Third Party Payments,Revenue
Walsall Council,http://opendatacommunities.org/id/metropolitan-district-council/walsall,WC115-136,30/04/2020,Adult Social Care,ACCORD HOUSING ASSOCIATION LTD#135,21/04/2020,361.08,73507-DOMICILIARY CARE,PHYSICAL SUPPORT,Third Party Payments,Revenue
Walsall Council,http://opendatacommunities.org/id/metropolitan-district-council/walsall,WC115-137,30/04/2020,Adult Social Care,ACCORD HOUSING ASSOCIATION LTD#135,21/04/2020,371.62,73507-DOMICILIARY CARE,MENTAL HEALTH SUPPORT,Third Party Payments,Revenue
Walsall Council,http://opendatacommunities.org/id/metropolitan-district-council/walsall,WC115-138,30/04/2020,Adult Social Care,ACCORD HOUSING ASSOCIATION LTD#135,21/04/2020,374.06,73507-DOMICILIARY CARE,PHYSICAL SUPPORT,Third Party Payments,Revenue
Walsall Council,http://opendatacommunities.org/id/metropolitan-district-council/walsall,WC115-139,30/04/2020,Adult Social Care,ACCORD HOUSING ASSOCIATION LTD#135,21/04/2020,382.26,73507-DOMICILIARY CARE,PHYSICAL SUPPORT,Third Party Payments,Revenue
Walsall Council,http://opendatacommunities.org/id/metropolitan-district-council/walsall,WC115-140,30/04/2020,Adult Social Care,ACCORD HOUSING ASSOCIATION LTD#135,27/04/2020,384.44,73507-DOMICILIARY CARE,MENTAL HEALTH SUPPORT,Third Party Payments,Revenue
Walsall Council,http://opendatacommunities.org/id/metropolitan-district-council/walsall,WC115-141,30/04/2020,Adult Social Care,ACCORD HOUSING ASSOCIATION LTD#135,21/04/2020,388.44,73507-DOMICILIARY CARE,PHYSICAL SUPPORT,Third Party Payments,Revenue
Walsall Council,http://opendatacommunities.org/id/metropolitan-district-council/walsall,WC115-142,30/04/2020,Adult Social Care,ACCORD HOUSING ASSOCIATION LTD#135,27/04/2020,391.64,73507-DOMICILIARY CARE,MENTAL HEALTH SUPPORT,Third Party Payments,Revenue
Walsall Council,http://opendatacommunities.org/id/metropolitan-district-council/walsall,WC115-143,30/04/2020,Adult Social Care,ACCORD HOUSING ASSOCIATION LTD#135,27/04/2020,391.64,73507-DOMICILIARY CARE,MENTAL HEALTH SUPPORT,Third Party Payments,Revenue
Walsall Council,http://opendatacommunities.org/id/metropolitan-district-council/walsall,WC115-144,30/04/2020,Adult Social Care,ACCORD HOUSING ASSOCIATION LTD#135,27/04/2020,391.64,73507-DOMICILIARY CARE,MENTAL HEALTH SUPPORT,Third Party Payments,Revenue
Walsall Council,http://opendatacommunities.org/id/metropolitan-district-council/walsall,WC115-145,30/04/2020,Adult Social Care,ACCORD HOUSING ASSOCIATION LTD#135,07/04/2020,391.97,73508-COMMUNITY SUPPORTED LIVING/SUPPORTED ACCOMMODATION,MENTAL HEALTH SUPPORT,Third Party Payments,Revenue
Walsall Council,http://opendatacommunities.org/id/metropolitan-district-council/walsall,WC115-146,30/04/2020,Adult Social Care,ACCORD HOUSING ASSOCIATION LTD#135,27/04/2020,400.68,73507-DOMICILIARY CARE,PHYSICAL SUPPORT,Third Party Payments,Revenue
Walsall Council,http://opendatacommunities.org/id/metropolitan-district-council/walsall,WC115-147,30/04/2020,Adult Social Care,ACCORD HOUSING ASSOCIATION LTD#135,27/04/2020,400.68,73507-DOMICILIARY CARE,MENTAL HEALTH SUPPORT,Third Party Payments,Revenue
Walsall Council,http://opendatacommunities.org/id/metropolitan-district-council/walsall,WC115-148,30/04/2020,Adult Social Care,ACCORD HOUSING ASSOCIATION LTD#135,27/04/2020,400.68,73507-DOMICILIARY CARE,PHYSICAL SUPPORT,Third Party Payments,Revenue
Walsall Council,http://opendatacommunities.org/id/metropolitan-district-council/walsall,WC115-149,30/04/2020,Adult Social Care,ACCORD HOUSING ASSOCIATION LTD#135,07/04/2020,401.31,73507-DOMICILIARY CARE,PHYSICAL SUPPORT,Third Party Payments,Revenue
Walsall Council,http://opendatacommunities.org/id/metropolitan-district-council/walsall,WC115-150,30/04/2020,Adult Social Care,ACCORD HOUSING ASSOCIATION LTD#135,21/04/2020,410.92,73508-COMMUNITY SUPPORTED LIVING/SUPPORTED ACCOMMODATION,MENTAL HEALTH SUPPORT,Third Party Payments,Revenue
Walsall Council,http://opendatacommunities.org/id/metropolitan-district-council/walsall,WC115-151,30/04/2020,Adult Social Care,ACCORD HOUSING ASSOCIATION LTD#135,07/04/2020,414.50,73507-DOMICILIARY CARE,PHYSICAL SUPPORT,Third Party Payments,Revenue
Walsall Council,http://opendatacommunities.org/id/metropolitan-district-council/walsall,WC115-152,30/04/2020,Adult Social Care,ACCORD HOUSING ASSOCIATION LTD#135,07/04/2020,418.18,73507-DOMICILIARY CARE,PHYSICAL SUPPORT,Third Party Payments,Revenue
Walsall Council,http://opendatacommunities.org/id/metropolitan-district-council/walsall,WC115-153,30/04/2020,Adult Social Care,ACCORD HOUSING ASSOCIATION LTD#135,27/04/2020,419.76,73507-DOMICILIARY CARE,MENTAL HEALTH SUPPORT,Third Party Payments,Revenue
Walsall Council,http://opendatacommunities.org/id/metropolitan-district-council/walsall,WC115-154,30/04/2020,Adult Social Care,ACCORD HOUSING ASSOCIATION LTD#135,27/04/2020,419.88,73507-DOMICILIARY CARE,PHYSICAL SUPPORT,Third Party Payments,Revenue
Walsall Council,http://opendatacommunities.org/id/metropolitan-district-council/walsall,WC115-155,30/04/2020,Adult Social Care,ACCORD HOUSING ASSOCIATION LTD#135,07/04/2020,423.57,73507-DOMICILIARY CARE,MENTAL HEALTH SUPPORT,Third Party Payments,Revenue
Walsall Council,http://opendatacommunities.org/id/metropolitan-district-council/walsall,WC115-156,30/04/2020,Adult Social Care,ACCORD HOUSING ASSOCIATION LTD#135,21/04/2020,426.87,73507-DOMICILIARY CARE,MENTAL HEALTH SUPPORT,Third Party Payments,Revenue
Walsall Council,http://opendatacommunities.org/id/metropolitan-district-council/walsall,WC115-157,30/04/2020,Adult Social Care,ACCORD HOUSING ASSOCIATION LTD#135,07/04/2020,429.90,73507-DOMICILIARY CARE,SOCIAL SUPPORT,Third Party Payments,Revenue
Walsall Council,http://opendatacommunities.org/id/metropolitan-district-council/walsall,WC115-158,30/04/2020,Adult Social Care,ACCORD HOUSING ASSOCIATION LTD#135,21/04/2020,442.60,73507-DOMICILIARY CARE,PHYSICAL SUPPORT,Third Party Payments,Revenue
Walsall Council,http://opendatacommunities.org/id/metropolitan-district-council/walsall,WC115-159,30/04/2020,Adult Social Care,ACCORD HOUSING ASSOCIATION LTD#135,07/04/2020,443.31,73507-DOMICILIARY CARE,PHYSICAL SUPPORT,Third Party Payments,Revenue
Walsall Council,http://opendatacommunities.org/id/metropolitan-district-council/walsall,WC115-160,30/04/2020,Adult Social Care,ACCORD HOUSING ASSOCIATION LTD#135,27/04/2020,458.04,73507-DOMICILIARY CARE,MENTAL HEALTH SUPPORT,Third Party Payments,Revenue
Walsall Council,http://opendatacommunities.org/id/metropolitan-district-council/walsall,WC115-161,30/04/2020,Adult Social Care,ACCORD HOUSING ASSOCIATION LTD#135,27/04/2020,458.04,73507-DOMICILIARY CARE,MENTAL HEALTH SUPPORT,Third Party Payments,Revenue
Walsall Council,http://opendatacommunities.org/id/metropolitan-district-council/walsall,WC115-162,30/04/2020,Adult Social Care,ACCORD HOUSING ASSOCIATION LTD#135,21/04/2020,460.72,73507-DOMICILIARY CARE,PHYSICAL SUPPORT,Third Party Payments,Revenue
Walsall Council,http://opendatacommunities.org/id/metropolitan-district-council/walsall,WC115-163,30/04/2020,Adult Social Care,ACCORD HOUSING ASSOCIATION LTD#135,27/04/2020,467.88,73507-DOMICILIARY CARE,PHYSICAL SUPPORT,Third Party Payments,Revenue
Walsall Council,http://opendatacommunities.org/id/metropolitan-district-council/walsall,WC115-164,30/04/2020,Adult Social Care,ACCORD HOUSING ASSOCIATION LTD#135,27/04/2020,467.88,73507-DOMICILIARY CARE,PHYSICAL SUPPORT,Third Party Payments,Revenue
Walsall Council,http://opendatacommunities.org/id/metropolitan-district-council/walsall,WC115-165,30/04/2020,Adult Social Care,ACCORD HOUSING ASSOCIATION LTD#135,21/04/2020,468.98,73507-DOMICILIARY CARE,PHYSICAL SUPPORT,Third Party Payments,Revenue
Walsall Council,http://opendatacommunities.org/id/metropolitan-district-council/walsall,WC115-166,30/04/2020,Adult Social Care,ACCORD HOUSING ASSOCIATION LTD#135,07/04/2020,480.23,73507-DOMICILIARY CARE,PHYSICAL SUPPORT,Third Party Payments,Revenue
Walsall Council,http://opendatacommunities.org/id/metropolitan-district-council/walsall,WC115-167,30/04/2020,Adult Social Care,ACCORD HOUSING ASSOCIATION LTD#135,21/04/2020,480.92,73507-DOMICILIARY CARE,PHYSICAL SUPPORT,Third Party Payments,Revenue
Walsall Council,http://opendatacommunities.org/id/metropolitan-district-council/walsall,WC115-168,30/04/2020,Adult Social Care,ACCORD HOUSING ASSOCIATION LTD#135,27/04/2020,486.68,73507-DOMICILIARY CARE,LEARNING DISABILITY SUPPORT,Third Party Payments,Revenue
Walsall Council,http://opendatacommunities.org/id/metropolitan-district-council/walsall,WC115-169,30/04/2020,Adult Social Care,ACCORD HOUSING ASSOCIATION LTD#135,27/04/2020,486.68,73507-DOMICILIARY CARE,LEARNING DISABILITY SUPPORT,Third Party Payments,Revenue
Walsall Council,http://opendatacommunities.org/id/metropolitan-district-council/walsall,WC115-170,30/04/2020,Adult Social Care,ACCORD HOUSING ASSOCIATION LTD#135,27/04/2020,487.56,73507-DOMICILIARY CARE,LEARNING DISABILITY SUPPORT,Third Party Payments,Revenue
Walsall Council,http://opendatacommunities.org/id/metropolitan-district-council/walsall,WC115-171,30/04/2020,Adult Social Care,ACCORD HOUSING ASSOCIATION LTD#135,21/04/2020,491.14,73508-COMMUNITY SUPPORTED LIVING/SUPPORTED ACCOMMODATION,MENTAL HEALTH SUPPORT,Third Party Payments,Revenue
Walsall Council,http://opendatacommunities.org/id/metropolitan-district-council/walsall,WC115-172,30/04/2020,Adult Social Care,ACCORD HOUSING ASSOCIATION LTD#135,27/04/2020,494.46,73507-DOMICILIARY CARE,LEARNING DISABILITY SUPPORT,Third Party Payments,Revenue
Walsall Council,http://opendatacommunities.org/id/metropolitan-district-council/walsall,WC115-173,30/04/2020,Adult Social Care,ACCORD HOUSING ASSOCIATION LTD#135,27/04/2020,496.71,73507-DOMICILIARY CARE,PHYSICAL SUPPORT,Third Party Payments,Revenue
Walsall Council,http://opendatacommunities.org/id/metropolitan-district-council/walsall,WC115-174,30/04/2020,Adult Social Care,ACCORD HOUSING ASSOCIATION LTD#135,07/04/2020,499.31,73507-DOMICILIARY CARE,LEARNING DISABILITY SUPPORT,Third Party Payments,Revenue
Walsall Council,http://opendatacommunities.org/id/metropolitan-district-council/walsall,WC115-175,30/04/2020,Adult Social Care,ACCORD HOUSING ASSOCIATION LTD#135,27/04/2020,501.76,73507-DOMICILIARY CARE,MENTAL HEALTH SUPPORT,Third Party Payments,Revenue
Walsall Council,http://opendatacommunities.org/id/metropolitan-district-council/walsall,WC115-176,30/04/2020,Adult Social Care,ACCORD HOUSING ASSOCIATION LTD#135,21/04/2020,508.34,73507-DOMICILIARY CARE,PHYSICAL SUPPORT,Third Party Payments,Revenue
Walsall Council,http://opendatacommunities.org/id/metropolitan-district-council/walsall,WC115-177,30/04/2020,Adult Social Care,ACCORD HOUSING ASSOCIATION LTD#135,27/04/2020,534.24,73507-DOMICILIARY CARE,PHYSICAL SUPPORT,Third Party Payments,Revenue
Walsall Council,http://opendatacommunities.org/id/metropolitan-district-council/walsall,WC115-178,30/04/2020,Adult Social Care,ACCORD HOUSING ASSOCIATION LTD#135,27/04/2020,534.24,73507-DOMICILIARY CARE,PHYSICAL SUPPORT,Third Party Payments,Revenue
Walsall Council,http://opendatacommunities.org/id/metropolitan-district-council/walsall,WC115-179,30/04/2020,Adult Social Care,ACCORD HOUSING ASSOCIATION LTD#135,27/04/2020,535.08,73507-DOMICILIARY CARE,PHYSICAL SUPPORT,Third Party Payments,Revenue
Walsall Council,http://opendatacommunities.org/id/metropolitan-district-council/walsall,WC115-180,30/04/2020,Adult Social Care,ACCORD HOUSING ASSOCIATION LTD#135,27/04/2020,537.56,73507-DOMICILIARY CARE,PHYSICAL SUPPORT,Third Party Payments,Revenue
Walsall Council,http://opendatacommunities.org/id/metropolitan-district-council/walsall,WC115-181,30/04/2020,Adult Social Care,ACCORD HOUSING ASSOCIATION LTD#135,21/04/2020,544.04,73507-DOMICILIARY CARE,LEARNING DISABILITY SUPPORT,Third Party Payments,Revenue
Walsall Council,http://opendatacommunities.org/id/metropolitan-district-council/walsall,WC115-182,30/04/2020,Adult Social Care,ACCORD HOUSING ASSOCIATION LTD#135,21/04/2020,548.26,73508-COMMUNITY SUPPORTED LIVING/SUPPORTED ACCOMMODATION,LEARNING DISABILITY SUPPORT,Third Party Payments,Revenue
Walsall Council,http://opendatacommunities.org/id/metropolitan-district-council/walsall,WC115-183,30/04/2020,Adult Social Care,ACCORD HOUSING ASSOCIATION LTD#135,27/04/2020,563.72,73507-DOMICILIARY CARE,PHYSICAL SUPPORT,Third Party Payments,Revenue
Walsall Council,http://opendatacommunities.org/id/metropolitan-district-council/walsall,WC115-184,30/04/2020,Adult Social Care,ACCORD HOUSING ASSOCIATION LTD#135,21/04/2020,564.30,73507-DOMICILIARY CARE,SOCIAL SUPPORT,Third Party Payments,Revenue
Walsall Council,http://opendatacommunities.org/id/metropolitan-district-council/walsall,WC115-185,30/04/2020,Adult Social Care,ACCORD HOUSING ASSOCIATION LTD#135,07/04/2020,566.23,73508-COMMUNITY SUPPORTED LIVING/SUPPORTED ACCOMMODATION,LEARNING DISABILITY SUPPORT,Third Party Payments,Revenue
Walsall Council,http://opendatacommunities.org/id/metropolitan-district-council/walsall,WC115-186,30/04/2020,Adult Social Care,ACCORD HOUSING ASSOCIATION LTD#135,21/04/2020,587.78,73507-DOMICILIARY CARE,PHYSICAL SUPPORT,Third Party Payments,Revenue
Walsall Council,http://opendatacommunities.org/id/metropolitan-district-council/walsall,WC115-187,30/04/2020,Adult Social Care,ACCORD HOUSING ASSOCIATION LTD#135,21/04/2020,593.67,73507-DOMICILIARY CARE,PHYSICAL SUPPORT,Third Party Payments,Revenue
Walsall Council,http://opendatacommunities.org/id/metropolitan-district-council/walsall,WC115-188,30/04/2020,Adult Social Care,ACCORD HOUSING ASSOCIATION LTD#135,27/04/2020,602.28,73507-DOMICILIARY CARE,SENSORY SUPPORT,Third Party Payments,Revenue
Walsall Council,http://opendatacommunities.org/id/metropolitan-district-council/walsall,WC115-189,30/04/2020,Adult Social Care,ACCORD HOUSING ASSOCIATION LTD#135,27/04/2020,602.28,73507-DOMICILIARY CARE,SENSORY SUPPORT,Third Party Payments,Revenue
Walsall Council,http://opendatacommunities.org/id/metropolitan-district-council/walsall,WC115-190,30/04/2020,Adult Social Care,ACCORD HOUSING ASSOCIATION LTD#135,21/04/2020,621.28,73507-DOMICILIARY CARE,LEARNING DISABILITY SUPPORT,Third Party Payments,Revenue
Walsall Council,http://opendatacommunities.org/id/metropolitan-district-council/walsall,WC115-191,30/04/2020,Adult Social Care,ACCORD HOUSING ASSOCIATION LTD#135,27/04/2020,668.64,73507-DOMICILIARY CARE,MENTAL HEALTH SUPPORT,Third Party Payments,Revenue
Walsall Council,http://opendatacommunities.org/id/metropolitan-district-council/walsall,WC115-192,30/04/2020,Adult Social Care,ACCORD HOUSING ASSOCIATION LTD#135,21/04/2020,669.28,73507-DOMICILIARY CARE,PHYSICAL SUPPORT,Third Party Payments,Revenue
Walsall Council,http://opendatacommunities.org/id/metropolitan-district-council/walsall,WC115-193,30/04/2020,Adult Social Care,ACCORD HOUSING ASSOCIATION LTD#135,27/04/2020,701.68,73507-DOMICILIARY CARE,PHYSICAL SUPPORT,Third Party Payments,Revenue
Walsall Council,http://opendatacommunities.org/id/metropolitan-district-council/walsall,WC115-194,30/04/2020,Adult Social Care,ACCORD HOUSING ASSOCIATION LTD#135,27/04/2020,701.68,73507-DOMICILIARY CARE,PHYSICAL SUPPORT,Third Party Payments,Revenue
Walsall Council,http://opendatacommunities.org/id/metropolitan-district-council/walsall,WC115-195,30/04/2020,Adult Social Care,ACCORD HOUSING ASSOCIATION LTD#135,21/04/2020,712.36,73507-DOMICILIARY CARE,PHYSICAL SUPPORT,Third Party Payments,Revenue
Walsall Council,http://opendatacommunities.org/id/metropolitan-district-council/walsall,WC115-196,30/04/2020,Adult Social Care,ACCORD HOUSING ASSOCIATION LTD#135,27/04/2020,716.08,73507-DOMICILIARY CARE,PHYSICAL SUPPORT,Third Party Payments,Revenue
Walsall Council,http://opendatacommunities.org/id/metropolitan-district-council/walsall,WC115-197,30/04/2020,Adult Social Care,ACCORD HOUSING ASSOCIATION LTD#135,27/04/2020,716.08,73507-DOMICILIARY CARE,PHYSICAL SUPPORT,Third Party Payments,Revenue
Walsall Council,http://opendatacommunities.org/id/metropolitan-district-council/walsall,WC115-198,30/04/2020,Adult Social Care,ACCORD HOUSING ASSOCIATION LTD#135,21/04/2020,723.83,73507-DOMICILIARY CARE,SOCIAL SUPPORT,Third Party Payments,Revenue
Walsall Council,http://opendatacommunities.org/id/metropolitan-district-council/walsall,WC115-199,30/04/2020,Adult Social Care,ACCORD HOUSING ASSOCIATION LTD#135,27/04/2020,730.72,73507-DOMICILIARY CARE,PHYSICAL SUPPORT,Third Party Payments,Revenue
Walsall Council,http://opendatacommunities.org/id/metropolitan-district-council/walsall,WC115-200,30/04/2020,Adult Social Care,ACCORD HOUSING ASSOCIATION LTD#135,21/04/2020,742.50,73507-DOMICILIARY CARE,PHYSICAL SUPPORT,Third Party Payments,Revenue
Walsall Council,http://opendatacommunities.org/id/metropolitan-district-council/walsall,WC115-201,30/04/2020,Adult Social Care,ACCORD HOUSING ASSOCIATION LTD#135,07/04/2020,787.21,73507-DOMICILIARY CARE,SENSORY SUPPORT,Third Party Payments,Revenue
Walsall Council,http://opendatacommunities.org/id/metropolitan-district-council/walsall,WC115-202,30/04/2020,Adult Social Care,ACCORD HOUSING ASSOCIATION LTD#135,27/04/2020,803.04,73507-DOMICILIARY CARE,PHYSICAL SUPPORT,Third Party Payments,Revenue
Walsall Council,http://opendatacommunities.org/id/metropolitan-district-council/walsall,WC115-203,30/04/2020,Adult Social Care,ACCORD HOUSING ASSOCIATION LTD#135,21/04/2020,829.00,73507-DOMICILIARY CARE,PHYSICAL SUPPORT,Third Party Payments,Revenue
Walsall Council,http://opendatacommunities.org/id/metropolitan-district-council/walsall,WC115-204,30/04/2020,Adult Social Care,ACCORD HOUSING ASSOCIATION LTD#135,27/04/2020,831.68,73507-DOMICILIARY CARE,PHYSICAL SUPPORT,Third Party Payments,Revenue
Walsall Council,http://opendatacommunities.org/id/metropolitan-district-council/walsall,WC115-205,30/04/2020,Adult Social Care,ACCORD HOUSING ASSOCIATION LTD#135,21/04/2020,847.14,73507-DOMICILIARY CARE,MENTAL HEALTH SUPPORT,Third Party Payments,Revenue
Walsall Council,http://opendatacommunities.org/id/metropolitan-district-council/walsall,WC115-206,30/04/2020,Adult Social Care,ACCORD HOUSING ASSOCIATION LTD#135,27/04/2020,852.74,73507-DOMICILIARY CARE,PHYSICAL SUPPORT,Third Party Payments,Revenue
Walsall Council,http://opendatacommunities.org/id/metropolitan-district-council/walsall,WC115-207,30/04/2020,Adult Social Care,ACCORD HOUSING ASSOCIATION LTD#135,27/04/2020,869.53,73507-DOMICILIARY CARE,PHYSICAL SUPPORT,Third Party Payments,Revenue
Walsall Council,http://opendatacommunities.org/id/metropolitan-district-council/walsall,WC115-208,30/04/2020,Adult Social Care,ACCORD HOUSING ASSOCIATION LTD#135,21/04/2020,890.60,73507-DOMICILIARY CARE,PHYSICAL SUPPORT,Third Party Payments,Revenue
Walsall Council,http://opendatacommunities.org/id/metropolitan-district-council/walsall,WC115-209,30/04/2020,Adult Social Care,ACCORD HOUSING ASSOCIATION LTD#135,27/04/2020,903.28,73507-DOMICILIARY CARE,PHYSICAL SUPPORT,Third Party Payments,Revenue
Walsall Council,http://opendatacommunities.org/id/metropolitan-district-council/walsall,WC115-210,30/04/2020,Adult Social Care,ACCORD HOUSING ASSOCIATION LTD#135,21/04/2020,916.48,73507-DOMICILIARY CARE,SOCIAL SUPPORT,Third Party Payments,Revenue
Walsall Council,http://opendatacommunities.org/id/metropolitan-district-council/walsall,WC115-211,30/04/2020,Adult Social Care,ACCORD HOUSING ASSOCIATION LTD#135,27/04/2020,937.48,73507-DOMICILIARY CARE,PHYSICAL SUPPORT,Third Party Payments,Revenue
Walsall Council,http://opendatacommunities.org/id/metropolitan-district-council/walsall,WC115-212,30/04/2020,Adult Social Care,ACCORD HOUSING ASSOCIATION LTD#135,21/04/2020,943.98,73507-DOMICILIARY CARE,PHYSICAL SUPPORT,Third Party Payments,Revenue
Walsall Council,http://opendatacommunities.org/id/metropolitan-district-council/walsall,WC115-213,30/04/2020,Adult Social Care,ACCORD HOUSING ASSOCIATION LTD#135,27/04/2020,974.96,73508-COMMUNITY SUPPORTED LIVING/SUPPORTED ACCOMMODATION,LEARNING DISABILITY SUPPORT,Third Party Payments,Revenue
Walsall Council,http://opendatacommunities.org/id/metropolitan-district-council/walsall,WC115-214,30/04/2020,Adult Social Care,ACCORD HOUSING ASSOCIATION LTD#135,27/04/2020,974.96,73508-COMMUNITY SUPPORTED LIVING/SUPPORTED ACCOMMODATION,LEARNING DISABILITY SUPPORT,Third Party Payments,Revenue
Walsall Council,http://opendatacommunities.org/id/metropolitan-district-council/walsall,WC115-215,30/04/2020,Adult Social Care,ACCORD HOUSING ASSOCIATION LTD#135,21/04/2020,988.32,73507-DOMICILIARY CARE,LEARNING DISABILITY SUPPORT,Third Party Payments,Revenue
Walsall Council,http://opendatacommunities.org/id/metropolitan-district-council/walsall,WC115-216,30/04/2020,Adult Social Care,ACCORD HOUSING ASSOCIATION LTD#135,27/04/2020,"1,002.68",73507-DOMICILIARY CARE,SOCIAL SUPPORT,Third Party Payments,Revenue
Walsall Council,http://opendatacommunities.org/id/metropolitan-district-council/walsall,WC115-217,30/04/2020,Adult Social Care,ACCORD HOUSING ASSOCIATION LTD#135,27/04/2020,"1,017.40",73507-DOMICILIARY CARE,LEARNING DISABILITY SUPPORT,Third Party Payments,Revenue
Walsall Council,http://opendatacommunities.org/id/metropolitan-district-council/walsall,WC115-218,30/04/2020,Adult Social Care,ACCORD HOUSING ASSOCIATION LTD#135,21/04/2020,"1,021.20",73507-DOMICILIARY CARE,PHYSICAL SUPPORT,Third Party Payments,Revenue
Walsall Council,http://opendatacommunities.org/id/metropolitan-district-council/walsall,WC115-219,30/04/2020,Adult Social Care,ACCORD HOUSING ASSOCIATION LTD#135,27/04/2020,"1,021.78",73507-DOMICILIARY CARE,LEARNING DISABILITY SUPPORT,Third Party Payments,Revenue
Walsall Council,http://opendatacommunities.org/id/metropolitan-district-council/walsall,WC115-220,30/04/2020,Adult Social Care,ACCORD HOUSING ASSOCIATION LTD#135,27/04/2020,"1,022.37",73507-DOMICILIARY CARE,SOCIAL SUPPORT,Third Party Payments,Revenue
Walsall Council,http://opendatacommunities.org/id/metropolitan-district-council/walsall,WC115-221,30/04/2020,Adult Social Care,ACCORD HOUSING ASSOCIATION LTD#135,27/04/2020,"1,065.36",73507-DOMICILIARY CARE,SOCIAL SUPPORT,Third Party Payments,Revenue
Walsall Council,http://opendatacommunities.org/id/metropolitan-district-council/walsall,WC115-222,30/04/2020,Adult Social Care,ACCORD HOUSING ASSOCIATION LTD#135,27/04/2020,"1,101.15",73507-DOMICILIARY CARE,PHYSICAL SUPPORT,Third Party Payments,Revenue
Walsall Council,http://opendatacommunities.org/id/metropolitan-district-council/walsall,WC115-223,30/04/2020,Adult Social Care,ACCORD HOUSING ASSOCIATION LTD#135,27/04/2020,"1,103.20",73507-DOMICILIARY CARE,PHYSICAL SUPPORT,Third Party Payments,Revenue
Walsall Council,http://opendatacommunities.org/id/metropolitan-district-council/walsall,WC115-224,30/04/2020,Adult Social Care,ACCORD HOUSING ASSOCIATION LTD#135,27/04/2020,"1,122.52",73507-DOMICILIARY CARE,PHYSICAL SUPPORT,Third Party Payments,Revenue
Walsall Council,http://opendatacommunities.org/id/metropolitan-district-council/walsall,WC115-225,30/04/2020,Adult Social Care,ACCORD HOUSING ASSOCIATION LTD#135,21/04/2020,"1,132.46",73508-COMMUNITY SUPPORTED LIVING/SUPPORTED ACCOMMODATION,LEARNING DISABILITY SUPPORT,Third Party Payments,Revenue
Walsall Council,http://opendatacommunities.org/id/metropolitan-district-council/walsall,WC115-226,30/04/2020,Adult Social Care,ACCORD HOUSING ASSOCIATION LTD#135,27/04/2020,"1,222.92",73507-DOMICILIARY CARE,PHYSICAL SUPPORT,Third Party Payments,Revenue
Walsall Council,http://opendatacommunities.org/id/metropolitan-district-council/walsall,WC115-227,30/04/2020,Adult Social Care,ACCORD HOUSING ASSOCIATION LTD#135,27/04/2020,"1,337.28",73507-DOMICILIARY CARE,PHYSICAL SUPPORT,Third Party Payments,Revenue
Walsall Council,http://opendatacommunities.org/id/metropolitan-district-council/walsall,WC115-228,30/04/2020,Adult Social Care,ACCORD HOUSING ASSOCIATION LTD#135,27/04/2020,"1,470.56",73507-DOMICILIARY CARE,MENTAL HEALTH SUPPORT,Third Party Payments,Revenue
Walsall Council,http://opendatacommunities.org/id/metropolitan-district-council/walsall,WC115-229,30/04/2020,Adult Social Care,ACCORD HOUSING ASSOCIATION LTD#135,27/04/2020,"1,605.52",73507-DOMICILIARY CARE,PHYSICAL SUPPORT,Third Party Payments,Revenue
Walsall Council,http://opendatacommunities.org/id/metropolitan-district-council/walsall,WC115-230,30/04/2020,Adult Social Care,ACCORD HOUSING ASSOCIATION LTD#135,27/04/2020,"1,661.30",73507-DOMICILIARY CARE,PHYSICAL SUPPORT,Third Party Payments,Revenue
Walsall Council,http://opendatacommunities.org/id/metropolitan-district-council/walsall,WC115-231,30/04/2020,Adult Social Care,ACCORD HOUSING ASSOCIATION LTD#135,27/04/2020,"1,672.16",73507-DOMICILIARY CARE,PHYSICAL SUPPORT,Third Party Payments,Revenue
Walsall Council,http://opendatacommunities.org/id/metropolitan-district-council/walsall,WC115-232,30/04/2020,Adult Social Care,ACCORD HOUSING ASSOCIATION LTD#135,27/04/2020,"1,672.16",73507-DOMICILIARY CARE,PHYSICAL SUPPORT,Third Party Payments,Revenue
Walsall Council,http://opendatacommunities.org/id/metropolitan-district-council/walsall,WC115-233,30/04/2020,Adult Social Care,ACCORD HOUSING ASSOCIATION LTD#135,21/04/2020,"1,675.63",73507-DOMICILIARY CARE,SENSORY SUPPORT,Third Party Payments,Revenue
Walsall Council,http://opendatacommunities.org/id/metropolitan-district-council/walsall,WC115-234,30/04/2020,Adult Social Care,ACCORD HOUSING ASSOCIATION LTD#135,27/04/2020,"1,720.72",73507-DOMICILIARY CARE,SOCIAL SUPPORT,Third Party Payments,Revenue
Walsall Council,http://opendatacommunities.org/id/metropolitan-district-council/walsall,WC115-235,30/04/2020,Adult Social Care,ACCORD HOUSING ASSOCIATION LTD#135,27/04/2020,"1,720.72",73507-DOMICILIARY CARE,SOCIAL SUPPORT,Third Party Payments,Revenue
Walsall Council,http://opendatacommunities.org/id/metropolitan-district-council/walsall,WC115-236,30/04/2020,Adult Social Care,ACCORD HOUSING ASSOCIATION LTD#135,27/04/2020,"1,732.95",73507-DOMICILIARY CARE,PHYSICAL SUPPORT,Third Party Payments,Revenue
Walsall Council,http://opendatacommunities.org/id/metropolitan-district-council/walsall,WC115-237,30/04/2020,Adult Social Care,ACCORD HOUSING ASSOCIATION LTD#135,27/04/2020,"1,770.16",73507-DOMICILIARY CARE,PHYSICAL SUPPORT,Third Party Payments,Revenue
Walsall Council,http://opendatacommunities.org/id/metropolitan-district-council/walsall,WC115-238,30/04/2020,Adult Social Care,ACCORD HOUSING ASSOCIATION LTD#135,27/04/2020,"1,770.16",73507-DOMICILIARY CARE,PHYSICAL SUPPORT,Third Party Payments,Revenue
Walsall Council,http://opendatacommunities.org/id/metropolitan-district-council/walsall,WC115-239,30/04/2020,Adult Social Care,ACCORD HOUSING ASSOCIATION LTD#135,27/04/2020,"1,847.07",73507-DOMICILIARY CARE,LEARNING DISABILITY SUPPORT,Third Party Payments,Revenue
Walsall Council,http://opendatacommunities.org/id/metropolitan-district-council/walsall,WC115-240,30/04/2020,Adult Social Care,ACCORD HOUSING ASSOCIATION LTD#135,27/04/2020,"2,264.04",73508-COMMUNITY SUPPORTED LIVING/SUPPORTED ACCOMMODATION,LEARNING DISABILITY SUPPORT,Third Party Payments,Revenue
Walsall Council,http://opendatacommunities.org/id/metropolitan-district-council/walsall,WC115-241,30/04/2020,Adult Social Care,ACCORD HOUSING ASSOCIATION LTD#135,27/04/2020,"3,075.52",73507-DOMICILIARY CARE,SENSORY SUPPORT,Third Party Payments,Revenue
Walsall Council,http://opendatacommunities.org/id/metropolitan-district-council/walsall,WC115-242,30/04/2020,Adult Social Care,ACCORD HOUSING ASSOCIATION LTD#135,27/04/2020,"3,075.52",73507-DOMICILIARY CARE,SENSORY SUPPORT,Third Party Payments,Revenue
Walsall Council,http://opendatacommunities.org/id/metropolitan-district-council/walsall,WC115-243,30/04/2020,Adult Social Care,ACCORD HOUSING ASSOCIATION LTD#135,06/04/2020,"5,671.44",73500-RESIDENTIAL,LEARNING DISABILITY SUPPORT,Third Party Payments,Revenue
Walsall Council,http://opendatacommunities.org/id/metropolitan-district-council/walsall,WC115-244,30/04/2020,Adult Social Care,ACCORD HOUSING ASSOCIATION LTD#135,06/04/2020,"6,350.96",73500-RESIDENTIAL,LEARNING DISABILITY SUPPORT,Third Party Payments,Revenue
Walsall Council,http://opendatacommunities.org/id/metropolitan-district-council/walsall,WC115-245,30/04/2020,Adult Social Care,ACCORD HOUSING ASSOCIATION LTD#135,06/04/2020,"6,350.96",73500-RESIDENTIAL,LEARNING DISABILITY SUPPORT,Third Party Payments,Revenue
Walsall Council,http://opendatacommunities.org/id/metropolitan-district-council/walsall,WC115-246,30/04/2020,Economy & Environment,ACCORD HOUSING ASSOCIATION LTD#135,22/04/2020,"7,437.50",63253-PAYMENT TO CONTRACTOR,MENTAL HEALTH,Third Party Payments,Revenue
Walsall Council,http://opendatacommunities.org/id/metropolitan-district-council/walsall,WC115-247,30/04/2020,Resources and Transformation,ACCORD HOUSING ASSOCIATION LTD#135,22/04/2020,"21,144.92",63000-PROFESSIONAL FEES AND SERVICES,HOUSING FIRST,Supplies & Services,Revenue
Walsall Council,http://opendatacommunities.org/id/metropolitan-district-council/walsall,WC115-248,30/04/2020,Resources and Transformation,ACCORD HOUSING ASSOCIATION LTD#135,22/04/2020,"47,217.50",73365-BLOCK GROSS-SUPPORTING PEOPLE,DOMESTIC VIOLENCE REFUGE,Third Party Payments,Revenue
Walsall Council,http://opendatacommunities.org/id/metropolitan-district-council/walsall,WC115-249,30/04/2020,Childrens,ACE CARS & MINIBUSES LTD,24/04/2020,-693.00,52000-WITH DRIVER-HIRE OF VEHICLES,HOME TO SCHOOL TRANSPORT,Transport,Revenue
Walsall Council,http://opendatacommunities.org/id/metropolitan-district-council/walsall,WC115-250,30/04/2020,Childrens,ACE CARS & MINIBUSES LTD,24/04/2020,220.00,52000-WITH DRIVER-HIRE OF VEHICLES,HOME TO SCHOOL TRANSPORT,Transport,Revenue
Walsall Council,http://opendatacommunities.org/id/metropolitan-district-council/walsall,WC115-251,30/04/2020,Childrens,ACE CARS & MINIBUSES LTD,24/04/2020,240.00,52000-WITH DRIVER-HIRE OF VEHICLES,HOME TO SCHOOL TRANSPORT,Transport,Revenue
Walsall Council,http://opendatacommunities.org/id/metropolitan-district-council/walsall,WC115-252,30/04/2020,Childrens,ACE CARS & MINIBUSES LTD,24/04/2020,243.10,52000-WITH DRIVER-HIRE OF VEHICLES,HOME TO SCHOOL TRANSPORT,Transport,Revenue
Walsall Council,http://opendatacommunities.org/id/metropolitan-district-council/walsall,WC115-253,30/04/2020,Childrens,ACE CARS & MINIBUSES LTD,24/04/2020,243.10,52000-WITH DRIVER-HIRE OF VEHICLES,HOME TO SCHOOL TRANSPORT,Transport,Revenue
Walsall Council,http://opendatacommunities.org/id/metropolitan-district-council/walsall,WC115-254,30/04/2020,Childrens,ACE CARS & MINIBUSES LTD,24/04/2020,243.10,52000-WITH DRIVER-HIRE OF VEHICLES,HOME TO SCHOOL TRANSPORT,Transport,Revenue
Walsall Council,http://opendatacommunities.org/id/metropolitan-district-council/walsall,WC115-255,30/04/2020,Childrens,ACE CARS & MINIBUSES LTD,24/04/2020,250.00,52000-WITH DRIVER-HIRE OF VEHICLES,HOME TO SCHOOL TRANSPORT,Transport,Revenue
Walsall Council,http://opendatacommunities.org/id/metropolitan-district-council/walsall,WC115-256,30/04/2020,Childrens,ACE CARS & MINIBUSES LTD,24/04/2020,275.00,52000-WITH DRIVER-HIRE OF VEHICLES,HOME TO SCHOOL TRANSPORT,Transport,Revenue
Walsall Council,http://opendatacommunities.org/id/metropolitan-district-council/walsall,WC115-257,30/04/2020,Childrens,ACE CARS & MINIBUSES LTD,24/04/2020,275.00,52000-WITH DRIVER-HIRE OF VEHICLES,HOME TO SCHOOL TRANSPORT,Transport,Revenue
Walsall Council,http://opendatacommunities.org/id/metropolitan-district-council/walsall,WC115-258,30/04/2020,Childrens,ACE CARS & MINIBUSES LTD,24/04/2020,280.00,52000-WITH DRIVER-HIRE OF VEHICLES,HOME TO SCHOOL TRANSPORT,Transport,Revenue
Walsall Council,http://opendatacommunities.org/id/metropolitan-district-council/walsall,WC115-259,30/04/2020,Childrens,ACE CARS & MINIBUSES LTD,24/04/2020,290.00,52000-WITH DRIVER-HIRE OF VEHICLES,HOME TO SCHOOL TRANSPORT,Transport,Revenue
Walsall Council,http://opendatacommunities.org/id/metropolitan-district-council/walsall,WC115-260,30/04/2020,Childrens,ACE CARS & MINIBUSES LTD,24/04/2020,312.50,52000-WITH DRIVER-HIRE OF VEHICLES,HOME TO SCHOOL TRANSPORT,Transport,Revenue
Walsall Council,http://opendatacommunities.org/id/metropolitan-district-council/walsall,WC115-261,30/04/2020,Childrens,ACE CARS & MINIBUSES LTD,24/04/2020,312.50,52000-WITH DRIVER-HIRE OF VEHICLES,HOME TO SCHOOL TRANSPORT,Transport,Revenue
Walsall Council,http://opendatacommunities.org/id/metropolitan-district-council/walsall,WC115-262,30/04/2020,Childrens,ACE CARS & MINIBUSES LTD,24/04/2020,312.50,52000-WITH DRIVER-HIRE OF VEHICLES,HOME TO SCHOOL TRANSPORT,Transport,Revenue
Walsall Council,http://opendatacommunities.org/id/metropolitan-district-council/walsall,WC115-263,30/04/2020,Childrens,ACE CARS & MINIBUSES LTD,24/04/2020,325.00,52000-WITH DRIVER-HIRE OF VEHICLES,HOME TO SCHOOL TRANSPORT,Transport,Revenue
Walsall Council,http://opendatacommunities.org/id/metropolitan-district-council/walsall,WC115-264,30/04/2020,Childrens,ACE CARS & MINIBUSES LTD,24/04/2020,325.00,52000-WITH DRIVER-HIRE OF VEHICLES,HOME TO SCHOOL TRANSPORT,Transport,Revenue
Walsall Council,http://opendatacommunities.org/id/metropolitan-district-council/walsall,WC115-265,30/04/2020,Childrens,ACE CARS & MINIBUSES LTD,24/04/2020,350.00,52000-WITH DRIVER-HIRE OF VEHICLES,HOME TO SCHOOL TRANSPORT,Transport,Revenue
Walsall Council,http://opendatacommunities.org/id/metropolitan-district-council/walsall,WC115-266,30/04/2020,Childrens,ACE CARS & MINIBUSES LTD,24/04/2020,350.00,52000-WITH DRIVER-HIRE OF VEHICLES,HOME TO SCHOOL TRANSPORT,Transport,Revenue
Walsall Council,http://opendatacommunities.org/id/metropolitan-district-council/walsall,WC115-267,30/04/2020,Childrens,ACE CARS & MINIBUSES LTD,24/04/2020,375.00,52000-WITH DRIVER-HIRE OF VEHICLES,HOME TO SCHOOL TRANSPORT,Transport,Revenue
Walsall Council,http://opendatacommunities.org/id/metropolitan-district-council/walsall,WC115-268,30/04/2020,Childrens,ACE CARS & MINIBUSES LTD,24/04/2020,390.00,52000-WITH DRIVER-HIRE OF VEHICLES,HOME TO SCHOOL TRANSPORT,Transport,Revenue
Walsall Council,http://opendatacommunities.org/id/metropolitan-district-council/walsall,WC115-269,30/04/2020,Childrens,ACE CARS & MINIBUSES LTD,24/04/2020,400.00,52000-WITH DRIVER-HIRE OF VEHICLES,HOME TO SCHOOL TRANSPORT,Transport,Revenue
Walsall Council,http://opendatacommunities.org/id/metropolitan-district-council/walsall,WC115-270,30/04/2020,Childrens,ACE CARS & MINIBUSES LTD,24/04/2020,440.00,52000-WITH DRIVER-HIRE OF VEHICLES,HOME TO SCHOOL TRANSPORT,Transport,Revenue
Walsall Council,http://opendatacommunities.org/id/metropolitan-district-council/walsall,WC115-271,30/04/2020,Childrens,ACE CARS & MINIBUSES LTD,24/04/2020,500.00,52000-WITH DRIVER-HIRE OF VEHICLES,HOME TO SCHOOL TRANSPORT,Transport,Revenue
Walsall Council,http://opendatacommunities.org/id/metropolitan-district-council/walsall,WC115-272,30/04/2020,Childrens,ACE CARS & MINIBUSES LTD,24/04/2020,562.50,52000-WITH DRIVER-HIRE OF VEHICLES,HOME TO SCHOOL TRANSPORT,Transport,Revenue
Walsall Council,http://opendatacommunities.org/id/metropolitan-district-council/walsall,WC115-273,30/04/2020,Childrens,ACE CARS & MINIBUSES LTD,24/04/2020,580.00,52000-WITH DRIVER-HIRE OF VEHICLES,HOME TO SCHOOL TRANSPORT,Transport,Revenue
Walsall Council,http://opendatacommunities.org/id/metropolitan-district-council/walsall,WC115-274,30/04/2020,Childrens,ACE CARS & MINIBUSES LTD,24/04/2020,650.00,52000-WITH DRIVER-HIRE OF VEHICLES,HOME TO SCHOOL TRANSPORT,Transport,Revenue
Walsall Council,http://opendatacommunities.org/id/metropolitan-district-council/walsall,WC115-275,30/04/2020,Childrens,ACE CARS & MINIBUSES LTD,24/04/2020,650.00,52000-WITH DRIVER-HIRE OF VEHICLES,HOME TO SCHOOL TRANSPORT,Transport,Revenue
Walsall Council,http://opendatacommunities.org/id/metropolitan-district-council/walsall,WC115-276,30/04/2020,Childrens,ACE CARS & MINIBUSES LTD,24/04/2020,700.00,52000-WITH DRIVER-HIRE OF VEHICLES,HOME TO SCHOOL TRANSPORT,Transport,Revenue
Walsall Council,http://opendatacommunities.org/id/metropolitan-district-council/walsall,WC115-277,30/04/2020,Childrens,ACE CARS & MINIBUSES LTD,24/04/2020,700.00,52000-WITH DRIVER-HIRE OF VEHICLES,HOME TO SCHOOL TRANSPORT,Transport,Revenue
Walsall Council,http://opendatacommunities.org/id/metropolitan-district-council/walsall,WC115-278,30/04/2020,Childrens,ACE CARS & MINIBUSES LTD,24/04/2020,750.00,52000-WITH DRIVER-HIRE OF VEHICLES,HOME TO SCHOOL TRANSPORT,Transport,Revenue
Walsall Council,http://opendatacommunities.org/id/metropolitan-district-council/walsall,WC115-279,30/04/2020,Childrens,ACE CARS & MINIBUSES LTD,24/04/2020,770.00,52000-WITH DRIVER-HIRE OF VEHICLES,HOME TO SCHOOL TRANSPORT,Transport,Revenue
Walsall Council,http://opendatacommunities.org/id/metropolitan-district-council/walsall,WC115-280,30/04/2020,Childrens,ACE CARS & MINIBUSES LTD,24/04/2020,780.00,52000-WITH DRIVER-HIRE OF VEHICLES,HOME TO SCHOOL TRANSPORT,Transport,Revenue
Walsall Council,http://opendatacommunities.org/id/metropolitan-district-council/walsall,WC115-281,30/04/2020,Childrens,ACE CARS & MINIBUSES LTD,24/04/2020,887.50,52000-WITH DRIVER-HIRE OF VEHICLES,HOME TO SCHOOL TRANSPORT,Transport,Revenue
Walsall Council,http://opendatacommunities.org/id/metropolitan-district-council/walsall,WC115-282,30/04/2020,Childrens,ACE CARS & MINIBUSES LTD,24/04/2020,920.00,52000-WITH DRIVER-HIRE OF VEHICLES,HOME TO SCHOOL TRANSPORT,Transport,Revenue
Walsall Council,http://opendatacommunities.org/id/metropolitan-district-council/walsall,WC115-283,30/04/2020,Childrens,ACE CARS & MINIBUSES LTD,24/04/2020,"1,035.00",52000-WITH DRIVER-HIRE OF VEHICLES,HOME TO SCHOOL TRANSPORT,Transport,Revenue
Walsall Council,http://opendatacommunities.org/id/metropolitan-district-council/walsall,WC115-284,30/04/2020,Childrens,ACE CARS & MINIBUSES LTD,24/04/2020,"1,035.00",52000-WITH DRIVER-HIRE OF VEHICLES,HOME TO SCHOOL TRANSPORT,Transport,Revenue
Walsall Council,http://opendatacommunities.org/id/metropolitan-district-council/walsall,WC115-285,30/04/2020,Childrens,ACE CARS & MINIBUSES LTD,24/04/2020,"1,078.00",52000-WITH DRIVER-HIRE OF VEHICLES,HOME TO SCHOOL TRANSPORT,Transport,Revenue
Walsall Council,http://opendatacommunities.org/id/metropolitan-district-council/walsall,WC115-286,30/04/2020,Childrens,ACE CARS & MINIBUSES LTD,24/04/2020,"1,100.00",52000-WITH DRIVER-HIRE OF VEHICLES,HOME TO SCHOOL TRANSPORT,Transport,Revenue
Walsall Council,http://opendatacommunities.org/id/metropolitan-district-council/walsall,WC115-287,30/04/2020,Childrens,ACE CARS & MINIBUSES LTD,24/04/2020,"1,148.00",52000-WITH DRIVER-HIRE OF VEHICLES,HOME TO SCHOOL TRANSPORT,Transport,Revenue
Walsall Council,http://opendatacommunities.org/id/metropolitan-district-council/walsall,WC115-288,30/04/2020,Childrens,ACE CARS & MINIBUSES LTD,24/04/2020,"1,201.75",52000-WITH DRIVER-HIRE OF VEHICLES,HOME TO SCHOOL TRANSPORT,Transport,Revenue
Walsall Council,http://opendatacommunities.org/id/metropolitan-district-council/walsall,WC115-289,30/04/2020,Childrens,ACE CARS & MINIBUSES LTD,24/04/2020,"1,201.75",52000-WITH DRIVER-HIRE OF VEHICLES,HOME TO SCHOOL TRANSPORT,Transport,Revenue
Walsall Council,http://opendatacommunities.org/id/metropolitan-district-council/walsall,WC115-290,30/04/2020,Childrens,ACE CARS & MINIBUSES LTD,24/04/2020,"1,264.90",52000-WITH DRIVER-HIRE OF VEHICLES,HOME TO SCHOOL TRANSPORT,Transport,Revenue
Walsall Council,http://opendatacommunities.org/id/metropolitan-district-council/walsall,WC115-291,30/04/2020,Childrens,ACE CARS & MINIBUSES LTD,24/04/2020,"1,282.25",52000-WITH DRIVER-HIRE OF VEHICLES,HOME TO SCHOOL TRANSPORT,Transport,Revenue
Walsall Council,http://opendatacommunities.org/id/metropolitan-district-council/walsall,WC115-292,30/04/2020,Childrens,ACE CARS & MINIBUSES LTD,24/04/2020,"1,374.90",52000-WITH DRIVER-HIRE OF VEHICLES,HOME TO SCHOOL TRANSPORT,Transport,Revenue
Walsall Council,http://opendatacommunities.org/id/metropolitan-district-council/walsall,WC115-293,30/04/2020,Childrens,ACE CARS & MINIBUSES LTD,24/04/2020,"1,380.00",52000-WITH DRIVER-HIRE OF VEHICLES,HOME TO SCHOOL TRANSPORT,Transport,Revenue
Walsall Council,http://opendatacommunities.org/id/metropolitan-district-council/walsall,WC115-294,30/04/2020,Childrens,ACE CARS & MINIBUSES LTD,24/04/2020,"1,495.00",52000-WITH DRIVER-HIRE OF VEHICLES,HOME TO SCHOOL TRANSPORT,Transport,Revenue
Walsall Council,http://opendatacommunities.org/id/metropolitan-district-council/walsall,WC115-295,30/04/2020,Childrens,ACE CARS & MINIBUSES LTD,24/04/2020,"1,518.00",52000-WITH DRIVER-HIRE OF VEHICLES,HOME TO SCHOOL TRANSPORT,Transport,Revenue
Walsall Council,http://opendatacommunities.org/id/metropolitan-district-council/walsall,WC115-296,30/04/2020,Childrens,ACE CARS & MINIBUSES LTD,24/04/2020,"1,543.90",52000-WITH DRIVER-HIRE OF VEHICLES,HOME TO SCHOOL TRANSPORT,Transport,Revenue
Walsall Council,http://opendatacommunities.org/id/metropolitan-district-council/walsall,WC115-297,30/04/2020,Childrens,ACE CARS & MINIBUSES LTD,24/04/2020,"1,545.00",52000-WITH DRIVER-HIRE OF VEHICLES,HOME TO SCHOOL TRANSPORT,Transport,Revenue
Walsall Council,http://opendatacommunities.org/id/metropolitan-district-council/walsall,WC115-298,30/04/2020,Childrens,ACE CARS & MINIBUSES LTD,24/04/2020,"1,699.50",52000-WITH DRIVER-HIRE OF VEHICLES,HOME TO SCHOOL TRANSPORT,Transport,Revenue
Walsall Council,http://opendatacommunities.org/id/metropolitan-district-council/walsall,WC115-299,30/04/2020,Childrens,ACE CARS & MINIBUSES LTD,24/04/2020,"1,875.00",52000-WITH DRIVER-HIRE OF VEHICLES,HOME TO SCHOOL TRANSPORT,Transport,Revenue
Walsall Council,http://opendatacommunities.org/id/metropolitan-district-council/walsall,WC115-300,30/04/2020,Childrens,ACE CARS & MINIBUSES LTD,24/04/2020,"2,062.50",52000-WITH DRIVER-HIRE OF VEHICLES,HOME TO SCHOOL TRANSPORT,Transport,Revenue
Walsall Council,http://opendatacommunities.org/id/metropolitan-district-council/walsall,WC115-301,30/04/2020,Childrens,ACE CARS & MINIBUSES LTD,24/04/2020,"2,188.00",52000-WITH DRIVER-HIRE OF VEHICLES,HOME TO SCHOOL TRANSPORT,Transport,Revenue
Walsall Council,http://opendatacommunities.org/id/metropolitan-district-council/walsall,WC115-302,30/04/2020,Adult Social Care,ACEPAY LTD (COTTAGE NUR HOME),06/04/2020,"1,774.96",73500-RESIDENTIAL,PHYSICAL SUPPORT,Third Party Payments,Revenue
Walsall Council,http://opendatacommunities.org/id/metropolitan-district-council/walsall,WC115-303,30/04/2020,Adult Social Care,ACEPAY LTD (COTTAGE NUR HOME),06/04/2020,"1,914.04",73502-NURSING,PHYSICAL SUPPORT,Third Party Payments,Revenue
Walsall Council,http://opendatacommunities.org/id/metropolitan-district-council/walsall,WC115-304,30/04/2020,Adult Social Care,ACEPAY LTD (COTTAGE NUR HOME),06/04/2020,"1,972.24",73501-RESIDENTIAL EMI,PHYSICAL SUPPORT,Third Party Payments,Revenue
Walsall Council,http://opendatacommunities.org/id/metropolitan-district-council/walsall,WC115-305,30/04/2020,Adult Social Care,ACEPAY LTD (COTTAGE NUR HOME),06/04/2020,"2,143.72",73502-NURSING,PHYSICAL SUPPORT,Third Party Payments,Revenue
Walsall Council,http://opendatacommunities.org/id/metropolitan-district-council/walsall,WC115-306,30/04/2020,Adult Social Care,ACEPAY LTD (COTTAGE NUR HOME),06/04/2020,"2,143.72",73502-NURSING,SUPPORT WITH MEMORY & COGNITION,Third Party Payments,Revenue
Walsall Council,http://opendatacommunities.org/id/metropolitan-district-council/walsall,WC115-307,30/04/2020,Adult Social Care,ACEPAY LTD (COTTAGE NUR HOME),06/04/2020,"2,143.72",73502-NURSING,SUPPORT WITH MEMORY & COGNITION,Third Party Payments,Revenue
Walsall Council,http://opendatacommunities.org/id/metropolitan-district-council/walsall,WC115-308,30/04/2020,Adult Social Care,ACEPAY LTD (COTTAGE NUR HOME),06/04/2020,"2,143.72",73502-NURSING,PHYSICAL SUPPORT,Third Party Payments,Revenue
Walsall Council,http://opendatacommunities.org/id/metropolitan-district-council/walsall,WC115-309,30/04/2020,Adult Social Care,ACEPAY LTD (COTTAGE NUR HOME),06/04/2020,"2,143.72",73502-NURSING,PHYSICAL SUPPORT,Third Party Payments,Revenue
Walsall Council,http://opendatacommunities.org/id/metropolitan-district-council/walsall,WC115-310,30/04/2020,Adult Social Care,ACEPAY LTD (COTTAGE NUR HOME),06/04/2020,"2,143.72",73502-NURSING,PHYSICAL SUPPORT,Third Party Payments,Revenue
Walsall Council,http://opendatacommunities.org/id/metropolitan-district-council/walsall,WC115-311,30/04/2020,Adult Social Care,ACEPAY LTD (COTTAGE NUR HOME),06/04/2020,"2,143.72",73502-NURSING,SOCIAL SUPPORT,Third Party Payments,Revenue
Walsall Council,http://opendatacommunities.org/id/metropolitan-district-council/walsall,WC115-312,30/04/2020,Adult Social Care,ACEPAY LTD (COTTAGE NUR HOME),06/04/2020,"2,143.72",73502-NURSING,PHYSICAL SUPPORT,Third Party Payments,Revenue
Walsall Council,http://opendatacommunities.org/id/metropolitan-district-council/walsall,WC115-313,30/04/2020,Adult Social Care,ACEPAY LTD (COTTAGE NUR HOME),06/04/2020,"2,143.72",73502-NURSING,PHYSICAL SUPPORT,Third Party Payments,Revenue
Walsall Council,http://opendatacommunities.org/id/metropolitan-district-council/walsall,WC115-314,30/04/2020,Adult Social Care,ACEPAY LTD (COTTAGE NUR HOME),06/04/2020,"2,143.72",73502-NURSING,PHYSICAL SUPPORT,Third Party Payments,Revenue
Walsall Council,http://opendatacommunities.org/id/metropolitan-district-council/walsall,WC115-315,30/04/2020,Adult Social Care,ACEPAY LTD (COTTAGE NUR HOME),06/04/2020,"2,143.72",73502-NURSING,SUPPORT WITH MEMORY & COGNITION,Third Party Payments,Revenue
Walsall Council,http://opendatacommunities.org/id/metropolitan-district-council/walsall,WC115-316,30/04/2020,Adult Social Care,ACEPAY LTD (COTTAGE NUR HOME),06/04/2020,"2,343.72",73502-NURSING,PHYSICAL SUPPORT,Third Party Payments,Revenue
Walsall Council,http://opendatacommunities.org/id/metropolitan-district-council/walsall,WC115-317,30/04/2020,Childrens,ACORN FOSTERING SERVICES LTD,17/04/2020,"2,655.71",74037-INDEPENDENT FOSTER CARE-OTH AGENCY PROVISION,EXTERNAL FOSTER CARE PROVISION,Third Party Payments,Revenue
Walsall Council,http://opendatacommunities.org/id/metropolitan-district-council/walsall,WC115-318,30/04/2020,Adult Social Care,ACTION ON HEARING LOSS,07/04/2020,252.00,73508-COMMUNITY SUPPORTED LIVING/SUPPORTED ACCOMMODATION,MENTAL HEALTH SUPPORT,Third Party Payments,Revenue
Walsall Council,http://opendatacommunities.org/id/metropolitan-district-council/walsall,WC115-319,30/04/2020,Adult Social Care,ACTION ON HEARING LOSS,21/04/2020,504.00,73508-COMMUNITY SUPPORTED LIVING/SUPPORTED ACCOMMODATION,MENTAL HEALTH SUPPORT,Third Party Payments,Revenue
Walsall Council,http://opendatacommunities.org/id/metropolitan-district-council/walsall,WC115-320,30/04/2020,Adult Social Care,ACTION ON HEARING LOSS,27/04/2020,"1,008.00",73508-COMMUNITY SUPPORTED LIVING/SUPPORTED ACCOMMODATION,MENTAL HEALTH SUPPORT,Third Party Payments,Revenue
Walsall Council,http://opendatacommunities.org/id/metropolitan-district-council/walsall,WC115-321,30/04/2020,Childrens,ACTIVE CARE SOLUTIONS LTD,17/04/2020,"2,662.80",74037-INDEPENDENT FOSTER CARE-OTH AGENCY PROVISION,EXTERNAL FOSTER CARE PROVISION,Third Party Payments,Revenue
Walsall Council,http://opendatacommunities.org/id/metropolitan-district-council/walsall,WC115-322,30/04/2020,Childrens,ACTIVE CARE SOLUTIONS LTD,17/04/2020,"3,220.00",74037-INDEPENDENT FOSTER CARE-OTH AGENCY PROVISION,EXTERNAL FOSTER CARE PROVISION,Third Party Payments,Revenue
Walsall Council,http://opendatacommunities.org/id/metropolitan-district-council/walsall,WC115-323,30/04/2020,Childrens,ACTIVE CARE SOLUTIONS LTD,17/04/2020,"6,106.00",74037-INDEPENDENT FOSTER CARE-OTH AGENCY PROVISION,EXTERNAL FOSTER CARE PROVISION,Third Party Payments,Revenue
Walsall Council,http://opendatacommunities.org/id/metropolitan-district-council/walsall,WC115-324,30/04/2020,Adult Social Care,REDACTED,06/04/2020,451.80,73506-DIRECT PAYMENT,LEARNING DISABILITY SUPPORT,Third Party Payments,Revenue
Walsall Council,http://opendatacommunities.org/id/metropolitan-district-council/walsall,WC115-325,30/04/2020,Childrens,ADOPTION UK,07/04/2020,"2,500.00",63000-PROFESSIONAL FEES AND SERVICES,FAMILY PLACEMENTS,Supplies & Services,Revenue
Walsall Council,http://opendatacommunities.org/id/metropolitan-district-council/walsall,WC115-326,30/04/2020,Childrens,REDACTED,06/04/2020,333.12,74510-RESIDENTS ORDERS,ADOPTION ALLOWANCES,Third Party Payments,Revenue
Walsall Council,http://opendatacommunities.org/id/metropolitan-district-council/walsall,WC115-327,30/04/2020,Childrens,REDACTED,06/04/2020,361.12,74510-RESIDENTS ORDERS,ADOPTION ALLOWANCES,Third Party Payments,Revenue
Walsall Council,http://opendatacommunities.org/id/metropolitan-district-council/walsall,WC115-328,30/04/2020,Adult Social Care,REDACTED,06/04/2020,"2,083.20",73506-DIRECT PAYMENT,LEARNING DISABILITY SUPPORT,Third Party Payments,Revenue
Walsall Council,http://opendatacommunities.org/id/metropolitan-district-council/walsall,WC115-329,30/04/2020,Adult Social Care,ADVANCE HEALTH CARE (UK) LTD,01/04/2020,-322.43,73019-PSE'S-PRIV CONTRACTOR FEES,INTERMEDIATE CARE SERVICE,Third Party Payments,Revenue
Walsall Council,http://opendatacommunities.org/id/metropolitan-district-council/walsall,WC115-330,30/04/2020,Adult Social Care,ADVANCE HEALTH CARE (UK) LTD,03/04/2020,250.78,73025-PROFESSIONAL SERVICES-PRIV CONTRACTOR & OTHER AGENCIES,INTERMEDIATE CARE SERVICE,Third Party Payments,Revenue
Walsall Council,http://opendatacommunities.org/id/metropolitan-district-council/walsall,WC115-331,30/04/2020,Adult Social Care,ADVANCE HEALTH CARE (UK) LTD,08/04/2020,250.78,73025-PROFESSIONAL SERVICES-PRIV CONTRACTOR & OTHER AGENCIES,INTERMEDIATE CARE SERVICE,Third Party Payments,Revenue
Walsall Council,http://opendatacommunities.org/id/metropolitan-district-council/walsall,WC115-332,30/04/2020,Adult Social Care,ADVANCE HEALTH CARE (UK) LTD,07/04/2020,268.70,73507-DOMICILIARY CARE,PHYSICAL SUPPORT,Third Party Payments,Revenue
Walsall Council,http://opendatacommunities.org/id/metropolitan-district-council/walsall,WC115-333,30/04/2020,Adult Social Care,ADVANCE HEALTH CARE (UK) LTD,29/04/2020,270.03,73025-PROFESSIONAL SERVICES-PRIV CONTRACTOR & OTHER AGENCIES,INTERMEDIATE CARE SERVICE,Third Party Payments,Revenue
Walsall Council,http://opendatacommunities.org/id/metropolitan-district-council/walsall,WC115-334,30/04/2020,Adult Social Care,ADVANCE HEALTH CARE (UK) LTD,29/04/2020,270.03,73025-PROFESSIONAL SERVICES-PRIV CONTRACTOR & OTHER AGENCIES,INTERMEDIATE CARE SERVICE,Third Party Payments,Revenue
Walsall Council,http://opendatacommunities.org/id/metropolitan-district-council/walsall,WC115-335,30/04/2020,Adult Social Care,ADVANCE HEALTH CARE (UK) LTD,29/04/2020,270.03,73025-PROFESSIONAL SERVICES-PRIV CONTRACTOR & OTHER AGENCIES,INTERMEDIATE CARE SERVICE,Third Party Payments,Revenue
Walsall Council,http://opendatacommunities.org/id/metropolitan-district-council/walsall,WC115-336,30/04/2020,Adult Social Care,ADVANCE HEALTH CARE (UK) LTD,14/04/2020,274.40,73019-PSE'S-PRIV CONTRACTOR FEES,INTERMEDIATE CARE SERVICE,Third Party Payments,Revenue
Walsall Council,http://opendatacommunities.org/id/metropolitan-district-council/walsall,WC115-337,30/04/2020,Adult Social Care,ADVANCE HEALTH CARE (UK) LTD,20/04/2020,274.40,73019-PSE'S-PRIV CONTRACTOR FEES,INTERMEDIATE CARE SERVICE,Third Party Payments,Revenue
Walsall Council,http://opendatacommunities.org/id/metropolitan-district-council/walsall,WC115-338,30/04/2020,Adult Social Care,ADVANCE HEALTH CARE (UK) LTD,03/04/2020,275.85,73025-PROFESSIONAL SERVICES-PRIV CONTRACTOR & OTHER AGENCIES,INTERMEDIATE CARE SERVICE,Third Party Payments,Revenue
Walsall Council,http://opendatacommunities.org/id/metropolitan-district-council/walsall,WC115-339,30/04/2020,Adult Social Care,ADVANCE HEALTH CARE (UK) LTD,01/04/2020,282.24,73019-PSE'S-PRIV CONTRACTOR FEES,INTERMEDIATE CARE SERVICE,Third Party Payments,Revenue
Walsall Council,http://opendatacommunities.org/id/metropolitan-district-council/walsall,WC115-340,30/04/2020,Adult Social Care,ADVANCE HEALTH CARE (UK) LTD,21/04/2020,289.15,73507-DOMICILIARY CARE,PHYSICAL SUPPORT,Third Party Payments,Revenue
Walsall Council,http://opendatacommunities.org/id/metropolitan-district-council/walsall,WC115-341,30/04/2020,Adult Social Care,ADVANCE HEALTH CARE (UK) LTD,01/04/2020,290.08,73019-PSE'S-PRIV CONTRACTOR FEES,INTERMEDIATE CARE SERVICE,Third Party Payments,Revenue
Walsall Council,http://opendatacommunities.org/id/metropolitan-district-council/walsall,WC115-342,30/04/2020,Adult Social Care,ADVANCE HEALTH CARE (UK) LTD,08/04/2020,343.92,73025-PROFESSIONAL SERVICES-PRIV CONTRACTOR & OTHER AGENCIES,INTERMEDIATE CARE SERVICE,Third Party Payments,Revenue
Walsall Council,http://opendatacommunities.org/id/metropolitan-district-council/walsall,WC115-343,30/04/2020,Adult Social Care,ADVANCE HEALTH CARE (UK) LTD,14/04/2020,343.92,73025-PROFESSIONAL SERVICES-PRIV CONTRACTOR & OTHER AGENCIES,INTERMEDIATE CARE SERVICE,Third Party Payments,Revenue
Walsall Council,http://opendatacommunities.org/id/metropolitan-district-council/walsall,WC115-344,30/04/2020,Adult Social Care,ADVANCE HEALTH CARE (UK) LTD,14/04/2020,351.09,73025-PROFESSIONAL SERVICES-PRIV CONTRACTOR & OTHER AGENCIES,INTERMEDIATE CARE SERVICE,Third Party Payments,Revenue
Walsall Council,http://opendatacommunities.org/id/metropolitan-district-council/walsall,WC115-345,30/04/2020,Adult Social Care,ADVANCE HEALTH CARE (UK) LTD,01/04/2020,352.80,73019-PSE'S-PRIV CONTRACTOR FEES,INTERMEDIATE CARE SERVICE,Third Party Payments,Revenue
Walsall Council,http://opendatacommunities.org/id/metropolitan-district-council/walsall,WC115-346,30/04/2020,Adult Social Care,ADVANCE HEALTH CARE (UK) LTD,14/04/2020,352.80,73019-PSE'S-PRIV CONTRACTOR FEES,INTERMEDIATE CARE SERVICE,Third Party Payments,Revenue
Walsall Council,http://opendatacommunities.org/id/metropolitan-district-council/walsall,WC115-347,30/04/2020,Adult Social Care,ADVANCE HEALTH CARE (UK) LTD,27/04/2020,353.72,73507-DOMICILIARY CARE,PHYSICAL SUPPORT,Third Party Payments,Revenue
Walsall Council,http://opendatacommunities.org/id/metropolitan-district-council/walsall,WC115-348,30/04/2020,Adult Social Care,ADVANCE HEALTH CARE (UK) LTD,24/04/2020,357.38,73019-PSE'S-PRIV CONTRACTOR FEES,INTERMEDIATE CARE SERVICE,Third Party Payments,Revenue
Walsall Council,http://opendatacommunities.org/id/metropolitan-district-council/walsall,WC115-349,30/04/2020,Adult Social Care,ADVANCE HEALTH CARE (UK) LTD,01/04/2020,364.56,73019-PSE'S-PRIV CONTRACTOR FEES,INTERMEDIATE CARE SERVICE,Third Party Payments,Revenue
Walsall Council,http://opendatacommunities.org/id/metropolitan-district-council/walsall,WC115-350,30/04/2020,Adult Social Care,ADVANCE HEALTH CARE (UK) LTD,14/04/2020,368.48,73019-PSE'S-PRIV CONTRACTOR FEES,INTERMEDIATE CARE SERVICE,Third Party Payments,Revenue
Walsall Council,http://opendatacommunities.org/id/metropolitan-district-council/walsall,WC115-351,30/04/2020,Adult Social Care,ADVANCE HEALTH CARE (UK) LTD,20/04/2020,370.34,73019-PSE'S-PRIV CONTRACTOR FEES,INTERMEDIATE CARE SERVICE,Third Party Payments,Revenue
Walsall Council,http://opendatacommunities.org/id/metropolitan-district-council/walsall,WC115-352,30/04/2020,Adult Social Care,ADVANCE HEALTH CARE (UK) LTD,14/04/2020,376.32,73019-PSE'S-PRIV CONTRACTOR FEES,INTERMEDIATE CARE SERVICE,Third Party Payments,Revenue
Walsall Council,http://opendatacommunities.org/id/metropolitan-district-council/walsall,WC115-353,30/04/2020,Adult Social Care,ADVANCE HEALTH CARE (UK) LTD,01/04/2020,384.16,73019-PSE'S-PRIV CONTRACTOR FEES,INTERMEDIATE CARE SERVICE,Third Party Payments,Revenue
Walsall Council,http://opendatacommunities.org/id/metropolitan-district-council/walsall,WC115-354,30/04/2020,Adult Social Care,ADVANCE HEALTH CARE (UK) LTD,09/04/2020,384.16,73019-PSE'S-PRIV CONTRACTOR FEES,INTERMEDIATE CARE SERVICE,Third Party Payments,Revenue
Walsall Council,http://opendatacommunities.org/id/metropolitan-district-council/walsall,WC115-355,30/04/2020,Adult Social Care,ADVANCE HEALTH CARE (UK) LTD,14/04/2020,392.00,73019-PSE'S-PRIV CONTRACTOR FEES,INTERMEDIATE CARE SERVICE,Third Party Payments,Revenue
Walsall Council,http://opendatacommunities.org/id/metropolitan-district-council/walsall,WC115-356,30/04/2020,Adult Social Care,ADVANCE HEALTH CARE (UK) LTD,14/04/2020,399.84,73019-PSE'S-PRIV CONTRACTOR FEES,INTERMEDIATE CARE SERVICE,Third Party Payments,Revenue
Walsall Council,http://opendatacommunities.org/id/metropolitan-district-council/walsall,WC115-357,30/04/2020,Adult Social Care,ADVANCE HEALTH CARE (UK) LTD,23/04/2020,412.02,73507-DOMICILIARY CARE,PHYSICAL SUPPORT,Third Party Payments,Revenue
Walsall Council,http://opendatacommunities.org/id/metropolitan-district-council/walsall,WC115-358,30/04/2020,Adult Social Care,ADVANCE HEALTH CARE (UK) LTD,01/04/2020,423.36,73019-PSE'S-PRIV CONTRACTOR FEES,INTERMEDIATE CARE SERVICE,Third Party Payments,Revenue
Walsall Council,http://opendatacommunities.org/id/metropolitan-district-council/walsall,WC115-359,30/04/2020,Adult Social Care,ADVANCE HEALTH CARE (UK) LTD,03/04/2020,451.40,73025-PROFESSIONAL SERVICES-PRIV CONTRACTOR & OTHER AGENCIES,INTERMEDIATE CARE SERVICE,Third Party Payments,Revenue
Walsall Council,http://opendatacommunities.org/id/metropolitan-district-council/walsall,WC115-360,30/04/2020,Adult Social Care,ADVANCE HEALTH CARE (UK) LTD,08/04/2020,451.40,73025-PROFESSIONAL SERVICES-PRIV CONTRACTOR & OTHER AGENCIES,INTERMEDIATE CARE SERVICE,Third Party Payments,Revenue
Walsall Council,http://opendatacommunities.org/id/metropolitan-district-council/walsall,WC115-361,30/04/2020,Adult Social Care,ADVANCE HEALTH CARE (UK) LTD,08/04/2020,451.40,73025-PROFESSIONAL SERVICES-PRIV CONTRACTOR & OTHER AGENCIES,INTERMEDIATE CARE SERVICE,Third Party Payments,Revenue
Walsall Council,http://opendatacommunities.org/id/metropolitan-district-council/walsall,WC115-362,30/04/2020,Adult Social Care,ADVANCE HEALTH CARE (UK) LTD,08/04/2020,451.40,73025-PROFESSIONAL SERVICES-PRIV CONTRACTOR & OTHER AGENCIES,INTERMEDIATE CARE SERVICE,Third Party Payments,Revenue
Walsall Council,http://opendatacommunities.org/id/metropolitan-district-council/walsall,WC115-363,30/04/2020,Adult Social Care,ADVANCE HEALTH CARE (UK) LTD,14/04/2020,451.40,73025-PROFESSIONAL SERVICES-PRIV CONTRACTOR & OTHER AGENCIES,INTERMEDIATE CARE SERVICE,Third Party Payments,Revenue
Walsall Council,http://opendatacommunities.org/id/metropolitan-district-council/walsall,WC115-364,30/04/2020,Adult Social Care,ADVANCE HEALTH CARE (UK) LTD,14/04/2020,451.40,73025-PROFESSIONAL SERVICES-PRIV CONTRACTOR & OTHER AGENCIES,INTERMEDIATE CARE SERVICE,Third Party Payments,Revenue
Walsall Council,http://opendatacommunities.org/id/metropolitan-district-council/walsall,WC115-365,30/04/2020,Adult Social Care,ADVANCE HEALTH CARE (UK) LTD,14/04/2020,451.40,73025-PROFESSIONAL SERVICES-PRIV CONTRACTOR & OTHER AGENCIES,INTERMEDIATE CARE SERVICE,Third Party Payments,Revenue
Walsall Council,http://opendatacommunities.org/id/metropolitan-district-council/walsall,WC115-366,30/04/2020,Adult Social Care,ADVANCE HEALTH CARE (UK) LTD,01/04/2020,454.72,73019-PSE'S-PRIV CONTRACTOR FEES,INTERMEDIATE CARE SERVICE,Third Party Payments,Revenue
Walsall Council,http://opendatacommunities.org/id/metropolitan-district-council/walsall,WC115-367,30/04/2020,Adult Social Care,ADVANCE HEALTH CARE (UK) LTD,03/04/2020,458.56,73025-PROFESSIONAL SERVICES-PRIV CONTRACTOR & OTHER AGENCIES,INTERMEDIATE CARE SERVICE,Third Party Payments,Revenue
Walsall Council,http://opendatacommunities.org/id/metropolitan-district-council/walsall,WC115-368,30/04/2020,Adult Social Care,ADVANCE HEALTH CARE (UK) LTD,03/04/2020,458.56,73025-PROFESSIONAL SERVICES-PRIV CONTRACTOR & OTHER AGENCIES,INTERMEDIATE CARE SERVICE,Third Party Payments,Revenue
Walsall Council,http://opendatacommunities.org/id/metropolitan-district-council/walsall,WC115-369,30/04/2020,Adult Social Care,ADVANCE HEALTH CARE (UK) LTD,08/04/2020,458.56,73025-PROFESSIONAL SERVICES-PRIV CONTRACTOR & OTHER AGENCIES,INTERMEDIATE CARE SERVICE,Third Party Payments,Revenue
Walsall Council,http://opendatacommunities.org/id/metropolitan-district-council/walsall,WC115-370,30/04/2020,Adult Social Care,ADVANCE HEALTH CARE (UK) LTD,08/04/2020,458.56,73025-PROFESSIONAL SERVICES-PRIV CONTRACTOR & OTHER AGENCIES,INTERMEDIATE CARE SERVICE,Third Party Payments,Revenue
Walsall Council,http://opendatacommunities.org/id/metropolitan-district-council/walsall,WC115-371,30/04/2020,Adult Social Care,ADVANCE HEALTH CARE (UK) LTD,23/04/2020,465.19,73507-DOMICILIARY CARE,PHYSICAL SUPPORT,Third Party Payments,Revenue
Walsall Council,http://opendatacommunities.org/id/metropolitan-district-council/walsall,WC115-372,30/04/2020,Adult Social Care,ADVANCE HEALTH CARE (UK) LTD,21/04/2020,476.15,73019-PSE'S-PRIV CONTRACTOR FEES,INTERMEDIATE CARE SERVICE,Third Party Payments,Revenue
Walsall Council,http://opendatacommunities.org/id/metropolitan-district-council/walsall,WC115-373,30/04/2020,Adult Social Care,ADVANCE HEALTH CARE (UK) LTD,21/04/2020,476.15,73019-PSE'S-PRIV CONTRACTOR FEES,INTERMEDIATE CARE SERVICE,Third Party Payments,Revenue
Walsall Council,http://opendatacommunities.org/id/metropolitan-district-council/walsall,WC115-374,30/04/2020,Adult Social Care,ADVANCE HEALTH CARE (UK) LTD,22/04/2020,476.15,73019-PSE'S-PRIV CONTRACTOR FEES,INTERMEDIATE CARE SERVICE,Third Party Payments,Revenue
Walsall Council,http://opendatacommunities.org/id/metropolitan-district-council/walsall,WC115-375,30/04/2020,Adult Social Care,ADVANCE HEALTH CARE (UK) LTD,23/04/2020,476.94,73507-DOMICILIARY CARE,PHYSICAL SUPPORT,Third Party Payments,Revenue
Walsall Council,http://opendatacommunities.org/id/metropolitan-district-council/walsall,WC115-376,30/04/2020,Adult Social Care,ADVANCE HEALTH CARE (UK) LTD,29/04/2020,486.05,73025-PROFESSIONAL SERVICES-PRIV CONTRACTOR & OTHER AGENCIES,INTERMEDIATE CARE SERVICE,Third Party Payments,Revenue
Walsall Council,http://opendatacommunities.org/id/metropolitan-district-council/walsall,WC115-377,30/04/2020,Adult Social Care,ADVANCE HEALTH CARE (UK) LTD,29/04/2020,486.05,73025-PROFESSIONAL SERVICES-PRIV CONTRACTOR & OTHER AGENCIES,INTERMEDIATE CARE SERVICE,Third Party Payments,Revenue
Walsall Council,http://opendatacommunities.org/id/metropolitan-district-council/walsall,WC115-378,30/04/2020,Adult Social Care,ADVANCE HEALTH CARE (UK) LTD,29/04/2020,486.05,73025-PROFESSIONAL SERVICES-PRIV CONTRACTOR & OTHER AGENCIES,INTERMEDIATE CARE SERVICE,Third Party Payments,Revenue
Walsall Council,http://opendatacommunities.org/id/metropolitan-district-council/walsall,WC115-379,30/04/2020,Adult Social Care,ADVANCE HEALTH CARE (UK) LTD,29/04/2020,486.05,73025-PROFESSIONAL SERVICES-PRIV CONTRACTOR & OTHER AGENCIES,INTERMEDIATE CARE SERVICE,Third Party Payments,Revenue
Walsall Council,http://opendatacommunities.org/id/metropolitan-district-council/walsall,WC115-380,30/04/2020,Adult Social Care,ADVANCE HEALTH CARE (UK) LTD,29/04/2020,486.05,73025-PROFESSIONAL SERVICES-PRIV CONTRACTOR & OTHER AGENCIES,INTERMEDIATE CARE SERVICE,Third Party Payments,Revenue
Walsall Council,http://opendatacommunities.org/id/metropolitan-district-council/walsall,WC115-381,30/04/2020,Adult Social Care,ADVANCE HEALTH CARE (UK) LTD,21/04/2020,490.48,73019-PSE'S-PRIV CONTRACTOR FEES,INTERMEDIATE CARE SERVICE,Third Party Payments,Revenue
Walsall Council,http://opendatacommunities.org/id/metropolitan-district-council/walsall,WC115-382,30/04/2020,Adult Social Care,ADVANCE HEALTH CARE (UK) LTD,01/04/2020,493.92,73019-PSE'S-PRIV CONTRACTOR FEES,INTERMEDIATE CARE SERVICE,Third Party Payments,Revenue
Walsall Council,http://opendatacommunities.org/id/metropolitan-district-council/walsall,WC115-383,30/04/2020,Adult Social Care,ADVANCE HEALTH CARE (UK) LTD,01/04/2020,493.92,73019-PSE'S-PRIV CONTRACTOR FEES,INTERMEDIATE CARE SERVICE,Third Party Payments,Revenue
Walsall Council,http://opendatacommunities.org/id/metropolitan-district-council/walsall,WC115-384,30/04/2020,Adult Social Care,ADVANCE HEALTH CARE (UK) LTD,01/04/2020,493.92,73019-PSE'S-PRIV CONTRACTOR FEES,INTERMEDIATE CARE SERVICE,Third Party Payments,Revenue
Walsall Council,http://opendatacommunities.org/id/metropolitan-district-council/walsall,WC115-385,30/04/2020,Adult Social Care,ADVANCE HEALTH CARE (UK) LTD,01/04/2020,493.92,73019-PSE'S-PRIV CONTRACTOR FEES,INTERMEDIATE CARE SERVICE,Third Party Payments,Revenue
Walsall Council,http://opendatacommunities.org/id/metropolitan-district-council/walsall,WC115-386,30/04/2020,Adult Social Care,ADVANCE HEALTH CARE (UK) LTD,09/04/2020,493.92,73019-PSE'S-PRIV CONTRACTOR FEES,INTERMEDIATE CARE SERVICE,Third Party Payments,Revenue
Walsall Council,http://opendatacommunities.org/id/metropolitan-district-council/walsall,WC115-387,30/04/2020,Adult Social Care,ADVANCE HEALTH CARE (UK) LTD,09/04/2020,493.92,73019-PSE'S-PRIV CONTRACTOR FEES,INTERMEDIATE CARE SERVICE,Third Party Payments,Revenue
Walsall Council,http://opendatacommunities.org/id/metropolitan-district-council/walsall,WC115-388,30/04/2020,Adult Social Care,ADVANCE HEALTH CARE (UK) LTD,14/04/2020,493.92,73019-PSE'S-PRIV CONTRACTOR FEES,INTERMEDIATE CARE SERVICE,Third Party Payments,Revenue
Walsall Council,http://opendatacommunities.org/id/metropolitan-district-council/walsall,WC115-389,30/04/2020,Adult Social Care,ADVANCE HEALTH CARE (UK) LTD,14/04/2020,493.92,73019-PSE'S-PRIV CONTRACTOR FEES,INTERMEDIATE CARE SERVICE,Third Party Payments,Revenue
Walsall Council,http://opendatacommunities.org/id/metropolitan-district-council/walsall,WC115-390,30/04/2020,Adult Social Care,ADVANCE HEALTH CARE (UK) LTD,14/04/2020,493.92,73019-PSE'S-PRIV CONTRACTOR FEES,INTERMEDIATE CARE SERVICE,Third Party Payments,Revenue
Walsall Council,http://opendatacommunities.org/id/metropolitan-district-council/walsall,WC115-391,30/04/2020,Adult Social Care,ADVANCE HEALTH CARE (UK) LTD,14/04/2020,493.92,73019-PSE'S-PRIV CONTRACTOR FEES,INTERMEDIATE CARE SERVICE,Third Party Payments,Revenue
Walsall Council,http://opendatacommunities.org/id/metropolitan-district-council/walsall,WC115-392,30/04/2020,Adult Social Care,ADVANCE HEALTH CARE (UK) LTD,14/04/2020,493.92,73019-PSE'S-PRIV CONTRACTOR FEES,INTERMEDIATE CARE SERVICE,Third Party Payments,Revenue
Walsall Council,http://opendatacommunities.org/id/metropolitan-district-council/walsall,WC115-393,30/04/2020,Adult Social Care,ADVANCE HEALTH CARE (UK) LTD,14/04/2020,493.92,73019-PSE'S-PRIV CONTRACTOR FEES,INTERMEDIATE CARE SERVICE,Third Party Payments,Revenue
Walsall Council,http://opendatacommunities.org/id/metropolitan-district-council/walsall,WC115-394,30/04/2020,Adult Social Care,ADVANCE HEALTH CARE (UK) LTD,14/04/2020,493.92,73019-PSE'S-PRIV CONTRACTOR FEES,INTERMEDIATE CARE SERVICE,Third Party Payments,Revenue
Walsall Council,http://opendatacommunities.org/id/metropolitan-district-council/walsall,WC115-395,30/04/2020,Adult Social Care,ADVANCE HEALTH CARE (UK) LTD,29/04/2020,501.48,73025-PROFESSIONAL SERVICES-PRIV CONTRACTOR & OTHER AGENCIES,INTERMEDIATE CARE SERVICE,Third Party Payments,Revenue
Walsall Council,http://opendatacommunities.org/id/metropolitan-district-council/walsall,WC115-396,30/04/2020,Adult Social Care,ADVANCE HEALTH CARE (UK) LTD,14/04/2020,501.76,73019-PSE'S-PRIV CONTRACTOR FEES,INTERMEDIATE CARE SERVICE,Third Party Payments,Revenue
Walsall Council,http://opendatacommunities.org/id/metropolitan-district-council/walsall,WC115-397,30/04/2020,Adult Social Care,ADVANCE HEALTH CARE (UK) LTD,29/04/2020,532.34,73025-PROFESSIONAL SERVICES-PRIV CONTRACTOR & OTHER AGENCIES,INTERMEDIATE CARE SERVICE,Third Party Payments,Revenue
Walsall Council,http://opendatacommunities.org/id/metropolitan-district-council/walsall,WC115-398,30/04/2020,Adult Social Care,ADVANCE HEALTH CARE (UK) LTD,01/04/2020,658.56,73019-PSE'S-PRIV CONTRACTOR FEES,INTERMEDIATE CARE SERVICE,Third Party Payments,Revenue
Walsall Council,http://opendatacommunities.org/id/metropolitan-district-council/walsall,WC115-399,30/04/2020,Adult Social Care,ADVANCE HEALTH CARE (UK) LTD,23/04/2020,660.37,73507-DOMICILIARY CARE,PHYSICAL SUPPORT,Third Party Payments,Revenue
Walsall Council,http://opendatacommunities.org/id/metropolitan-district-council/walsall,WC115-400,30/04/2020,Adult Social Care,ADVANCE HEALTH CARE (UK) LTD,01/04/2020,713.44,73019-PSE'S-PRIV CONTRACTOR FEES,INTERMEDIATE CARE SERVICE,Third Party Payments,Revenue
Walsall Council,http://opendatacommunities.org/id/metropolitan-district-council/walsall,WC115-401,30/04/2020,Adult Social Care,ADVANCE HEALTH CARE (UK) LTD,23/04/2020,774.45,73507-DOMICILIARY CARE,PHYSICAL SUPPORT,Third Party Payments,Revenue
Walsall Council,http://opendatacommunities.org/id/metropolitan-district-council/walsall,WC115-402,30/04/2020,Adult Social Care,ADVANCE HEALTH CARE (UK) LTD,27/04/2020,783.84,73507-DOMICILIARY CARE,PHYSICAL SUPPORT,Third Party Payments,Revenue
Walsall Council,http://opendatacommunities.org/id/metropolitan-district-council/walsall,WC115-403,30/04/2020,Adult Social Care,ADVANCE HEALTH CARE (UK) LTD,23/04/2020,795.63,73507-DOMICILIARY CARE,PHYSICAL SUPPORT,Third Party Payments,Revenue
Walsall Council,http://opendatacommunities.org/id/metropolitan-district-council/walsall,WC115-404,30/04/2020,Adult Social Care,ADVANCE HEALTH CARE (UK) LTD,23/04/2020,800.48,73507-DOMICILIARY CARE,SUPPORT WITH MEMORY & COGNITION,Third Party Payments,Revenue
Walsall Council,http://opendatacommunities.org/id/metropolitan-district-council/walsall,WC115-405,30/04/2020,Adult Social Care,ADVANCE HEALTH CARE (UK) LTD,23/04/2020,808.47,73507-DOMICILIARY CARE,PHYSICAL SUPPORT,Third Party Payments,Revenue
Walsall Council,http://opendatacommunities.org/id/metropolitan-district-council/walsall,WC115-406,30/04/2020,Adult Social Care,ADVANCE HEALTH CARE (UK) LTD,23/04/2020,981.45,73507-DOMICILIARY CARE,PHYSICAL SUPPORT,Third Party Payments,Revenue
Walsall Council,http://opendatacommunities.org/id/metropolitan-district-council/walsall,WC115-407,30/04/2020,Adult Social Care,ADVANCE HEALTH CARE (UK) LTD,23/04/2020,"1,032.91",73507-DOMICILIARY CARE,PHYSICAL SUPPORT,Third Party Payments,Revenue
Walsall Council,http://opendatacommunities.org/id/metropolitan-district-council/walsall,WC115-408,30/04/2020,Adult Social Care,ADVANCE HEALTH CARE (UK) LTD,23/04/2020,"1,107.92",73507-DOMICILIARY CARE,SOCIAL SUPPORT,Third Party Payments,Revenue
Walsall Council,http://opendatacommunities.org/id/metropolitan-district-council/walsall,WC115-409,30/04/2020,Adult Social Care,ADVANCE HEALTH CARE (UK) LTD,23/04/2020,"1,132.27",73507-DOMICILIARY CARE,PHYSICAL SUPPORT,Third Party Payments,Revenue
Walsall Council,http://opendatacommunities.org/id/metropolitan-district-council/walsall,WC115-410,30/04/2020,Adult Social Care,ADVANCE HEALTH CARE (UK) LTD,23/04/2020,"1,229.78",73507-DOMICILIARY CARE,PHYSICAL SUPPORT,Third Party Payments,Revenue
Walsall Council,http://opendatacommunities.org/id/metropolitan-district-council/walsall,WC115-411,30/04/2020,Adult Social Care,ADVANCE HEALTH CARE (UK) LTD,23/04/2020,"1,297.15",73507-DOMICILIARY CARE,PHYSICAL SUPPORT,Third Party Payments,Revenue
Walsall Council,http://opendatacommunities.org/id/metropolitan-district-council/walsall,WC115-412,30/04/2020,Adult Social Care,ADVANCE HEALTH CARE (UK) LTD,23/04/2020,"1,361.53",73507-DOMICILIARY CARE,PHYSICAL SUPPORT,Third Party Payments,Revenue
Walsall Council,http://opendatacommunities.org/id/metropolitan-district-council/walsall,WC115-413,30/04/2020,Adult Social Care,ADVANCE HEALTH CARE (UK) LTD,23/04/2020,"1,398.66",73507-DOMICILIARY CARE,PHYSICAL SUPPORT,Third Party Payments,Revenue
Walsall Council,http://opendatacommunities.org/id/metropolitan-district-council/walsall,WC115-414,30/04/2020,Adult Social Care,ADVANCE HEALTH CARE (UK) LTD,23/04/2020,"1,430.52",73507-DOMICILIARY CARE,PHYSICAL SUPPORT,Third Party Payments,Revenue
Walsall Council,http://opendatacommunities.org/id/metropolitan-district-council/walsall,WC115-415,30/04/2020,Adult Social Care,ADVANCE HEALTH CARE (UK) LTD,23/04/2020,"1,473.01",73507-DOMICILIARY CARE,PHYSICAL SUPPORT,Third Party Payments,Revenue
Walsall Council,http://opendatacommunities.org/id/metropolitan-district-council/walsall,WC115-416,30/04/2020,Adult Social Care,ADVANCE HEALTH CARE (UK) LTD,23/04/2020,"1,501.17",73507-DOMICILIARY CARE,PHYSICAL SUPPORT,Third Party Payments,Revenue
Walsall Council,http://opendatacommunities.org/id/metropolitan-district-council/walsall,WC115-417,30/04/2020,Adult Social Care,ADVANCE HEALTH CARE (UK) LTD,23/04/2020,"1,505.74",73507-DOMICILIARY CARE,PHYSICAL SUPPORT,Third Party Payments,Revenue
Walsall Council,http://opendatacommunities.org/id/metropolitan-district-council/walsall,WC115-418,30/04/2020,Adult Social Care,ADVANCE HEALTH CARE (UK) LTD,23/04/2020,"1,531.23",73507-DOMICILIARY CARE,PHYSICAL SUPPORT,Third Party Payments,Revenue
Walsall Council,http://opendatacommunities.org/id/metropolitan-district-council/walsall,WC115-419,30/04/2020,Adult Social Care,ADVANCE HEALTH CARE (UK) LTD,23/04/2020,"1,532.16",73507-DOMICILIARY CARE,SOCIAL SUPPORT,Third Party Payments,Revenue
Walsall Council,http://opendatacommunities.org/id/metropolitan-district-council/walsall,WC115-420,30/04/2020,Adult Social Care,ADVANCE HEALTH CARE (UK) LTD,23/04/2020,"1,544.35",73507-DOMICILIARY CARE,PHYSICAL SUPPORT,Third Party Payments,Revenue
Walsall Council,http://opendatacommunities.org/id/metropolitan-district-council/walsall,WC115-421,30/04/2020,Adult Social Care,ADVANCE HEALTH CARE (UK) LTD,23/04/2020,"1,548.93",73507-DOMICILIARY CARE,PHYSICAL SUPPORT,Third Party Payments,Revenue
Walsall Council,http://opendatacommunities.org/id/metropolitan-district-council/walsall,WC115-422,30/04/2020,Adult Social Care,ADVANCE HEALTH CARE (UK) LTD,23/04/2020,"1,569.51",73507-DOMICILIARY CARE,PHYSICAL SUPPORT,Third Party Payments,Revenue
Walsall Council,http://opendatacommunities.org/id/metropolitan-district-council/walsall,WC115-423,30/04/2020,Adult Social Care,ADVANCE HEALTH CARE (UK) LTD,23/04/2020,"1,585.79",73507-DOMICILIARY CARE,PHYSICAL SUPPORT,Third Party Payments,Revenue
Walsall Council,http://opendatacommunities.org/id/metropolitan-district-council/walsall,WC115-424,30/04/2020,Adult Social Care,ADVANCE HEALTH CARE (UK) LTD,23/04/2020,"1,596.26",73507-DOMICILIARY CARE,PHYSICAL SUPPORT,Third Party Payments,Revenue
Walsall Council,http://opendatacommunities.org/id/metropolitan-district-council/walsall,WC115-425,30/04/2020,Adult Social Care,ADVANCE HEALTH CARE (UK) LTD,23/04/2020,"1,611.55",73507-DOMICILIARY CARE,PHYSICAL SUPPORT,Third Party Payments,Revenue
Walsall Council,http://opendatacommunities.org/id/metropolitan-district-council/walsall,WC115-426,30/04/2020,Adult Social Care,ADVANCE HEALTH CARE (UK) LTD,23/04/2020,"1,653.03",73507-DOMICILIARY CARE,PHYSICAL SUPPORT,Third Party Payments,Revenue
Walsall Council,http://opendatacommunities.org/id/metropolitan-district-council/walsall,WC115-427,30/04/2020,Adult Social Care,ADVANCE HEALTH CARE (UK) LTD,23/04/2020,"1,691.65",73507-DOMICILIARY CARE,PHYSICAL SUPPORT,Third Party Payments,Revenue
Walsall Council,http://opendatacommunities.org/id/metropolitan-district-council/walsall,WC115-428,30/04/2020,Adult Social Care,ADVANCE HEALTH CARE (UK) LTD,23/04/2020,"1,706.57",73507-DOMICILIARY CARE,PHYSICAL SUPPORT,Third Party Payments,Revenue
Walsall Council,http://opendatacommunities.org/id/metropolitan-district-council/walsall,WC115-429,30/04/2020,Adult Social Care,ADVANCE HEALTH CARE (UK) LTD,23/04/2020,"1,746.98",73507-DOMICILIARY CARE,PHYSICAL SUPPORT,Third Party Payments,Revenue
Walsall Council,http://opendatacommunities.org/id/metropolitan-district-council/walsall,WC115-430,30/04/2020,Adult Social Care,ADVANCE HEALTH CARE (UK) LTD,23/04/2020,"1,747.76",73507-DOMICILIARY CARE,PHYSICAL SUPPORT,Third Party Payments,Revenue
Walsall Council,http://opendatacommunities.org/id/metropolitan-district-council/walsall,WC115-431,30/04/2020,Adult Social Care,ADVANCE HEALTH CARE (UK) LTD,23/04/2020,"1,853.81",73507-DOMICILIARY CARE,PHYSICAL SUPPORT,Third Party Payments,Revenue
Walsall Council,http://opendatacommunities.org/id/metropolitan-district-council/walsall,WC115-432,30/04/2020,Adult Social Care,ADVANCE HEALTH CARE (UK) LTD,23/04/2020,"1,919.31",73507-DOMICILIARY CARE,PHYSICAL SUPPORT,Third Party Payments,Revenue
Walsall Council,http://opendatacommunities.org/id/metropolitan-district-council/walsall,WC115-433,30/04/2020,Adult Social Care,ADVANCE HEALTH CARE (UK) LTD,23/04/2020,"1,989.14",73507-DOMICILIARY CARE,SOCIAL SUPPORT,Third Party Payments,Revenue
Walsall Council,http://opendatacommunities.org/id/metropolitan-district-council/walsall,WC115-434,30/04/2020,Adult Social Care,ADVANCE HEALTH CARE (UK) LTD,23/04/2020,"2,169.15",73507-DOMICILIARY CARE,PHYSICAL SUPPORT,Third Party Payments,Revenue
Walsall Council,http://opendatacommunities.org/id/metropolitan-district-council/walsall,WC115-435,30/04/2020,Adult Social Care,ADVANCE HEALTH CARE (UK) LTD,23/04/2020,"2,311.89",73507-DOMICILIARY CARE,PHYSICAL SUPPORT,Third Party Payments,Revenue
Walsall Council,http://opendatacommunities.org/id/metropolitan-district-council/walsall,WC115-436,30/04/2020,Adult Social Care,ADVANCE HEALTH CARE (UK) LTD,23/04/2020,"3,167.31",73507-DOMICILIARY CARE,PHYSICAL SUPPORT,Third Party Payments,Revenue
Walsall Council,http://opendatacommunities.org/id/metropolitan-district-council/walsall,WC115-437,30/04/2020,Adult Social Care,ADVANCE HEALTH CARE (UK) LTD,23/04/2020,"3,242.98",73507-DOMICILIARY CARE,SOCIAL SUPPORT,Third Party Payments,Revenue
Walsall Council,http://opendatacommunities.org/id/metropolitan-district-council/walsall,WC115-438,30/04/2020,Adult Social Care,ADVANCE HEALTH CARE (UK) LTD,24/04/2020,"61,386.01",73507-DOMICILIARY CARE,PHYSICAL SUPPORT,Third Party Payments,Revenue
Walsall Council,http://opendatacommunities.org/id/metropolitan-district-council/walsall,WC115-439,30/04/2020,Economy & Environment,ADVANCE PHARMA LTD T/A PLECK PHARMACY,27/04/2020,574.00,63253-PAYMENT TO CONTRACTOR,SMOKING CESSATION,Third Party Payments,Revenue
Walsall Council,http://opendatacommunities.org/id/metropolitan-district-council/walsall,WC115-440,30/04/2020,Childrens,ADVENTURELAND DAY NURSERY,01/04/2020,707.40,66505-OTHER-GRANTS TO OTHER ORGS,EARLY YEARS - 2 YR OLDS,Third Party Payments,Revenue
Walsall Council,http://opendatacommunities.org/id/metropolitan-district-council/walsall,WC115-441,30/04/2020,Childrens,ADVENTURELAND DAY NURSERY,01/04/2020,"3,890.25",66505-OTHER-GRANTS TO OTHER ORGS,EARLY YEARS - 2 YR OLDS,Third Party Payments,Revenue
Walsall Council,http://opendatacommunities.org/id/metropolitan-district-council/walsall,WC115-442,30/04/2020,Childrens,ADVENTURELAND DAY NURSERY,01/04/2020,"17,492.96",66505-OTHER-GRANTS TO OTHER ORGS,EARLY YEARS - 3 YR OLDS,Third Party Payments,Revenue
Walsall Council,http://opendatacommunities.org/id/metropolitan-district-council/walsall,WC115-443,30/04/2020,Adult Social Care,ADVINIA CARE HOMES LTD - HAMMERWICH HALL CARE HOME,06/04/2020,"12,819.56",73501-RESIDENTIAL EMI,PHYSICAL SUPPORT,Third Party Payments,Revenue
Walsall Council,http://opendatacommunities.org/id/metropolitan-district-council/walsall,WC115-444,30/04/2020,Adult Social Care,ADVINIA CARE HOMES LTD - HAMMERWICH HALL CARE HOME,06/04/2020,"17,052.29",73500-RESIDENTIAL,PHYSICAL SUPPORT,Third Party Payments,Revenue
Walsall Council,http://opendatacommunities.org/id/metropolitan-district-council/walsall,WC115-445,30/04/2020,Adult Social Care,ADVINIA CARE HOMES LTD - HAMMERWICH HALL CARE HOME,06/04/2020,"18,947.59",73501-RESIDENTIAL EMI,SOCIAL SUPPORT,Third Party Payments,Revenue
Walsall Council,http://opendatacommunities.org/id/metropolitan-district-council/walsall,WC115-446,30/04/2020,Adult Social Care,ADVOCACY MATTERS LIMITED,28/04/2020,"14,595.83",70000-SOCIAL SERVICES-FEES TO VOLUNTARY BODIES,OLDER PEOPLE SLA,Third Party Payments,Revenue
Walsall Council,http://opendatacommunities.org/id/metropolitan-district-council/walsall,WC115-447,30/04/2020,Economy & Environment,AEBI SCHMIDT UK LIMITED,20/04/2020,268.91,60500-GENERAL MATERIALS,FLEET,Supplies & Services,Revenue
Walsall Council,http://opendatacommunities.org/id/metropolitan-district-council/walsall,WC115-448,30/04/2020,Economy & Environment,AECOM LIMITED,08/04/2020,"5,435.93",01006-SITE WORKS MAIN CONTRACTORS,CFR 1334 WILLENHALL LAWN CEMETERY EXTENSION & LAND DEVELOPMENT,Capital,Capital
Walsall Council,http://opendatacommunities.org/id/metropolitan-district-council/walsall,WC115-449,30/04/2020,Economy & Environment,AECOM LIMITED,09/04/2020,"10,671.20",01001-OTHER CONSULTANTS FEES,CFR 1072 BLACK COUNTRY TRAIN STATIONS DEVELOPMENT FUNDING,Capital,Capital
Walsall Council,http://opendatacommunities.org/id/metropolitan-district-council/walsall,WC115-450,30/04/2020,Adult Social Care,REDACTED,06/04/2020,"2,413.78",73506-DIRECT PAYMENT,LEARNING DISABILITY SUPPORT,Third Party Payments,Revenue
Walsall Council,http://opendatacommunities.org/id/metropolitan-district-council/walsall,WC115-451,30/04/2020,Economy & Environment,ALDERBROOK HEALTHCARE LTD,29/04/2020,"4,117.00",63000-PROFESSIONAL FEES AND SERVICES,CORONERS SERVICE,Supplies & Services,Revenue
Walsall Council,http://opendatacommunities.org/id/metropolitan-district-council/walsall,WC115-452,30/04/2020,Economy & Environment,ALDERBROOK HEALTHCARE LTD,02/04/2020,"4,438.10",63000-PROFESSIONAL FEES AND SERVICES,CORONERS SERVICE,Supplies & Services,Revenue
Walsall Council,http://opendatacommunities.org/id/metropolitan-district-council/walsall,WC115-453,30/04/2020,Adult Social Care,ALDERGROVE MANOR LTD,06/04/2020,-476.04,73501-RESIDENTIAL EMI,PHYSICAL SUPPORT,Third Party Payments,Revenue
Walsall Council,http://opendatacommunities.org/id/metropolitan-district-council/walsall,WC115-454,30/04/2020,Adult Social Care,ALDERGROVE MANOR LTD,06/04/2020,22.86,73501-RESIDENTIAL EMI,MENTAL HEALTH SUPPORT,Third Party Payments,Revenue
Walsall Council,http://opendatacommunities.org/id/metropolitan-district-council/walsall,WC115-455,30/04/2020,Adult Social Care,ALDERGROVE MANOR LTD,06/04/2020,"1,972.24",73501-RESIDENTIAL EMI,MENTAL HEALTH SUPPORT,Third Party Payments,Revenue
Walsall Council,http://opendatacommunities.org/id/metropolitan-district-council/walsall,WC115-456,30/04/2020,Adult Social Care,ALDERGROVE MANOR LTD,06/04/2020,"1,972.24",73501-RESIDENTIAL EMI,PHYSICAL SUPPORT,Third Party Payments,Revenue
Walsall Council,http://opendatacommunities.org/id/metropolitan-district-council/walsall,WC115-457,30/04/2020,Adult Social Care,ALDERGROVE MANOR LTD,06/04/2020,"2,143.72",73502-NURSING,PHYSICAL SUPPORT,Third Party Payments,Revenue
Walsall Council,http://opendatacommunities.org/id/metropolitan-district-council/walsall,WC115-458,30/04/2020,Childrens,ALDRIDGE & BARONS LIMITED,24/04/2020,316.00,52000-WITH DRIVER-HIRE OF VEHICLES,HOME TO SCHOOL TRANSPORT,Transport,Revenue
Walsall Council,http://opendatacommunities.org/id/metropolitan-district-council/walsall,WC115-459,30/04/2020,Childrens,ALDRIDGE & BARONS LIMITED,24/04/2020,400.32,52000-WITH DRIVER-HIRE OF VEHICLES,HOME TO SCHOOL TRANSPORT,Transport,Revenue
Walsall Council,http://opendatacommunities.org/id/metropolitan-district-council/walsall,WC115-460,30/04/2020,Childrens,ALDRIDGE & BARONS LIMITED,24/04/2020,442.70,52000-WITH DRIVER-HIRE OF VEHICLES,HOME TO SCHOOL TRANSPORT,Transport,Revenue
Walsall Council,http://opendatacommunities.org/id/metropolitan-district-council/walsall,WC115-461,30/04/2020,Childrens,ALDRIDGE & BARONS LIMITED,24/04/2020,446.50,52000-WITH DRIVER-HIRE OF VEHICLES,HOME TO SCHOOL TRANSPORT,Transport,Revenue
Walsall Council,http://opendatacommunities.org/id/metropolitan-district-council/walsall,WC115-462,30/04/2020,Childrens,ALDRIDGE & BARONS LIMITED,24/04/2020,471.30,52000-WITH DRIVER-HIRE OF VEHICLES,HOME TO SCHOOL TRANSPORT,Transport,Revenue
Walsall Council,http://opendatacommunities.org/id/metropolitan-district-council/walsall,WC115-463,30/04/2020,Childrens,ALDRIDGE & BARONS LIMITED,24/04/2020,614.40,52000-WITH DRIVER-HIRE OF VEHICLES,HOME TO SCHOOL TRANSPORT,Transport,Revenue
Walsall Council,http://opendatacommunities.org/id/metropolitan-district-council/walsall,WC115-464,30/04/2020,Childrens,ALDRIDGE & BARONS LIMITED,24/04/2020,700.00,52000-WITH DRIVER-HIRE OF VEHICLES,HOME TO SCHOOL TRANSPORT,Transport,Revenue
Walsall Council,http://opendatacommunities.org/id/metropolitan-district-council/walsall,WC115-465,30/04/2020,Childrens,ALDRIDGE & BARONS LIMITED,24/04/2020,744.00,52000-WITH DRIVER-HIRE OF VEHICLES,HOME TO SCHOOL TRANSPORT,Transport,Revenue
Walsall Council,http://opendatacommunities.org/id/metropolitan-district-council/walsall,WC115-466,30/04/2020,Childrens,ALDRIDGE & BARONS LIMITED,24/04/2020,799.80,52000-WITH DRIVER-HIRE OF VEHICLES,HOME TO SCHOOL TRANSPORT,Transport,Revenue
Walsall Council,http://opendatacommunities.org/id/metropolitan-district-council/walsall,WC115-467,30/04/2020,Childrens,ALDRIDGE & BARONS LIMITED,24/04/2020,800.00,52000-WITH DRIVER-HIRE OF VEHICLES,HOME TO SCHOOL TRANSPORT,Transport,Revenue
Walsall Council,http://opendatacommunities.org/id/metropolitan-district-council/walsall,WC115-468,30/04/2020,Childrens,ALDRIDGE & BARONS LIMITED,24/04/2020,803.70,52000-WITH DRIVER-HIRE OF VEHICLES,HOME TO SCHOOL TRANSPORT,Transport,Revenue
Walsall Council,http://opendatacommunities.org/id/metropolitan-district-council/walsall,WC115-469,30/04/2020,Childrens,ALDRIDGE & BARONS LIMITED,24/04/2020,815.85,52000-WITH DRIVER-HIRE OF VEHICLES,HOME TO SCHOOL TRANSPORT,Transport,Revenue
Walsall Council,http://opendatacommunities.org/id/metropolitan-district-council/walsall,WC115-470,30/04/2020,Childrens,ALDRIDGE & BARONS LIMITED,24/04/2020,848.20,52000-WITH DRIVER-HIRE OF VEHICLES,HOME TO SCHOOL TRANSPORT,Transport,Revenue
Walsall Council,http://opendatacommunities.org/id/metropolitan-district-council/walsall,WC115-471,30/04/2020,Childrens,ALDRIDGE & BARONS LIMITED,24/04/2020,860.00,52000-WITH DRIVER-HIRE OF VEHICLES,HOME TO SCHOOL TRANSPORT,Transport,Revenue
Walsall Council,http://opendatacommunities.org/id/metropolitan-district-council/walsall,WC115-472,30/04/2020,Childrens,ALDRIDGE & BARONS LIMITED,24/04/2020,880.00,52000-WITH DRIVER-HIRE OF VEHICLES,HOME TO SCHOOL TRANSPORT,Transport,Revenue
Walsall Council,http://opendatacommunities.org/id/metropolitan-district-council/walsall,WC115-473,30/04/2020,Childrens,ALDRIDGE & BARONS LIMITED,24/04/2020,885.40,52000-WITH DRIVER-HIRE OF VEHICLES,HOME TO SCHOOL TRANSPORT,Transport,Revenue
Walsall Council,http://opendatacommunities.org/id/metropolitan-district-council/walsall,WC115-474,30/04/2020,Childrens,ALDRIDGE & BARONS LIMITED,24/04/2020,890.00,52000-WITH DRIVER-HIRE OF VEHICLES,HOME TO SCHOOL TRANSPORT,Transport,Revenue
Walsall Council,http://opendatacommunities.org/id/metropolitan-district-council/walsall,WC115-475,30/04/2020,Childrens,ALDRIDGE & BARONS LIMITED,24/04/2020,890.90,52000-WITH DRIVER-HIRE OF VEHICLES,HOME TO SCHOOL TRANSPORT,Transport,Revenue
Walsall Council,http://opendatacommunities.org/id/metropolitan-district-council/walsall,WC115-476,30/04/2020,Childrens,ALDRIDGE & BARONS LIMITED,24/04/2020,933.20,52000-WITH DRIVER-HIRE OF VEHICLES,HOME TO SCHOOL TRANSPORT,Transport,Revenue
Walsall Council,http://opendatacommunities.org/id/metropolitan-district-council/walsall,WC115-477,30/04/2020,Childrens,ALDRIDGE & BARONS LIMITED,24/04/2020,933.20,52000-WITH DRIVER-HIRE OF VEHICLES,HOME TO SCHOOL TRANSPORT,Transport,Revenue
Walsall Council,http://opendatacommunities.org/id/metropolitan-district-council/walsall,WC115-478,30/04/2020,Childrens,ALDRIDGE & BARONS LIMITED,24/04/2020,951.30,52000-WITH DRIVER-HIRE OF VEHICLES,HOME TO SCHOOL TRANSPORT,Transport,Revenue
Walsall Council,http://opendatacommunities.org/id/metropolitan-district-council/walsall,WC115-479,30/04/2020,Childrens,ALDRIDGE & BARONS LIMITED,24/04/2020,957.60,52000-WITH DRIVER-HIRE OF VEHICLES,HOME TO SCHOOL TRANSPORT,Transport,Revenue
Walsall Council,http://opendatacommunities.org/id/metropolitan-district-council/walsall,WC115-480,30/04/2020,Childrens,ALDRIDGE & BARONS LIMITED,24/04/2020,990.00,52000-WITH DRIVER-HIRE OF VEHICLES,HOME TO SCHOOL TRANSPORT,Transport,Revenue
Walsall Council,http://opendatacommunities.org/id/metropolitan-district-council/walsall,WC115-481,30/04/2020,Childrens,ALDRIDGE & BARONS LIMITED,24/04/2020,"1,013.46",52000-WITH DRIVER-HIRE OF VEHICLES,HOME TO SCHOOL TRANSPORT,Transport,Revenue
Walsall Council,http://opendatacommunities.org/id/metropolitan-district-council/walsall,WC115-482,30/04/2020,Childrens,ALDRIDGE & BARONS LIMITED,24/04/2020,"1,039.90",52000-WITH DRIVER-HIRE OF VEHICLES,HOME TO SCHOOL TRANSPORT,Transport,Revenue
Walsall Council,http://opendatacommunities.org/id/metropolitan-district-council/walsall,WC115-483,30/04/2020,Childrens,ALDRIDGE & BARONS LIMITED,24/04/2020,"1,057.50",52000-WITH DRIVER-HIRE OF VEHICLES,HOME TO SCHOOL TRANSPORT,Transport,Revenue
Walsall Council,http://opendatacommunities.org/id/metropolitan-district-council/walsall,WC115-484,30/04/2020,Childrens,ALDRIDGE & BARONS LIMITED,24/04/2020,"1,159.40",52000-WITH DRIVER-HIRE OF VEHICLES,HOME TO SCHOOL TRANSPORT,Transport,Revenue
Walsall Council,http://opendatacommunities.org/id/metropolitan-district-council/walsall,WC115-485,30/04/2020,Childrens,ALDRIDGE & BARONS LIMITED,24/04/2020,"1,166.40",52000-WITH DRIVER-HIRE OF VEHICLES,HOME TO SCHOOL TRANSPORT,Transport,Revenue
Walsall Council,http://opendatacommunities.org/id/metropolitan-district-council/walsall,WC115-486,30/04/2020,Childrens,ALDRIDGE & BARONS LIMITED,24/04/2020,"1,199.20",52000-WITH DRIVER-HIRE OF VEHICLES,HOME TO SCHOOL TRANSPORT,Transport,Revenue
Walsall Council,http://opendatacommunities.org/id/metropolitan-district-council/walsall,WC115-487,30/04/2020,Childrens,ALDRIDGE & BARONS LIMITED,24/04/2020,"1,274.00",52000-WITH DRIVER-HIRE OF VEHICLES,HOME TO SCHOOL TRANSPORT,Transport,Revenue
Walsall Council,http://opendatacommunities.org/id/metropolitan-district-council/walsall,WC115-488,30/04/2020,Childrens,ALDRIDGE & BARONS LIMITED,24/04/2020,"1,341.00",52000-WITH DRIVER-HIRE OF VEHICLES,HOME TO SCHOOL TRANSPORT,Transport,Revenue
Walsall Council,http://opendatacommunities.org/id/metropolitan-district-council/walsall,WC115-489,30/04/2020,Childrens,ALDRIDGE & BARONS LIMITED,24/04/2020,"1,580.00",52000-WITH DRIVER-HIRE OF VEHICLES,HOME TO SCHOOL TRANSPORT,Transport,Revenue
Walsall Council,http://opendatacommunities.org/id/metropolitan-district-council/walsall,WC115-490,30/04/2020,Resources and Transformation,ALDRIDGE CENTRAL COMM ASSOC,01/04/2020,"1,250.00",66500-GRANTS TO OTHER ORGS,COMMUNITY DEVELOPMENT ADDITIONAL PAYMENTS,Third Party Payments,Revenue
Walsall Council,http://opendatacommunities.org/id/metropolitan-district-council/walsall,WC115-491,30/04/2020,Adult Social Care,REDACTED,06/04/2020,"1,438.04",73506-DIRECT PAYMENT,PHYSICAL SUPPORT,Third Party Payments,Revenue
Walsall Council,http://opendatacommunities.org/id/metropolitan-district-council/walsall,WC115-492,30/04/2020,Economy & Environment,REDACTED,29/04/2020,360.00,63000-PROFESSIONAL FEES AND SERVICES,NAG - EDUCATION FORMAL,Supplies & Services,Revenue
Walsall Council,http://opendatacommunities.org/id/metropolitan-district-council/walsall,WC115-493,30/04/2020,Economy & Environment,REDACTED,20/04/2020,378.00,63000-PROFESSIONAL FEES AND SERVICES,EDUCATION INFORMAL,Supplies & Services,Revenue
Walsall Council,http://opendatacommunities.org/id/metropolitan-district-council/walsall,WC115-494,30/04/2020,Adult Social Care,ALEXANDRA HOUSE CARE SERVICES LTD T/A STONEBRIDGE NURSING HOME,06/04/2020,"7,188.60",73500-RESIDENTIAL,LEARNING DISABILITY SUPPORT,Third Party Payments,Revenue
Walsall Council,http://opendatacommunities.org/id/metropolitan-district-council/walsall,WC115-495,30/04/2020,Adult Social Care,REDACTED,06/04/2020,"1,899.28",73506-DIRECT PAYMENT,PHYSICAL SUPPORT,Third Party Payments,Revenue
Walsall Council,http://opendatacommunities.org/id/metropolitan-district-council/walsall,WC115-496,30/04/2020,Adult Social Care,REDACTED,06/04/2020,"11,158.88",73506-DIRECT PAYMENT,LEARNING DISABILITY SUPPORT,Third Party Payments,Revenue
Walsall Council,http://opendatacommunities.org/id/metropolitan-district-council/walsall,WC115-497,30/04/2020,Adult Social Care,REDACTED,14/04/2020,"1,322.83",73510-SHARED LIVES,LEARNING DISABILITY SUPPORT,Third Party Payments,Revenue
Walsall Council,http://opendatacommunities.org/id/metropolitan-district-council/walsall,WC115-498,30/04/2020,Childrens,REDACTED,06/04/2020,312.24,74509-SPECIAL GUARDIANSHIP ORDERS,ADOPTION ALLOWANCES,Transfer Payments,Revenue
Walsall Council,http://opendatacommunities.org/id/metropolitan-district-council/walsall,WC115-499,30/04/2020,Childrens,ALL SAINTS NATIONAL ACADEMY #1,08/04/2020,"1,659.62",66502-TOP UP FUNDING -GRANTS TO SCHOOLS,ALL SAINTS NATIONAL ACADEMY,Third Party Payments,Revenue
Walsall Council,http://opendatacommunities.org/id/metropolitan-district-council/walsall,WC115-500,30/04/2020,Adult Social Care,REDACTED,06/04/2020,"1,688.16",73506-DIRECT PAYMENT,SOCIAL SUPPORT,Third Party Payments,Revenue
Walsall Council,http://opendatacommunities.org/id/metropolitan-district-council/walsall,WC115-501,30/04/2020,Economy & Environment,ALLIED PUBLICITY SERVICES (MANCHESTER) LIMITED T/A APS GROUP,07/04/2020,"1,423.02",63000-PROFESSIONAL FEES AND SERVICES,BLUE BADGES,Supplies & Services,Revenue
Walsall Council,http://opendatacommunities.org/id/metropolitan-district-council/walsall,WC115-502,30/04/2020,Adult Social Care,ALMA COURT,06/04/2020,"5,600.00",73500-RESIDENTIAL,PHYSICAL SUPPORT,Third Party Payments,Revenue
Walsall Council,http://opendatacommunities.org/id/metropolitan-district-council/walsall,WC115-503,30/04/2020,Adult Social Care,ALMA COURT,06/04/2020,"5,939.20",73503-NURSING EMI,PHYSICAL SUPPORT,Third Party Payments,Revenue
Walsall Council,http://opendatacommunities.org/id/metropolitan-district-council/walsall,WC115-504,30/04/2020,Adult Social Care,ALMA COURT,06/04/2020,"6,400.00",73500-RESIDENTIAL,MENTAL HEALTH SUPPORT,Third Party Payments,Revenue
Walsall Council,http://opendatacommunities.org/id/metropolitan-district-council/walsall,WC115-505,30/04/2020,Childrens,ALMOZENE NURSERY & CHILDRENS CENTRE,01/04/2020,"6,224.40",66505-OTHER-GRANTS TO OTHER ORGS,EARLY YEARS - 2 YR OLDS,Third Party Payments,Revenue
Walsall Council,http://opendatacommunities.org/id/metropolitan-district-council/walsall,WC115-506,30/04/2020,Childrens,ALMOZENE NURSERY & CHILDRENS CENTRE,01/04/2020,"12,309.86",66505-OTHER-GRANTS TO OTHER ORGS,EARLY YEARS - 3 YR OLDS,Third Party Payments,Revenue
Walsall Council,http://opendatacommunities.org/id/metropolitan-district-council/walsall,WC115-507,30/04/2020,Adult Social Care,ALPHA HEALTH CARE LTD,24/04/2020,"-1,285.71",73025-PROFESSIONAL SERVICES-PRIV CONTRACTOR & OTHER AGENCIES,TRANSITIONAL CARE SUPPORT TEAM,Third Party Payments,Revenue
Walsall Council,http://opendatacommunities.org/id/metropolitan-district-council/walsall,WC115-508,30/04/2020,Adult Social Care,ALPHA HEALTH CARE LTD,06/04/2020,500.00,73025-PROFESSIONAL SERVICES-PRIV CONTRACTOR & OTHER AGENCIES,TRANSITIONAL CARE SUPPORT TEAM,Third Party Payments,Revenue
Walsall Council,http://opendatacommunities.org/id/metropolitan-district-council/walsall,WC115-509,30/04/2020,Adult Social Care,ALPHA HEALTH CARE LTD,24/04/2020,"1,134.00",73025-PROFESSIONAL SERVICES-PRIV CONTRACTOR & OTHER AGENCIES,TRANSITIONAL CARE SUPPORT TEAM,Third Party Payments,Revenue
Walsall Council,http://opendatacommunities.org/id/metropolitan-district-council/walsall,WC115-510,30/04/2020,Adult Social Care,ALPHA HEALTH CARE LTD,06/04/2020,"1,249.29",73025-PROFESSIONAL SERVICES-PRIV CONTRACTOR & OTHER AGENCIES,TRANSITIONAL CARE SUPPORT TEAM,Third Party Payments,Revenue
Walsall Council,http://opendatacommunities.org/id/metropolitan-district-council/walsall,WC115-511,30/04/2020,Adult Social Care,ALPHA HEALTH CARE LTD,06/04/2020,"1,774.96",73500-RESIDENTIAL,MENTAL HEALTH SUPPORT,Third Party Payments,Revenue
Walsall Council,http://opendatacommunities.org/id/metropolitan-district-council/walsall,WC115-512,30/04/2020,Adult Social Care,ALPHA HEALTH CARE LTD,06/04/2020,"2,143.72",73502-NURSING,PHYSICAL SUPPORT,Third Party Payments,Revenue
Walsall Council,http://opendatacommunities.org/id/metropolitan-district-council/walsall,WC115-513,30/04/2020,Adult Social Care,ALPHA HEALTH CARE LTD,06/04/2020,"2,157.86",73501-RESIDENTIAL EMI,PHYSICAL SUPPORT,Third Party Payments,Revenue
Walsall Council,http://opendatacommunities.org/id/metropolitan-district-council/walsall,WC115-514,30/04/2020,Adult Social Care,ALPHA HEALTH CARE LTD,06/04/2020,"2,255.72",73501-RESIDENTIAL EMI,SUPPORT WITH MEMORY & COGNITION,Third Party Payments,Revenue
Walsall Council,http://opendatacommunities.org/id/metropolitan-district-council/walsall,WC115-515,30/04/2020,Adult Social Care,ALPHA HEALTH CARE LTD,06/04/2020,"2,358.08",73503-NURSING EMI,MENTAL HEALTH SUPPORT,Third Party Payments,Revenue
Walsall Council,http://opendatacommunities.org/id/metropolitan-district-council/walsall,WC115-516,30/04/2020,Adult Social Care,ALPHA HEALTH CARE LTD,06/04/2020,"2,358.08",73503-NURSING EMI,MENTAL HEALTH SUPPORT,Third Party Payments,Revenue
Walsall Council,http://opendatacommunities.org/id/metropolitan-district-council/walsall,WC115-517,30/04/2020,Adult Social Care,ALPHA HEALTH CARE LTD,06/04/2020,"2,358.08",73503-NURSING EMI,PHYSICAL SUPPORT,Third Party Payments,Revenue
Walsall Council,http://opendatacommunities.org/id/metropolitan-district-council/walsall,WC115-518,30/04/2020,Adult Social Care,ALPHA HEALTH CARE LTD,06/04/2020,"2,464.29",73025-PROFESSIONAL SERVICES-PRIV CONTRACTOR & OTHER AGENCIES,TRANSITIONAL CARE SUPPORT TEAM,Third Party Payments,Revenue
Walsall Council,http://opendatacommunities.org/id/metropolitan-district-council/walsall,WC115-519,30/04/2020,Adult Social Care,ALPHA HEALTH CARE LTD,06/04/2020,"2,464.29",73025-PROFESSIONAL SERVICES-PRIV CONTRACTOR & OTHER AGENCIES,TRANSITIONAL CARE SUPPORT TEAM,Third Party Payments,Revenue
Walsall Council,http://opendatacommunities.org/id/metropolitan-district-council/walsall,WC115-520,30/04/2020,Adult Social Care,ALPHA HEALTH CARE LTD,06/04/2020,"2,495.72",73501-RESIDENTIAL EMI,MENTAL HEALTH SUPPORT,Third Party Payments,Revenue
Walsall Council,http://opendatacommunities.org/id/metropolitan-district-council/walsall,WC115-521,30/04/2020,Adult Social Care,ALPHA HEALTH CARE LTD,06/04/2020,"2,558.08",73503-NURSING EMI,PHYSICAL SUPPORT,Third Party Payments,Revenue
Walsall Council,http://opendatacommunities.org/id/metropolitan-district-council/walsall,WC115-522,30/04/2020,Adult Social Care,ALPHA HEALTH CARE LTD,06/04/2020,"2,837.76",73503-NURSING EMI,SUPPORT WITH MEMORY & COGNITION,Third Party Payments,Revenue
Walsall Council,http://opendatacommunities.org/id/metropolitan-district-council/walsall,WC115-523,30/04/2020,Adult Social Care,ALPHA HEALTH CARE LTD,06/04/2020,"2,881.80",73503-NURSING EMI,MENTAL HEALTH SUPPORT,Third Party Payments,Revenue
Walsall Council,http://opendatacommunities.org/id/metropolitan-district-council/walsall,WC115-524,30/04/2020,Adult Social Care,ALPHA HEALTH CARE LTD,06/04/2020,"2,881.80",73503-NURSING EMI,MENTAL HEALTH SUPPORT,Third Party Payments,Revenue
Walsall Council,http://opendatacommunities.org/id/metropolitan-district-council/walsall,WC115-525,30/04/2020,Adult Social Care,ALPHA HEALTH CARE LTD,06/04/2020,"2,881.80",73503-NURSING EMI,PHYSICAL SUPPORT,Third Party Payments,Revenue
Walsall Council,http://opendatacommunities.org/id/metropolitan-district-council/walsall,WC115-526,30/04/2020,Adult Social Care,ALPHA HEALTH CARE LTD,06/04/2020,"2,881.84",73503-NURSING EMI,PHYSICAL SUPPORT,Third Party Payments,Revenue
Walsall Council,http://opendatacommunities.org/id/metropolitan-district-council/walsall,WC115-527,30/04/2020,Adult Social Care,ALPHA HEALTH CARE LTD,06/04/2020,"2,937.76",73503-NURSING EMI,SOCIAL SUPPORT,Third Party Payments,Revenue
Walsall Council,http://opendatacommunities.org/id/metropolitan-district-council/walsall,WC115-528,30/04/2020,Adult Social Care,ALPHA HEALTH CARE LTD,06/04/2020,"2,937.88",73503-NURSING EMI,PHYSICAL SUPPORT,Third Party Payments,Revenue
Walsall Council,http://opendatacommunities.org/id/metropolitan-district-council/walsall,WC115-529,30/04/2020,Adult Social Care,ALPHA HEALTH CARE LTD,20/04/2020,"2,952.86",73025-PROFESSIONAL SERVICES-PRIV CONTRACTOR & OTHER AGENCIES,TRANSITIONAL CARE SUPPORT TEAM,Third Party Payments,Revenue
Walsall Council,http://opendatacommunities.org/id/metropolitan-district-council/walsall,WC115-530,30/04/2020,Adult Social Care,ALPHA HEALTH CARE LTD,06/04/2020,"3,035.72",73501-RESIDENTIAL EMI,PHYSICAL SUPPORT,Third Party Payments,Revenue
Walsall Council,http://opendatacommunities.org/id/metropolitan-district-council/walsall,WC115-531,30/04/2020,Adult Social Care,ALPHA HEALTH CARE LTD,06/04/2020,"3,290.36",73503-NURSING EMI,PHYSICAL SUPPORT,Third Party Payments,Revenue
Walsall Council,http://opendatacommunities.org/id/metropolitan-district-council/walsall,WC115-532,30/04/2020,Adult Social Care,ALPHA HEALTH CARE LTD,24/04/2020,"3,321.43",73025-PROFESSIONAL SERVICES-PRIV CONTRACTOR & OTHER AGENCIES,TRANSITIONAL CARE SUPPORT TEAM,Third Party Payments,Revenue
Walsall Council,http://opendatacommunities.org/id/metropolitan-district-council/walsall,WC115-533,30/04/2020,Adult Social Care,ALPHA HEALTH CARE LTD,17/04/2020,"3,342.86",73025-PROFESSIONAL SERVICES-PRIV CONTRACTOR & OTHER AGENCIES,TRANSITIONAL CARE SUPPORT TEAM,Third Party Payments,Revenue
Walsall Council,http://opendatacommunities.org/id/metropolitan-district-council/walsall,WC115-534,30/04/2020,Adult Social Care,ALPHA HEALTH CARE LTD,24/04/2020,"5,750.00",73025-PROFESSIONAL SERVICES-PRIV CONTRACTOR & OTHER AGENCIES,TRANSITIONAL CARE SUPPORT TEAM,Third Party Payments,Revenue
Walsall Council,http://opendatacommunities.org/id/metropolitan-district-council/walsall,WC115-535,30/04/2020,Childrens,ALPHA TRAINING ACADEMY UK LTD,20/04/2020,750.00,60500-GENERAL MATERIALS,PUPIL REFERAL UNIT EXCLUSIONS,Supplies & Services,Revenue
Walsall Council,http://opendatacommunities.org/id/metropolitan-district-council/walsall,WC115-536,30/04/2020,Childrens,ALPHA TRAINING ACADEMY UK LTD,15/04/2020,"1,260.00",63000-PROFESSIONAL FEES AND SERVICES,VIRTUAL SCHOOL CENTRAL PUPIL PREMIUM,Supplies & Services,Revenue
Walsall Council,http://opendatacommunities.org/id/metropolitan-district-council/walsall,WC115-537,30/04/2020,Childrens,ALPHA TRAINING ACADEMY UK LTD,01/04/2020,"12,070.00",66502-TOP UP FUNDING -GRANTS TO SCHOOLS,INDEPENDENT PROVIDERS - POST SCHOOL,Third Party Payments,Revenue
Walsall Council,http://opendatacommunities.org/id/metropolitan-district-council/walsall,WC115-538,30/04/2020,Childrens,ALPHABIOLABS,08/04/2020,431.00,73014-LEGAL FEES-PRIV CONTRACTOR FEES,GENERAL MANAGEMENT SUPPORT (INC LEGAL),Third Party Payments,Revenue
Walsall Council,http://opendatacommunities.org/id/metropolitan-district-council/walsall,WC115-539,30/04/2020,Childrens,AMAH NURSERIES LIMITED T/A BANANA MOON WALSALL,01/04/2020,"10,892.70",66505-OTHER-GRANTS TO OTHER ORGS,EARLY YEARS - 2 YR OLDS,Third Party Payments,Revenue
Walsall Council,http://opendatacommunities.org/id/metropolitan-district-council/walsall,WC115-540,30/04/2020,Childrens,AMAH NURSERIES LIMITED T/A BANANA MOON WALSALL,01/04/2020,"18,788.74",66505-OTHER-GRANTS TO OTHER ORGS,EARLY YEARS - 3 YR OLDS,Third Party Payments,Revenue
Walsall Council,http://opendatacommunities.org/id/metropolitan-district-council/walsall,WC115-541,30/04/2020,Childrens,REDACTED,06/04/2020,318.08,74510-RESIDENTS ORDERS,ADOPTION ALLOWANCES,Third Party Payments,Revenue
Walsall Council,http://opendatacommunities.org/id/metropolitan-district-council/walsall,WC115-542,30/04/2020,Childrens,REDACTED,06/04/2020,370.28,74510-RESIDENTS ORDERS,ADOPTION ALLOWANCES,Third Party Payments,Revenue
Walsall Council,http://opendatacommunities.org/id/metropolitan-district-council/walsall,WC115-543,30/04/2020,Adult Social Care,REDACTED,06/04/2020,"1,515.00",73506-DIRECT PAYMENT,LEARNING DISABILITY SUPPORT,Third Party Payments,Revenue
Walsall Council,http://opendatacommunities.org/id/metropolitan-district-council/walsall,WC115-544,30/04/2020,Childrens,REDACTED,06/04/2020,808.04,74009-ADOPTION ALLOWANCE,ADOPTION ALLOWANCES,Transfer Payments,Revenue
Walsall Council,http://opendatacommunities.org/id/metropolitan-district-council/walsall,WC115-545,30/04/2020,Childrens,REDACTED,17/04/2020,600.00,74501-MAINTENANCE ALLOWANCE-FOSTER CARERS,INTERNAL FOSTER CARE PROVISION,Transfer Payments,Revenue
Walsall Council,http://opendatacommunities.org/id/metropolitan-district-council/walsall,WC115-546,30/04/2020,Childrens,REDACTED,17/04/2020,"1,000.00",74508-INTERNAL FOSTER CARERS-CARER FEES,INTERNAL FOSTER CARE PROVISION,Transfer Payments,Revenue
Walsall Council,http://opendatacommunities.org/id/metropolitan-district-council/walsall,WC115-547,30/04/2020,Adult Social Care,REDACTED,06/04/2020,"1,048.57",73506-DIRECT PAYMENT,LEARNING DISABILITY SUPPORT,Third Party Payments,Revenue
Walsall Council,http://opendatacommunities.org/id/metropolitan-district-council/walsall,WC115-548,30/04/2020,Economy & Environment,AMEY LG LIMITED,17/04/2020,681.01,01009-SITE WORKS - OTHER CONTRACTORS,CFR 743 LTP INC BRIDGE STRENGTHENING,Capital,Capital
Walsall Council,http://opendatacommunities.org/id/metropolitan-district-council/walsall,WC115-549,30/04/2020,Resources and Transformation,AMEY LG LIMITED,30/04/2020,976.35,60008-REPAIR & MAINTENANCE OF FURNITURE & EQUIPMENT,CCTV,Supplies & Services,Revenue
Walsall Council,http://opendatacommunities.org/id/metropolitan-district-council/walsall,WC115-550,30/04/2020,Economy & Environment,AMEY LG LIMITED,06/04/2020,"2,047.02",01009-SITE WORKS - OTHER CONTRACTORS,CFR 1248 M6 JUNCTION 10,Capital,Capital
Walsall Council,http://opendatacommunities.org/id/metropolitan-district-council/walsall,WC115-551,30/04/2020,Economy & Environment,AMEY LG LIMITED,23/04/2020,"6,770.77",73025-PROFESSIONAL SERVICES-PRIV CONTRACTOR & OTHER AGENCIES,TRAFFIC MANAGEMENT,Third Party Payments,Revenue
Walsall Council,http://opendatacommunities.org/id/metropolitan-district-council/walsall,WC115-552,30/04/2020,Economy & Environment,AMEY LG LIMITED,06/04/2020,"17,868.94",60500-GENERAL MATERIALS,VASS IMPLEMENTATION,Supplies & Services,Revenue
Walsall Council,http://opendatacommunities.org/id/metropolitan-district-council/walsall,WC115-553,30/04/2020,Economy & Environment,AMEY LG LIMITED,23/04/2020,"19,581.44",01006-SITE WORKS MAIN CONTRACTORS,CFR 1355 HIGHWAY EFFICIENCY MEASURES PROGRAMME,Capital,Capital
Walsall Council,http://opendatacommunities.org/id/metropolitan-district-council/walsall,WC115-554,30/04/2020,Economy & Environment,AMEY LG LIMITED,06/04/2020,"76,184.83",01002-PROJECT FEES,CFR 1366 M6 J10 DESIGNATED FUNDS NMU ROUTE,Capital,Capital
Walsall Council,http://opendatacommunities.org/id/metropolitan-district-council/walsall,WC115-555,30/04/2020,Childrens,AMG NURSING CARE SERVICES,24/04/2020,740.48,63000-PROFESSIONAL FEES AND SERVICES,DIRECTLY COMMISSIONED NURSING SERVICES,Supplies & Services,Revenue
Walsall Council,http://opendatacommunities.org/id/metropolitan-district-council/walsall,WC115-556,30/04/2020,Childrens,AMG NURSING CARE SERVICES,24/04/2020,783.32,63000-PROFESSIONAL FEES AND SERVICES,DIRECTLY COMMISSIONED NURSING SERVICES,Supplies & Services,Revenue
Walsall Council,http://opendatacommunities.org/id/metropolitan-district-council/walsall,WC115-557,30/04/2020,Adult Social Care,AMG NURSING CARE SERVICES,07/04/2020,"1,017.20",73508-COMMUNITY SUPPORTED LIVING/SUPPORTED ACCOMMODATION,PHYSICAL SUPPORT,Third Party Payments,Revenue
Walsall Council,http://opendatacommunities.org/id/metropolitan-district-council/walsall,WC115-558,30/04/2020,Childrens,AMG NURSING CARE SERVICES,24/04/2020,"1,127.04",63000-PROFESSIONAL FEES AND SERVICES,DIRECTLY COMMISSIONED NURSING SERVICES,Supplies & Services,Revenue
Walsall Council,http://opendatacommunities.org/id/metropolitan-district-council/walsall,WC115-559,30/04/2020,Childrens,AMG NURSING CARE SERVICES,24/04/2020,"1,480.96",63000-PROFESSIONAL FEES AND SERVICES,DIRECTLY COMMISSIONED NURSING SERVICES,Supplies & Services,Revenue
Walsall Council,http://opendatacommunities.org/id/metropolitan-district-council/walsall,WC115-560,30/04/2020,Childrens,AMG NURSING CARE SERVICES,24/04/2020,"1,845.24",63000-PROFESSIONAL FEES AND SERVICES,DIRECTLY COMMISSIONED NURSING SERVICES,Supplies & Services,Revenue
Walsall Council,http://opendatacommunities.org/id/metropolitan-district-council/walsall,WC115-561,30/04/2020,Childrens,AMG NURSING CARE SERVICES,24/04/2020,"1,887.92",63000-PROFESSIONAL FEES AND SERVICES,DIRECTLY COMMISSIONED NURSING SERVICES,Supplies & Services,Revenue
Walsall Council,http://opendatacommunities.org/id/metropolitan-district-council/walsall,WC115-562,30/04/2020,Childrens,AMG NURSING CARE SERVICES,01/04/2020,"1,894.04",63000-PROFESSIONAL FEES AND SERVICES,DIRECTLY COMMISSIONED NURSING SERVICES,Supplies & Services,Revenue
Walsall Council,http://opendatacommunities.org/id/metropolitan-district-council/walsall,WC115-563,30/04/2020,Adult Social Care,AMG NURSING CARE SERVICES,21/04/2020,"2,034.40",73508-COMMUNITY SUPPORTED LIVING/SUPPORTED ACCOMMODATION,PHYSICAL SUPPORT,Third Party Payments,Revenue
Walsall Council,http://opendatacommunities.org/id/metropolitan-district-council/walsall,WC115-564,30/04/2020,Childrens,AMG NURSING CARE SERVICES,24/04/2020,"2,246.00",63000-PROFESSIONAL FEES AND SERVICES,DIRECTLY COMMISSIONED NURSING SERVICES,Supplies & Services,Revenue
Walsall Council,http://opendatacommunities.org/id/metropolitan-district-council/walsall,WC115-565,30/04/2020,Childrens,AMG NURSING CARE SERVICES,24/04/2020,"2,262.61",63000-PROFESSIONAL FEES AND SERVICES,DIRECTLY COMMISSIONED NURSING SERVICES,Supplies & Services,Revenue
Walsall Council,http://opendatacommunities.org/id/metropolitan-district-council/walsall,WC115-566,30/04/2020,Childrens,AMG NURSING CARE SERVICES,24/04/2020,"2,264.28",63000-PROFESSIONAL FEES AND SERVICES,DIRECTLY COMMISSIONED NURSING SERVICES,Supplies & Services,Revenue
Walsall Council,http://opendatacommunities.org/id/metropolitan-district-council/walsall,WC115-567,30/04/2020,Childrens,AMG NURSING CARE SERVICES,24/04/2020,"2,267.36",63000-PROFESSIONAL FEES AND SERVICES,DIRECTLY COMMISSIONED NURSING SERVICES,Supplies & Services,Revenue
Walsall Council,http://opendatacommunities.org/id/metropolitan-district-council/walsall,WC115-568,30/04/2020,Childrens,AMG NURSING CARE SERVICES,24/04/2020,"2,269.02",63000-PROFESSIONAL FEES AND SERVICES,DIRECTLY COMMISSIONED NURSING SERVICES,Supplies & Services,Revenue
Walsall Council,http://opendatacommunities.org/id/metropolitan-district-council/walsall,WC115-569,30/04/2020,Childrens,AMG NURSING CARE SERVICES,24/04/2020,"2,274.48",63000-PROFESSIONAL FEES AND SERVICES,DIRECTLY COMMISSIONED NURSING SERVICES,Supplies & Services,Revenue
Walsall Council,http://opendatacommunities.org/id/metropolitan-district-council/walsall,WC115-570,30/04/2020,Childrens,AMG NURSING CARE SERVICES,24/04/2020,"2,305.00",63000-PROFESSIONAL FEES AND SERVICES,DIRECTLY COMMISSIONED NURSING SERVICES,Supplies & Services,Revenue
Walsall Council,http://opendatacommunities.org/id/metropolitan-district-council/walsall,WC115-571,30/04/2020,Adult Social Care,AMG NURSING CARE SERVICES,07/04/2020,"2,677.92",73508-COMMUNITY SUPPORTED LIVING/SUPPORTED ACCOMMODATION,PHYSICAL SUPPORT,Third Party Payments,Revenue
Walsall Council,http://opendatacommunities.org/id/metropolitan-district-council/walsall,WC115-572,30/04/2020,Childrens,AMG NURSING CARE SERVICES,24/04/2020,"3,014.96",63000-PROFESSIONAL FEES AND SERVICES,DIRECTLY COMMISSIONED NURSING SERVICES,Supplies & Services,Revenue
Walsall Council,http://opendatacommunities.org/id/metropolitan-district-council/walsall,WC115-573,30/04/2020,Adult Social Care,AMG NURSING CARE SERVICES,27/04/2020,"3,640.00",73508-COMMUNITY SUPPORTED LIVING/SUPPORTED ACCOMMODATION,PHYSICAL SUPPORT,Third Party Payments,Revenue
Walsall Council,http://opendatacommunities.org/id/metropolitan-district-council/walsall,WC115-574,30/04/2020,Adult Social Care,AMG NURSING CARE SERVICES,21/04/2020,"5,355.84",73508-COMMUNITY SUPPORTED LIVING/SUPPORTED ACCOMMODATION,PHYSICAL SUPPORT,Third Party Payments,Revenue
Walsall Council,http://opendatacommunities.org/id/metropolitan-district-council/walsall,WC115-575,30/04/2020,Adult Social Care,AMG NURSING CARE SERVICES,01/04/2020,"10,711.68",73508-COMMUNITY SUPPORTED LIVING/SUPPORTED ACCOMMODATION,PHYSICAL SUPPORT,Third Party Payments,Revenue
Walsall Council,http://opendatacommunities.org/id/metropolitan-district-council/walsall,WC115-576,30/04/2020,Childrens,REDACTED,06/04/2020,720.00,74501-MAINTENANCE ALLOWANCE-FOSTER CARERS,FAMILY & FRIENDS FOSTER CARE PROVISION,Transfer Payments,Revenue
Walsall Council,http://opendatacommunities.org/id/metropolitan-district-council/walsall,WC115-577,30/04/2020,Childrens,REDACTED,06/04/2020,340.00,74508-INTERNAL FOSTER CARERS-CARER FEES,FAMILY & FRIENDS FOSTER CARE PROVISION,Transfer Payments,Revenue
Walsall Council,http://opendatacommunities.org/id/metropolitan-district-council/walsall,WC115-578,30/04/2020,Childrens,REDACTED,06/04/2020,600.00,74501-MAINTENANCE ALLOWANCE-FOSTER CARERS,FAMILY & FRIENDS FOSTER CARE PROVISION,Transfer Payments,Revenue
Walsall Council,http://opendatacommunities.org/id/metropolitan-district-council/walsall,WC115-579,30/04/2020,Childrens,REDACTED,06/04/2020,425.08,74510-RESIDENTS ORDERS,ADOPTION ALLOWANCES,Third Party Payments,Revenue
Walsall Council,http://opendatacommunities.org/id/metropolitan-district-council/walsall,WC115-580,30/04/2020,Adult Social Care,ANCHOR CARE HOMES LTD,06/04/2020,"1,774.96",73500-RESIDENTIAL,PHYSICAL SUPPORT,Third Party Payments,Revenue
Walsall Council,http://opendatacommunities.org/id/metropolitan-district-council/walsall,WC115-581,30/04/2020,Adult Social Care,ANCHOR CARE HOMES LTD,06/04/2020,"1,774.96",73500-RESIDENTIAL,SUPPORT WITH MEMORY & COGNITION,Third Party Payments,Revenue
Walsall Council,http://opendatacommunities.org/id/metropolitan-district-council/walsall,WC115-582,30/04/2020,Adult Social Care,ANCHOR CARE HOMES LTD,06/04/2020,"1,774.96",73500-RESIDENTIAL,PHYSICAL SUPPORT,Third Party Payments,Revenue
Walsall Council,http://opendatacommunities.org/id/metropolitan-district-council/walsall,WC115-583,30/04/2020,Adult Social Care,ANCHOR CARE HOMES LTD,06/04/2020,"1,774.96",73500-RESIDENTIAL,SUPPORT WITH MEMORY & COGNITION,Third Party Payments,Revenue
Walsall Council,http://opendatacommunities.org/id/metropolitan-district-council/walsall,WC115-584,30/04/2020,Adult Social Care,ANCHOR CARE HOMES LTD,06/04/2020,"1,926.12",73500-RESIDENTIAL,PHYSICAL SUPPORT,Third Party Payments,Revenue
Walsall Council,http://opendatacommunities.org/id/metropolitan-district-council/walsall,WC115-585,30/04/2020,Adult Social Care,ANCHOR CARE HOMES LTD,06/04/2020,"1,934.96",73500-RESIDENTIAL,PHYSICAL SUPPORT,Third Party Payments,Revenue
Walsall Council,http://opendatacommunities.org/id/metropolitan-district-council/walsall,WC115-586,30/04/2020,Adult Social Care,ANCHOR CARE HOMES LTD,06/04/2020,"1,935.72",73501-RESIDENTIAL EMI,PHYSICAL SUPPORT,Third Party Payments,Revenue
Walsall Council,http://opendatacommunities.org/id/metropolitan-district-council/walsall,WC115-587,30/04/2020,Adult Social Care,ANCHOR CARE HOMES LTD,06/04/2020,"1,972.24",73501-RESIDENTIAL EMI,MENTAL HEALTH SUPPORT,Third Party Payments,Revenue
Walsall Council,http://opendatacommunities.org/id/metropolitan-district-council/walsall,WC115-588,30/04/2020,Adult Social Care,ANCHOR CARE HOMES LTD,06/04/2020,"1,972.24",73501-RESIDENTIAL EMI,PHYSICAL SUPPORT,Third Party Payments,Revenue
Walsall Council,http://opendatacommunities.org/id/metropolitan-district-council/walsall,WC115-589,30/04/2020,Adult Social Care,ANCHOR CARE HOMES LTD,06/04/2020,"1,972.24",73501-RESIDENTIAL EMI,MENTAL HEALTH SUPPORT,Third Party Payments,Revenue
Walsall Council,http://opendatacommunities.org/id/metropolitan-district-council/walsall,WC115-590,30/04/2020,Adult Social Care,ANCHOR CARE HOMES LTD,06/04/2020,"1,972.24",73501-RESIDENTIAL EMI,MENTAL HEALTH SUPPORT,Third Party Payments,Revenue
Walsall Council,http://opendatacommunities.org/id/metropolitan-district-council/walsall,WC115-591,30/04/2020,Adult Social Care,ANCHOR CARE HOMES LTD,06/04/2020,"1,972.24",73501-RESIDENTIAL EMI,PHYSICAL SUPPORT,Third Party Payments,Revenue
Walsall Council,http://opendatacommunities.org/id/metropolitan-district-council/walsall,WC115-592,30/04/2020,Adult Social Care,ANCHOR CARE HOMES LTD,06/04/2020,"1,972.24",73501-RESIDENTIAL EMI,SUPPORT WITH MEMORY & COGNITION,Third Party Payments,Revenue
Walsall Council,http://opendatacommunities.org/id/metropolitan-district-council/walsall,WC115-593,30/04/2020,Adult Social Care,ANCHOR CARE HOMES LTD,06/04/2020,"1,972.24",73501-RESIDENTIAL EMI,MENTAL HEALTH SUPPORT,Third Party Payments,Revenue
Walsall Council,http://opendatacommunities.org/id/metropolitan-district-council/walsall,WC115-594,30/04/2020,Adult Social Care,ANCHOR CARE HOMES LTD,06/04/2020,"1,972.24",73501-RESIDENTIAL EMI,MENTAL HEALTH SUPPORT,Third Party Payments,Revenue
Walsall Council,http://opendatacommunities.org/id/metropolitan-district-council/walsall,WC115-595,30/04/2020,Adult Social Care,ANCHOR CARE HOMES LTD,06/04/2020,"1,972.24",73501-RESIDENTIAL EMI,PHYSICAL SUPPORT,Third Party Payments,Revenue
Walsall Council,http://opendatacommunities.org/id/metropolitan-district-council/walsall,WC115-596,30/04/2020,Adult Social Care,ANCHOR CARE HOMES LTD,06/04/2020,"1,972.24",73501-RESIDENTIAL EMI,PHYSICAL SUPPORT,Third Party Payments,Revenue
Walsall Council,http://opendatacommunities.org/id/metropolitan-district-council/walsall,WC115-597,30/04/2020,Adult Social Care,ANCHOR CARE HOMES LTD,06/04/2020,"1,972.24",73501-RESIDENTIAL EMI,PHYSICAL SUPPORT,Third Party Payments,Revenue
Walsall Council,http://opendatacommunities.org/id/metropolitan-district-council/walsall,WC115-598,30/04/2020,Adult Social Care,ANCHOR CARE HOMES LTD,06/04/2020,"1,972.24",73501-RESIDENTIAL EMI,PHYSICAL SUPPORT,Third Party Payments,Revenue
Walsall Council,http://opendatacommunities.org/id/metropolitan-district-council/walsall,WC115-599,30/04/2020,Adult Social Care,ANCHOR CARE HOMES LTD,06/04/2020,"1,972.24",73501-RESIDENTIAL EMI,PHYSICAL SUPPORT,Third Party Payments,Revenue
Walsall Council,http://opendatacommunities.org/id/metropolitan-district-council/walsall,WC115-600,30/04/2020,Adult Social Care,ANCHOR CARE HOMES LTD,06/04/2020,"2,000.00",73501-RESIDENTIAL EMI,PHYSICAL SUPPORT,Third Party Payments,Revenue
Walsall Council,http://opendatacommunities.org/id/metropolitan-district-council/walsall,WC115-601,30/04/2020,Adult Social Care,ANCHOR CARE HOMES LTD,06/04/2020,"2,054.96",73500-RESIDENTIAL,SENSORY SUPPORT,Third Party Payments,Revenue
Walsall Council,http://opendatacommunities.org/id/metropolitan-district-council/walsall,WC115-602,30/04/2020,Adult Social Care,ANCHOR CARE HOMES LTD,06/04/2020,"2,094.96",73500-RESIDENTIAL,PHYSICAL SUPPORT,Third Party Payments,Revenue
Walsall Council,http://opendatacommunities.org/id/metropolitan-district-council/walsall,WC115-603,30/04/2020,Adult Social Care,ANCHOR CARE HOMES LTD,06/04/2020,"2,094.96",73500-RESIDENTIAL,SOCIAL SUPPORT,Third Party Payments,Revenue
Walsall Council,http://opendatacommunities.org/id/metropolitan-district-council/walsall,WC115-604,30/04/2020,Adult Social Care,ANCHOR CARE HOMES LTD,06/04/2020,"2,144.56",73501-RESIDENTIAL EMI,SENSORY SUPPORT,Third Party Payments,Revenue
Walsall Council,http://opendatacommunities.org/id/metropolitan-district-council/walsall,WC115-605,30/04/2020,Adult Social Care,ANCHOR CARE HOMES LTD,06/04/2020,"2,266.12",73500-RESIDENTIAL,PHYSICAL SUPPORT,Third Party Payments,Revenue
Walsall Council,http://opendatacommunities.org/id/metropolitan-district-council/walsall,WC115-606,30/04/2020,Adult Social Care,ANCHOR CARE HOMES LTD,06/04/2020,"2,292.24",73501-RESIDENTIAL EMI,SUPPORT WITH MEMORY & COGNITION,Third Party Payments,Revenue
Walsall Council,http://opendatacommunities.org/id/metropolitan-district-council/walsall,WC115-607,30/04/2020,Adult Social Care,ANCHOR CARE HOMES LTD,06/04/2020,"2,312.24",73501-RESIDENTIAL EMI,PHYSICAL SUPPORT,Third Party Payments,Revenue
Walsall Council,http://opendatacommunities.org/id/metropolitan-district-council/walsall,WC115-608,30/04/2020,Adult Social Care,ANCHOR CARE HOMES LTD,06/04/2020,"2,312.24",73501-RESIDENTIAL EMI,PHYSICAL SUPPORT,Third Party Payments,Revenue
Walsall Council,http://opendatacommunities.org/id/metropolitan-district-council/walsall,WC115-609,30/04/2020,Adult Social Care,ANCHOR CARE HOMES LTD,06/04/2020,"2,312.24",73501-RESIDENTIAL EMI,PHYSICAL SUPPORT,Third Party Payments,Revenue
Walsall Council,http://opendatacommunities.org/id/metropolitan-district-council/walsall,WC115-610,30/04/2020,Adult Social Care,ANCHOR CARE HOMES LTD,06/04/2020,"2,332.24",73501-RESIDENTIAL EMI,PHYSICAL SUPPORT,Third Party Payments,Revenue
Walsall Council,http://opendatacommunities.org/id/metropolitan-district-council/walsall,WC115-611,30/04/2020,Adult Social Care,ANCHOR CARE HOMES LTD,06/04/2020,"2,332.24",73501-RESIDENTIAL EMI,PHYSICAL SUPPORT,Third Party Payments,Revenue
Walsall Council,http://opendatacommunities.org/id/metropolitan-district-council/walsall,WC115-612,30/04/2020,Adult Social Care,ANCHOR CARE HOMES LTD,06/04/2020,"2,332.24",73501-RESIDENTIAL EMI,PHYSICAL SUPPORT,Third Party Payments,Revenue
Walsall Council,http://opendatacommunities.org/id/metropolitan-district-council/walsall,WC115-613,30/04/2020,Adult Social Care,ANCHOR CARE HOMES LTD,06/04/2020,"2,332.24",73501-RESIDENTIAL EMI,SOCIAL SUPPORT,Third Party Payments,Revenue
Walsall Council,http://opendatacommunities.org/id/metropolitan-district-council/walsall,WC115-614,30/04/2020,Childrens,REDACTED,06/04/2020,312.24,74509-SPECIAL GUARDIANSHIP ORDERS,ADOPTION ALLOWANCES,Transfer Payments,Revenue
Walsall Council,http://opendatacommunities.org/id/metropolitan-district-council/walsall,WC115-615,30/04/2020,Childrens,REDACTED,17/04/2020,581.54,74506-TRAVEL-FOSTER CARERS,INTERNAL FOSTER CARE PROVISION,Transfer Payments,Revenue
Walsall Council,http://opendatacommunities.org/id/metropolitan-district-council/walsall,WC115-616,30/04/2020,Childrens,REDACTED,17/04/2020,720.00,74501-MAINTENANCE ALLOWANCE-FOSTER CARERS,INTERNAL FOSTER CARE PROVISION,Transfer Payments,Revenue
Walsall Council,http://opendatacommunities.org/id/metropolitan-district-council/walsall,WC115-617,30/04/2020,Childrens,REDACTED,17/04/2020,"2,400.00",74508-INTERNAL FOSTER CARERS-CARER FEES,INTERNAL FOSTER CARE PROVISION,Transfer Payments,Revenue
Walsall Council,http://opendatacommunities.org/id/metropolitan-district-council/walsall,WC115-618,30/04/2020,Adult Social Care,REDACTED,06/04/2020,519.51,73506-DIRECT PAYMENT,LEARNING DISABILITY SUPPORT,Third Party Payments,Revenue
Walsall Council,http://opendatacommunities.org/id/metropolitan-district-council/walsall,WC115-619,30/04/2020,Adult Social Care,REDACTED,06/04/2020,"2,622.62",73506-DIRECT PAYMENT,PHYSICAL SUPPORT,Third Party Payments,Revenue
Walsall Council,http://opendatacommunities.org/id/metropolitan-district-council/walsall,WC115-620,30/04/2020,Childrens,ANDREWS ELECTRICAL LTD,09/04/2020,"1,875.00",01006-SITE WORKS MAIN CONTRACTORS,CFR 1348 ST GILES STRUCTURAL WORKS,Capital,Capital
Walsall Council,http://opendatacommunities.org/id/metropolitan-district-council/walsall,WC115-621,30/04/2020,Economy & Environment,ANDY SARGENT - ARTIST,28/04/2020,250.00,62523-EVENTS AND VISUAL ARTS,GARMAN RYAN,Supplies & Services,Revenue
Walsall Council,http://opendatacommunities.org/id/metropolitan-district-council/walsall,WC115-622,30/04/2020,Childrens,REDACTED,06/04/2020,368.76,74509-SPECIAL GUARDIANSHIP ORDERS,ADOPTION ALLOWANCES,Transfer Payments,Revenue
Walsall Council,http://opendatacommunities.org/id/metropolitan-district-council/walsall,WC115-623,30/04/2020,Childrens,REDACTED,06/04/2020,368.76,74509-SPECIAL GUARDIANSHIP ORDERS,ADOPTION ALLOWANCES,Transfer Payments,Revenue
Walsall Council,http://opendatacommunities.org/id/metropolitan-district-council/walsall,WC115-624,30/04/2020,Childrens,REDACTED,06/04/2020,500.16,74509-SPECIAL GUARDIANSHIP ORDERS,ADOPTION ALLOWANCES,Transfer Payments,Revenue
Walsall Council,http://opendatacommunities.org/id/metropolitan-district-council/walsall,WC115-625,30/04/2020,Childrens,REDACTED,06/04/2020,312.04,74509-SPECIAL GUARDIANSHIP ORDERS,ADOPTION ALLOWANCES,Transfer Payments,Revenue
Walsall Council,http://opendatacommunities.org/id/metropolitan-district-council/walsall,WC115-626,30/04/2020,Childrens,ANGELS AND BUTTERFLIES CHILDMINDING,22/04/2020,"2,334.15",66505-OTHER-GRANTS TO OTHER ORGS,EARLY YEARS - 2 YR OLDS,Third Party Payments,Revenue
Walsall Council,http://opendatacommunities.org/id/metropolitan-district-council/walsall,WC115-627,30/04/2020,Childrens,ANGELS AND BUTTERFLIES CHILDMINDING,22/04/2020,"4,621.60",66505-OTHER-GRANTS TO OTHER ORGS,EARLY YEARS - 3 YR OLDS,Third Party Payments,Revenue
Walsall Council,http://opendatacommunities.org/id/metropolitan-district-council/walsall,WC115-628,30/04/2020,Adult Social Care,REDACTED,17/04/2020,388.96,73510-SHARED LIVES,MENTAL HEALTH SUPPORT,Third Party Payments,Revenue
Walsall Council,http://opendatacommunities.org/id/metropolitan-district-council/walsall,WC115-629,30/04/2020,Economy & Environment,REDACTED,16/04/2020,500.00,63000-PROFESSIONAL FEES AND SERVICES,NAG - ART GALLERY MARKETING,Supplies & Services,Revenue
Walsall Council,http://opendatacommunities.org/id/metropolitan-district-council/walsall,WC115-630,30/04/2020,Adult Social Care,REDACTED,06/04/2020,"1,235.75",73506-DIRECT PAYMENT,PHYSICAL SUPPORT,Third Party Payments,Revenue
Walsall Council,http://opendatacommunities.org/id/metropolitan-district-council/walsall,WC115-631,30/04/2020,Adult Social Care,ANSON COURT RESIDENTIAL HOME,20/04/2020,387.90,73025-PROFESSIONAL SERVICES-PRIV CONTRACTOR & OTHER AGENCIES,TRANSITIONAL CARE SUPPORT TEAM,Third Party Payments,Revenue
Walsall Council,http://opendatacommunities.org/id/metropolitan-district-council/walsall,WC115-632,30/04/2020,Adult Social Care,ANSON COURT RESIDENTIAL HOME,27/04/2020,"1,163.70",73501-RESIDENTIAL EMI,SOCIAL SUPPORT,Third Party Payments,Revenue
Walsall Council,http://opendatacommunities.org/id/metropolitan-district-council/walsall,WC115-633,30/04/2020,Adult Social Care,ANSON COURT RESIDENTIAL HOME,06/04/2020,"1,894.96",73504-SHORT STAY RESIDENTIAL,PHYSICAL SUPPORT,Third Party Payments,Revenue
Walsall Council,http://opendatacommunities.org/id/metropolitan-district-council/walsall,WC115-634,30/04/2020,Adult Social Care,ANSON COURT RESIDENTIAL HOME,17/04/2020,"1,939.50",73025-PROFESSIONAL SERVICES-PRIV CONTRACTOR & OTHER AGENCIES,TRANSITIONAL CARE SUPPORT TEAM,Third Party Payments,Revenue
Walsall Council,http://opendatacommunities.org/id/metropolitan-district-council/walsall,WC115-635,30/04/2020,Adult Social Care,ANSON COURT RESIDENTIAL HOME,06/04/2020,"1,972.24",73501-RESIDENTIAL EMI,MENTAL HEALTH SUPPORT,Third Party Payments,Revenue
Walsall Council,http://opendatacommunities.org/id/metropolitan-district-council/walsall,WC115-636,30/04/2020,Adult Social Care,ANSON COURT RESIDENTIAL HOME,06/04/2020,"1,972.24",73501-RESIDENTIAL EMI,PHYSICAL SUPPORT,Third Party Payments,Revenue
Walsall Council,http://opendatacommunities.org/id/metropolitan-district-council/walsall,WC115-637,30/04/2020,Adult Social Care,ANSON COURT RESIDENTIAL HOME,06/04/2020,"1,972.24",73501-RESIDENTIAL EMI,PHYSICAL SUPPORT,Third Party Payments,Revenue
Walsall Council,http://opendatacommunities.org/id/metropolitan-district-council/walsall,WC115-638,30/04/2020,Adult Social Care,ANSON COURT RESIDENTIAL HOME,06/04/2020,"1,972.24",73501-RESIDENTIAL EMI,SOCIAL SUPPORT,Third Party Payments,Revenue
Walsall Council,http://opendatacommunities.org/id/metropolitan-district-council/walsall,WC115-639,30/04/2020,Adult Social Care,ANSON COURT RESIDENTIAL HOME,06/04/2020,"1,972.24",73501-RESIDENTIAL EMI,MENTAL HEALTH SUPPORT,Third Party Payments,Revenue
Walsall Council,http://opendatacommunities.org/id/metropolitan-district-council/walsall,WC115-640,30/04/2020,Adult Social Care,ANSON COURT RESIDENTIAL HOME,06/04/2020,"1,972.24",73501-RESIDENTIAL EMI,SUPPORT WITH MEMORY & COGNITION,Third Party Payments,Revenue
Walsall Council,http://opendatacommunities.org/id/metropolitan-district-council/walsall,WC115-641,30/04/2020,Adult Social Care,ANSON COURT RESIDENTIAL HOME,06/04/2020,"1,972.24",73501-RESIDENTIAL EMI,SOCIAL SUPPORT,Third Party Payments,Revenue
Walsall Council,http://opendatacommunities.org/id/metropolitan-district-council/walsall,WC115-642,30/04/2020,Adult Social Care,ANSON COURT RESIDENTIAL HOME,06/04/2020,"1,972.24",73501-RESIDENTIAL EMI,SUPPORT WITH MEMORY & COGNITION,Third Party Payments,Revenue
Walsall Council,http://opendatacommunities.org/id/metropolitan-district-council/walsall,WC115-643,30/04/2020,Adult Social Care,ANSON COURT RESIDENTIAL HOME,06/04/2020,"1,972.24",73501-RESIDENTIAL EMI,PHYSICAL SUPPORT,Third Party Payments,Revenue
Walsall Council,http://opendatacommunities.org/id/metropolitan-district-council/walsall,WC115-644,30/04/2020,Adult Social Care,ANSON COURT RESIDENTIAL HOME,06/04/2020,"1,972.24",73501-RESIDENTIAL EMI,PHYSICAL SUPPORT,Third Party Payments,Revenue
Walsall Council,http://opendatacommunities.org/id/metropolitan-district-council/walsall,WC115-645,30/04/2020,Adult Social Care,ANSON COURT RESIDENTIAL HOME,06/04/2020,"2,052.24",73501-RESIDENTIAL EMI,MENTAL HEALTH SUPPORT,Third Party Payments,Revenue
Walsall Council,http://opendatacommunities.org/id/metropolitan-district-council/walsall,WC115-646,30/04/2020,Adult Social Care,ANSON COURT RESIDENTIAL HOME,06/04/2020,"2,092.24",73501-RESIDENTIAL EMI,PHYSICAL SUPPORT,Third Party Payments,Revenue
Walsall Council,http://opendatacommunities.org/id/metropolitan-district-council/walsall,WC115-647,30/04/2020,Adult Social Care,ANSON COURT RESIDENTIAL HOME,06/04/2020,"2,092.24",73501-RESIDENTIAL EMI,MENTAL HEALTH SUPPORT,Third Party Payments,Revenue
Walsall Council,http://opendatacommunities.org/id/metropolitan-district-council/walsall,WC115-648,30/04/2020,Adult Social Care,ANSON COURT RESIDENTIAL HOME,06/04/2020,"2,092.24",73501-RESIDENTIAL EMI,MENTAL HEALTH SUPPORT,Third Party Payments,Revenue
Walsall Council,http://opendatacommunities.org/id/metropolitan-district-council/walsall,WC115-649,30/04/2020,Adult Social Care,ANSON COURT RESIDENTIAL HOME,06/04/2020,"2,172.24",73501-RESIDENTIAL EMI,PHYSICAL SUPPORT,Third Party Payments,Revenue
Walsall Council,http://opendatacommunities.org/id/metropolitan-district-council/walsall,WC115-650,30/04/2020,Adult Social Care,ANSON COURT RESIDENTIAL HOME,06/04/2020,"2,172.24",73501-RESIDENTIAL EMI,SOCIAL SUPPORT,Third Party Payments,Revenue
Walsall Council,http://opendatacommunities.org/id/metropolitan-district-council/walsall,WC115-651,30/04/2020,Adult Social Care,ANSON COURT RESIDENTIAL HOME,06/04/2020,"2,172.24",73501-RESIDENTIAL EMI,SOCIAL SUPPORT,Third Party Payments,Revenue
Walsall Council,http://opendatacommunities.org/id/metropolitan-district-council/walsall,WC115-652,30/04/2020,Adult Social Care,ANSON COURT RESIDENTIAL HOME,06/04/2020,"2,172.24",73500-RESIDENTIAL,SUPPORT WITH MEMORY & COGNITION,Third Party Payments,Revenue
Walsall Council,http://opendatacommunities.org/id/metropolitan-district-council/walsall,WC115-653,30/04/2020,Adult Social Care,ANSON COURT RESIDENTIAL HOME,06/04/2020,"2,172.24",73501-RESIDENTIAL EMI,PHYSICAL SUPPORT,Third Party Payments,Revenue
Walsall Council,http://opendatacommunities.org/id/metropolitan-district-council/walsall,WC115-654,30/04/2020,Childrens,REDACTED,06/04/2020,333.12,74509-SPECIAL GUARDIANSHIP ORDERS,ADOPTION ALLOWANCES,Transfer Payments,Revenue
Walsall Council,http://opendatacommunities.org/id/metropolitan-district-council/walsall,WC115-655,30/04/2020,Childrens,APP CARZ,24/04/2020,"-2,310.52",52000-WITH DRIVER-HIRE OF VEHICLES,HOME TO SCHOOL TRANSPORT,Transport,Revenue
Walsall Council,http://opendatacommunities.org/id/metropolitan-district-council/walsall,WC115-656,30/04/2020,Childrens,APP CARZ,24/04/2020,250.00,52000-WITH DRIVER-HIRE OF VEHICLES,HOME TO SCHOOL TRANSPORT,Transport,Revenue
Walsall Council,http://opendatacommunities.org/id/metropolitan-district-council/walsall,WC115-657,30/04/2020,Childrens,APP CARZ,24/04/2020,300.00,52000-WITH DRIVER-HIRE OF VEHICLES,HOME TO SCHOOL TRANSPORT,Transport,Revenue
Walsall Council,http://opendatacommunities.org/id/metropolitan-district-council/walsall,WC115-658,30/04/2020,Childrens,APP CARZ,24/04/2020,372.00,52000-WITH DRIVER-HIRE OF VEHICLES,HOME TO SCHOOL TRANSPORT,Transport,Revenue
Walsall Council,http://opendatacommunities.org/id/metropolitan-district-council/walsall,WC115-659,30/04/2020,Childrens,APP CARZ,24/04/2020,400.00,52000-WITH DRIVER-HIRE OF VEHICLES,HOME TO SCHOOL TRANSPORT,Transport,Revenue
Walsall Council,http://opendatacommunities.org/id/metropolitan-district-council/walsall,WC115-660,30/04/2020,Resources and Transformation,APP CARZ,07/04/2020,420.00,52000-WITH DRIVER-HIRE OF VEHICLES,ADVICE & GUIDANCE SERVICE,Transport,Revenue
Walsall Council,http://opendatacommunities.org/id/metropolitan-district-council/walsall,WC115-661,30/04/2020,Childrens,APP CARZ,24/04/2020,467.50,52000-WITH DRIVER-HIRE OF VEHICLES,HOME TO SCHOOL TRANSPORT,Transport,Revenue
Walsall Council,http://opendatacommunities.org/id/metropolitan-district-council/walsall,WC115-662,30/04/2020,Childrens,APP CARZ,24/04/2020,500.00,52000-WITH DRIVER-HIRE OF VEHICLES,HOME TO SCHOOL TRANSPORT,Transport,Revenue
Walsall Council,http://opendatacommunities.org/id/metropolitan-district-council/walsall,WC115-663,30/04/2020,Childrens,APP CARZ,24/04/2020,542.60,52000-WITH DRIVER-HIRE OF VEHICLES,HOME TO SCHOOL TRANSPORT,Transport,Revenue
Walsall Council,http://opendatacommunities.org/id/metropolitan-district-council/walsall,WC115-664,30/04/2020,Childrens,APP CARZ,24/04/2020,560.00,52000-WITH DRIVER-HIRE OF VEHICLES,HOME TO SCHOOL TRANSPORT,Transport,Revenue
Walsall Council,http://opendatacommunities.org/id/metropolitan-district-council/walsall,WC115-665,30/04/2020,Childrens,APP CARZ,24/04/2020,600.00,52000-WITH DRIVER-HIRE OF VEHICLES,HOME TO SCHOOL TRANSPORT,Transport,Revenue
Walsall Council,http://opendatacommunities.org/id/metropolitan-district-council/walsall,WC115-666,30/04/2020,Childrens,APP CARZ,24/04/2020,625.20,52000-WITH DRIVER-HIRE OF VEHICLES,HOME TO SCHOOL TRANSPORT,Transport,Revenue
Walsall Council,http://opendatacommunities.org/id/metropolitan-district-council/walsall,WC115-667,30/04/2020,Childrens,APP CARZ,24/04/2020,746.60,52000-WITH DRIVER-HIRE OF VEHICLES,HOME TO SCHOOL TRANSPORT,Transport,Revenue
Walsall Council,http://opendatacommunities.org/id/metropolitan-district-council/walsall,WC115-668,30/04/2020,Childrens,APP CARZ,24/04/2020,"1,350.00",52000-WITH DRIVER-HIRE OF VEHICLES,HOME TO SCHOOL TRANSPORT,Transport,Revenue
Walsall Council,http://opendatacommunities.org/id/metropolitan-district-council/walsall,WC115-669,30/04/2020,Childrens,APP CARZ,24/04/2020,"1,350.00",52000-WITH DRIVER-HIRE OF VEHICLES,HOME TO SCHOOL TRANSPORT,Transport,Revenue
Walsall Council,http://opendatacommunities.org/id/metropolitan-district-council/walsall,WC115-670,30/04/2020,Childrens,APP CARZ,24/04/2020,"1,400.00",52000-WITH DRIVER-HIRE OF VEHICLES,HOME TO SCHOOL TRANSPORT,Transport,Revenue
Walsall Council,http://opendatacommunities.org/id/metropolitan-district-council/walsall,WC115-671,30/04/2020,Economy & Environment,APSE 001,30/04/2020,"1,450.00",73025-PROFESSIONAL SERVICES-PRIV CONTRACTOR & OTHER AGENCIES,MS-HEAD OF STRATEGIC REGENERATION,Third Party Payments,Revenue
Walsall Council,http://opendatacommunities.org/id/metropolitan-district-council/walsall,WC115-672,30/04/2020,Childrens,AQUAID (BIRMINGHAM CENTRAL),09/04/2020,231.00,61009-BEVERAGES-PROVISIONS,PELSALL EDC,Supplies & Services,Revenue
Walsall Council,http://opendatacommunities.org/id/metropolitan-district-council/walsall,WC115-673,30/04/2020,Adult Social Care,ARBORETUM NURSING HOME.,20/04/2020,638.57,73025-PROFESSIONAL SERVICES-PRIV CONTRACTOR & OTHER AGENCIES,TRANSITIONAL CARE SUPPORT TEAM,Third Party Payments,Revenue
Walsall Council,http://opendatacommunities.org/id/metropolitan-district-council/walsall,WC115-674,30/04/2020,Adult Social Care,ARBORETUM NURSING HOME.,15/04/2020,745.00,73025-PROFESSIONAL SERVICES-PRIV CONTRACTOR & OTHER AGENCIES,TRANSITIONAL CARE SUPPORT TEAM,Third Party Payments,Revenue
Walsall Council,http://opendatacommunities.org/id/metropolitan-district-council/walsall,WC115-675,30/04/2020,Adult Social Care,ARBORETUM NURSING HOME.,22/04/2020,745.00,73025-PROFESSIONAL SERVICES-PRIV CONTRACTOR & OTHER AGENCIES,TRANSITIONAL CARE SUPPORT TEAM,Third Party Payments,Revenue
Walsall Council,http://opendatacommunities.org/id/metropolitan-district-council/walsall,WC115-676,30/04/2020,Adult Social Care,ARBORETUM NURSING HOME.,29/04/2020,783.37,73025-PROFESSIONAL SERVICES-PRIV CONTRACTOR & OTHER AGENCIES,TRANSITIONAL CARE SUPPORT TEAM,Third Party Payments,Revenue
Walsall Council,http://opendatacommunities.org/id/metropolitan-district-council/walsall,WC115-677,30/04/2020,Adult Social Care,ARBORETUM NURSING HOME.,23/04/2020,"1,490.00",73025-PROFESSIONAL SERVICES-PRIV CONTRACTOR & OTHER AGENCIES,TRANSITIONAL CARE SUPPORT TEAM,Third Party Payments,Revenue
Walsall Council,http://opendatacommunities.org/id/metropolitan-district-council/walsall,WC115-678,30/04/2020,Adult Social Care,ARBORETUM NURSING HOME.,23/04/2020,"1,490.00",73025-PROFESSIONAL SERVICES-PRIV CONTRACTOR & OTHER AGENCIES,TRANSITIONAL CARE SUPPORT TEAM,Third Party Payments,Revenue
Walsall Council,http://opendatacommunities.org/id/metropolitan-district-council/walsall,WC115-679,30/04/2020,Adult Social Care,ARBORETUM NURSING HOME.,30/04/2020,"1,490.00",73025-PROFESSIONAL SERVICES-PRIV CONTRACTOR & OTHER AGENCIES,TRANSITIONAL CARE SUPPORT TEAM,Third Party Payments,Revenue
Walsall Council,http://opendatacommunities.org/id/metropolitan-district-council/walsall,WC115-680,30/04/2020,Adult Social Care,ARBORETUM NURSING HOME.,30/04/2020,"1,566.74",73025-PROFESSIONAL SERVICES-PRIV CONTRACTOR & OTHER AGENCIES,TRANSITIONAL CARE SUPPORT TEAM,Third Party Payments,Revenue
Walsall Council,http://opendatacommunities.org/id/metropolitan-district-council/walsall,WC115-681,30/04/2020,Adult Social Care,ARBORETUM NURSING HOME.,30/04/2020,"1,566.74",73025-PROFESSIONAL SERVICES-PRIV CONTRACTOR & OTHER AGENCIES,TRANSITIONAL CARE SUPPORT TEAM,Third Party Payments,Revenue
Walsall Council,http://opendatacommunities.org/id/metropolitan-district-council/walsall,WC115-682,30/04/2020,Adult Social Care,ARBORETUM NURSING HOME.,06/04/2020,"2,143.72",73502-NURSING,PHYSICAL SUPPORT,Third Party Payments,Revenue
Walsall Council,http://opendatacommunities.org/id/metropolitan-district-council/walsall,WC115-683,30/04/2020,Adult Social Care,ARBORETUM NURSING HOME.,06/04/2020,"2,143.72",73502-NURSING,PHYSICAL SUPPORT,Third Party Payments,Revenue
Walsall Council,http://opendatacommunities.org/id/metropolitan-district-council/walsall,WC115-684,30/04/2020,Adult Social Care,ARBORETUM NURSING HOME.,06/04/2020,"2,143.72",73502-NURSING,PHYSICAL SUPPORT,Third Party Payments,Revenue
Walsall Council,http://opendatacommunities.org/id/metropolitan-district-council/walsall,WC115-685,30/04/2020,Adult Social Care,ARBORETUM NURSING HOME.,06/04/2020,"2,223.72",73502-NURSING,PHYSICAL SUPPORT,Third Party Payments,Revenue
Walsall Council,http://opendatacommunities.org/id/metropolitan-district-council/walsall,WC115-686,30/04/2020,Adult Social Care,ARBORETUM NURSING HOME.,29/04/2020,"2,235.00",73025-PROFESSIONAL SERVICES-PRIV CONTRACTOR & OTHER AGENCIES,TRANSITIONAL CARE SUPPORT TEAM,Third Party Payments,Revenue
Walsall Council,http://opendatacommunities.org/id/metropolitan-district-council/walsall,WC115-687,30/04/2020,Adult Social Care,ARBORETUM NURSING HOME.,30/04/2020,"2,235.00",73025-PROFESSIONAL SERVICES-PRIV CONTRACTOR & OTHER AGENCIES,TRANSITIONAL CARE SUPPORT TEAM,Third Party Payments,Revenue
Walsall Council,http://opendatacommunities.org/id/metropolitan-district-council/walsall,WC115-688,30/04/2020,Adult Social Care,ARBORETUM NURSING HOME.,06/04/2020,"2,243.72",73502-NURSING,PHYSICAL SUPPORT,Third Party Payments,Revenue
Walsall Council,http://opendatacommunities.org/id/metropolitan-district-council/walsall,WC115-689,30/04/2020,Adult Social Care,ARBORETUM NURSING HOME.,06/04/2020,"2,263.72",73502-NURSING,PHYSICAL SUPPORT,Third Party Payments,Revenue
Walsall Council,http://opendatacommunities.org/id/metropolitan-district-council/walsall,WC115-690,30/04/2020,Adult Social Care,ARBORETUM NURSING HOME.,06/04/2020,"2,303.72",73502-NURSING,SOCIAL SUPPORT,Third Party Payments,Revenue
Walsall Council,http://opendatacommunities.org/id/metropolitan-district-council/walsall,WC115-691,30/04/2020,Adult Social Care,ARBORETUM NURSING HOME.,06/04/2020,"2,303.72",73502-NURSING,PHYSICAL SUPPORT,Third Party Payments,Revenue
Walsall Council,http://opendatacommunities.org/id/metropolitan-district-council/walsall,WC115-692,30/04/2020,Adult Social Care,ARBORETUM NURSING HOME.,06/04/2020,"2,303.72",73502-NURSING,PHYSICAL SUPPORT,Third Party Payments,Revenue
Walsall Council,http://opendatacommunities.org/id/metropolitan-district-council/walsall,WC115-693,30/04/2020,Adult Social Care,ARBORETUM NURSING HOME.,06/04/2020,"2,303.72",73502-NURSING,SOCIAL SUPPORT,Third Party Payments,Revenue
Walsall Council,http://opendatacommunities.org/id/metropolitan-district-council/walsall,WC115-694,30/04/2020,Adult Social Care,ARBORETUM NURSING HOME.,06/04/2020,"2,552.00",73502-NURSING,SOCIAL SUPPORT,Third Party Payments,Revenue
Walsall Council,http://opendatacommunities.org/id/metropolitan-district-council/walsall,WC115-695,30/04/2020,Adult Social Care,ARBORETUM NURSING HOME.,14/04/2020,"2,554.29",73025-PROFESSIONAL SERVICES-PRIV CONTRACTOR & OTHER AGENCIES,TRANSITIONAL CARE SUPPORT TEAM,Third Party Payments,Revenue
Walsall Council,http://opendatacommunities.org/id/metropolitan-district-council/walsall,WC115-696,30/04/2020,Adult Social Care,ARBORETUM NURSING HOME.,14/04/2020,"2,980.00",73025-PROFESSIONAL SERVICES-PRIV CONTRACTOR & OTHER AGENCIES,TRANSITIONAL CARE SUPPORT TEAM,Third Party Payments,Revenue
Walsall Council,http://opendatacommunities.org/id/metropolitan-district-council/walsall,WC115-697,30/04/2020,Adult Social Care,ARBORETUM NURSING HOME.,23/04/2020,"2,980.00",73025-PROFESSIONAL SERVICES-PRIV CONTRACTOR & OTHER AGENCIES,TRANSITIONAL CARE SUPPORT TEAM,Third Party Payments,Revenue
Walsall Council,http://opendatacommunities.org/id/metropolitan-district-council/walsall,WC115-698,30/04/2020,Adult Social Care,ARBORETUM NURSING HOME.,06/04/2020,"4,442.89",73502-NURSING,PHYSICAL SUPPORT,Third Party Payments,Revenue
Walsall Council,http://opendatacommunities.org/id/metropolitan-district-council/walsall,WC115-699,30/04/2020,Adult Social Care,ARBORETUM NURSING HOME.,15/04/2020,"11,920.00",73025-PROFESSIONAL SERVICES-PRIV CONTRACTOR & OTHER AGENCIES,TRANSITIONAL CARE SUPPORT TEAM,Third Party Payments,Revenue
Walsall Council,http://opendatacommunities.org/id/metropolitan-district-council/walsall,WC115-700,30/04/2020,Adult Social Care,ARJO UK LTD,27/04/2020,"4,384.00",60007-REPAIR OF EQUIPMENT-EQUIPMENT,INTERMEDIATE CARE SERVICE,Supplies & Services,Revenue
Walsall Council,http://opendatacommunities.org/id/metropolitan-district-council/walsall,WC115-701,30/04/2020,Resources and Transformation,ARMSTRONG YORK ASBESTOS ENVIRONMENTAL LIMITED,20/04/2020,731.60,40000-OPERATIONAL MAINTENANCE,RECHARGEABLE - NON SCHOOLS MAINTENANCE,Premises,Revenue
Walsall Council,http://opendatacommunities.org/id/metropolitan-district-council/walsall,WC115-702,30/04/2020,Childrens,ARMSTRONG YORK ASBESTOS ENVIRONMENTAL LIMITED,15/04/2020,"1,520.00",01004-DEMOLITION,CFR 1346 PUPIL REFERRAL UNIT (PRU),Capital,Capital
Walsall Council,http://opendatacommunities.org/id/metropolitan-district-council/walsall,WC115-703,30/04/2020,Holding Accounts,ARTHUR J GALLAGHER T/A HEATH LAMBERT LIMITED,15/04/2020,560.00,67000-MISC INSURANCES - INSURANCE PREMIUMS,PUBLIC LIABILITY,Supplies & Services,Revenue
Walsall Council,http://opendatacommunities.org/id/metropolitan-district-council/walsall,WC115-704,30/04/2020,Holding Accounts,ARTHUR J GALLAGHER T/A HEATH LAMBERT LIMITED,15/04/2020,672.00,67000-MISC INSURANCES - INSURANCE PREMIUMS,PUBLIC LIABILITY,Supplies & Services,Revenue
Walsall Council,http://opendatacommunities.org/id/metropolitan-district-council/walsall,WC115-705,30/04/2020,Holding Accounts,ARTHUR J GALLAGHER T/A HEATH LAMBERT LIMITED,30/04/2020,"1,367.46",67000-MISC INSURANCES - INSURANCE PREMIUMS,PUBLIC LIABILITY,Supplies & Services,Revenue
Walsall Council,http://opendatacommunities.org/id/metropolitan-district-council/walsall,WC115-706,30/04/2020,Holding Accounts,ARTHUR J GALLAGHER T/A HEATH LAMBERT LIMITED,15/04/2020,"4,748.77",67000-MISC INSURANCES - INSURANCE PREMIUMS,PUBLIC LIABILITY,Supplies & Services,Revenue
Walsall Council,http://opendatacommunities.org/id/metropolitan-district-council/walsall,WC115-707,30/04/2020,Holding Accounts,ARTHUR J GALLAGHER T/A HEATH LAMBERT LIMITED,15/04/2020,"26,892.22",67000-MISC INSURANCES - INSURANCE PREMIUMS,PUBLIC LIABILITY,Supplies & Services,Revenue
Walsall Council,http://opendatacommunities.org/id/metropolitan-district-council/walsall,WC115-708,30/04/2020,Holding Accounts,ARTHUR J GALLAGHER T/A HEATH LAMBERT LIMITED,15/04/2020,"35,896.00",67000-MISC INSURANCES - INSURANCE PREMIUMS,PUBLIC LIABILITY,Supplies & Services,Revenue
Walsall Council,http://opendatacommunities.org/id/metropolitan-district-council/walsall,WC115-709,30/04/2020,Holding Accounts,ARTHUR J GALLAGHER T/A HEATH LAMBERT LIMITED,15/04/2020,"36,936.49",67000-MISC INSURANCES - INSURANCE PREMIUMS,PUBLIC LIABILITY,Supplies & Services,Revenue
Walsall Council,http://opendatacommunities.org/id/metropolitan-district-council/walsall,WC115-710,30/04/2020,Holding Accounts,ARTHUR J GALLAGHER T/A HEATH LAMBERT LIMITED,15/04/2020,"43,622.41",67000-MISC INSURANCES - INSURANCE PREMIUMS,PUBLIC LIABILITY,Supplies & Services,Revenue
Walsall Council,http://opendatacommunities.org/id/metropolitan-district-council/walsall,WC115-711,30/04/2020,Holding Accounts,ARTHUR J GALLAGHER T/A HEATH LAMBERT LIMITED,15/04/2020,"282,184.00",67000-MISC INSURANCES - INSURANCE PREMIUMS,PUBLIC LIABILITY,Supplies & Services,Revenue
Walsall Council,http://opendatacommunities.org/id/metropolitan-district-council/walsall,WC115-712,30/04/2020,Economy & Environment,ASDA PHARMACY,30/04/2020,339.30,71007-CONTRIBUTION TO PCT,PUBLIC HEALTH BUSINESS SUPPORT,Third Party Payments,Revenue
Walsall Council,http://opendatacommunities.org/id/metropolitan-district-council/walsall,WC115-713,30/04/2020,Adult Social Care,ASH GRANGE CARE HOME,06/04/2020,837.04,73502-NURSING,SOCIAL SUPPORT,Third Party Payments,Revenue
Walsall Council,http://opendatacommunities.org/id/metropolitan-district-council/walsall,WC115-714,30/04/2020,Adult Social Care,ASH GRANGE CARE HOME,06/04/2020,"1,171.86",73502-NURSING,PHYSICAL SUPPORT,Third Party Payments,Revenue
Walsall Council,http://opendatacommunities.org/id/metropolitan-district-council/walsall,WC115-715,30/04/2020,Adult Social Care,ASH GRANGE CARE HOME,06/04/2020,"1,774.96",73500-RESIDENTIAL,SUPPORT WITH MEMORY & COGNITION,Third Party Payments,Revenue
Walsall Council,http://opendatacommunities.org/id/metropolitan-district-council/walsall,WC115-716,30/04/2020,Adult Social Care,ASH GRANGE CARE HOME,06/04/2020,"1,774.96",73500-RESIDENTIAL,MENTAL HEALTH SUPPORT,Third Party Payments,Revenue
Walsall Council,http://opendatacommunities.org/id/metropolitan-district-council/walsall,WC115-717,30/04/2020,Adult Social Care,ASH GRANGE CARE HOME,06/04/2020,"2,008.90",73502-NURSING,SOCIAL SUPPORT,Third Party Payments,Revenue
Walsall Council,http://opendatacommunities.org/id/metropolitan-district-council/walsall,WC115-718,30/04/2020,Adult Social Care,ASH GRANGE CARE HOME,06/04/2020,"2,101.28",73503-NURSING EMI,PHYSICAL SUPPORT,Third Party Payments,Revenue
Walsall Council,http://opendatacommunities.org/id/metropolitan-district-council/walsall,WC115-719,30/04/2020,Adult Social Care,ASH GRANGE CARE HOME,06/04/2020,"2,143.72",73502-NURSING,PHYSICAL SUPPORT,Third Party Payments,Revenue
Walsall Council,http://opendatacommunities.org/id/metropolitan-district-council/walsall,WC115-720,30/04/2020,Adult Social Care,ASH GRANGE CARE HOME,06/04/2020,"2,143.72",73502-NURSING,PHYSICAL SUPPORT,Third Party Payments,Revenue
Walsall Council,http://opendatacommunities.org/id/metropolitan-district-council/walsall,WC115-721,30/04/2020,Adult Social Care,ASH GRANGE CARE HOME,06/04/2020,"2,143.72",73502-NURSING,SUPPORT WITH MEMORY & COGNITION,Third Party Payments,Revenue
Walsall Council,http://opendatacommunities.org/id/metropolitan-district-council/walsall,WC115-722,30/04/2020,Adult Social Care,ASH GRANGE CARE HOME,06/04/2020,"2,143.72",73502-NURSING,PHYSICAL SUPPORT,Third Party Payments,Revenue
Walsall Council,http://opendatacommunities.org/id/metropolitan-district-council/walsall,WC115-723,30/04/2020,Adult Social Care,ASH GRANGE CARE HOME,06/04/2020,"2,143.72",73502-NURSING,PHYSICAL SUPPORT,Third Party Payments,Revenue
Walsall Council,http://opendatacommunities.org/id/metropolitan-district-council/walsall,WC115-724,30/04/2020,Adult Social Care,ASH GRANGE CARE HOME,06/04/2020,"2,143.72",73502-NURSING,PHYSICAL SUPPORT,Third Party Payments,Revenue
Walsall Council,http://opendatacommunities.org/id/metropolitan-district-council/walsall,WC115-725,30/04/2020,Adult Social Care,ASH GRANGE CARE HOME,06/04/2020,"2,143.72",73502-NURSING,MENTAL HEALTH SUPPORT,Third Party Payments,Revenue
Walsall Council,http://opendatacommunities.org/id/metropolitan-district-council/walsall,WC115-726,30/04/2020,Adult Social Care,ASH GRANGE CARE HOME,06/04/2020,"2,143.72",73502-NURSING,MENTAL HEALTH SUPPORT,Third Party Payments,Revenue
Walsall Council,http://opendatacommunities.org/id/metropolitan-district-council/walsall,WC115-727,30/04/2020,Adult Social Care,ASH GRANGE CARE HOME,06/04/2020,"2,143.72",73502-NURSING,PHYSICAL SUPPORT,Third Party Payments,Revenue
Walsall Council,http://opendatacommunities.org/id/metropolitan-district-council/walsall,WC115-728,30/04/2020,Adult Social Care,ASH GRANGE CARE HOME,06/04/2020,"2,143.72",73502-NURSING,PHYSICAL SUPPORT,Third Party Payments,Revenue
Walsall Council,http://opendatacommunities.org/id/metropolitan-district-council/walsall,WC115-729,30/04/2020,Adult Social Care,ASH GRANGE CARE HOME,06/04/2020,"2,143.72",73502-NURSING,MENTAL HEALTH SUPPORT,Third Party Payments,Revenue
Walsall Council,http://opendatacommunities.org/id/metropolitan-district-council/walsall,WC115-730,30/04/2020,Adult Social Care,ASH GRANGE CARE HOME,06/04/2020,"2,143.72",73502-NURSING,PHYSICAL SUPPORT,Third Party Payments,Revenue
Walsall Council,http://opendatacommunities.org/id/metropolitan-district-council/walsall,WC115-731,30/04/2020,Adult Social Care,ASH GRANGE CARE HOME,06/04/2020,"2,263.72",73502-NURSING,PHYSICAL SUPPORT,Third Party Payments,Revenue
Walsall Council,http://opendatacommunities.org/id/metropolitan-district-council/walsall,WC115-732,30/04/2020,Adult Social Care,ASH GRANGE CARE HOME,06/04/2020,"2,303.72",73502-NURSING,PHYSICAL SUPPORT,Third Party Payments,Revenue
Walsall Council,http://opendatacommunities.org/id/metropolitan-district-council/walsall,WC115-733,30/04/2020,Adult Social Care,ASH GRANGE CARE HOME,06/04/2020,"2,343.72",73502-NURSING,PHYSICAL SUPPORT,Third Party Payments,Revenue
Walsall Council,http://opendatacommunities.org/id/metropolitan-district-council/walsall,WC115-734,30/04/2020,Adult Social Care,ASH GRANGE CARE HOME,06/04/2020,"2,358.08",73503-NURSING EMI,PHYSICAL SUPPORT,Third Party Payments,Revenue
Walsall Council,http://opendatacommunities.org/id/metropolitan-district-council/walsall,WC115-735,30/04/2020,Adult Social Care,ASH GRANGE CARE HOME,06/04/2020,"2,358.08",73503-NURSING EMI,PHYSICAL SUPPORT,Third Party Payments,Revenue
Walsall Council,http://opendatacommunities.org/id/metropolitan-district-council/walsall,WC115-736,30/04/2020,Adult Social Care,ASH GRANGE CARE HOME,06/04/2020,"2,358.08",73503-NURSING EMI,PHYSICAL SUPPORT,Third Party Payments,Revenue
Walsall Council,http://opendatacommunities.org/id/metropolitan-district-council/walsall,WC115-737,30/04/2020,Adult Social Care,ASH GRANGE CARE HOME,06/04/2020,"2,423.72",73502-NURSING,SOCIAL SUPPORT,Third Party Payments,Revenue
Walsall Council,http://opendatacommunities.org/id/metropolitan-district-council/walsall,WC115-738,30/04/2020,Adult Social Care,ASH GRANGE CARE HOME,06/04/2020,"2,463.72",73502-NURSING,PHYSICAL SUPPORT,Third Party Payments,Revenue
Walsall Council,http://opendatacommunities.org/id/metropolitan-district-council/walsall,WC115-739,30/04/2020,Adult Social Care,ASH GRANGE CARE HOME,06/04/2020,"2,520.68",73500-RESIDENTIAL,LEARNING DISABILITY SUPPORT,Third Party Payments,Revenue
Walsall Council,http://opendatacommunities.org/id/metropolitan-district-council/walsall,WC115-740,30/04/2020,Adult Social Care,ASH GRANGE CARE HOME,06/04/2020,"2,774.96",73502-NURSING,PHYSICAL SUPPORT,Third Party Payments,Revenue
Walsall Council,http://opendatacommunities.org/id/metropolitan-district-council/walsall,WC115-741,30/04/2020,Adult Social Care,ASH GRANGE CARE HOME,06/04/2020,"3,400.00",73500-RESIDENTIAL,PHYSICAL SUPPORT,Third Party Payments,Revenue
Walsall Council,http://opendatacommunities.org/id/metropolitan-district-council/walsall,WC115-742,30/04/2020,Economy & Environment,ASHDOWN SUPPLIES,23/04/2020,224.64,60500-GENERAL MATERIALS,STREETLY CREMATORIUM,Supplies & Services,Revenue
Walsall Council,http://opendatacommunities.org/id/metropolitan-district-council/walsall,WC115-743,30/04/2020,Adult Social Care,REDACTED,06/04/2020,"1,233.44",73506-DIRECT PAYMENT,LEARNING DISABILITY SUPPORT,Third Party Payments,Revenue
Walsall Council,http://opendatacommunities.org/id/metropolitan-district-council/walsall,WC115-744,30/04/2020,Economy & Environment,ASKEWS AND HOLTS LIBRARY SERVICES LTD,02/04/2020,515.42,60501-LIBRARY BOOKS,LIBRARY MANAGEMENT,Supplies & Services,Revenue
Walsall Council,http://opendatacommunities.org/id/metropolitan-district-council/walsall,WC115-745,30/04/2020,Economy & Environment,ASKEWS AND HOLTS LIBRARY SERVICES LTD,02/04/2020,879.29,60501-LIBRARY BOOKS,LIBRARY MANAGEMENT,Supplies & Services,Revenue
Walsall Council,http://opendatacommunities.org/id/metropolitan-district-council/walsall,WC115-746,30/04/2020,Economy & Environment,ASKEWS AND HOLTS LIBRARY SERVICES LTD,22/04/2020,"1,825.42",60501-LIBRARY BOOKS,LIBRARY MANAGEMENT,Supplies & Services,Revenue
Walsall Council,http://opendatacommunities.org/id/metropolitan-district-council/walsall,WC115-747,30/04/2020,Adult Social Care,REDACTED,06/04/2020,730.56,73506-DIRECT PAYMENT,PHYSICAL SUPPORT,Third Party Payments,Revenue
Walsall Council,http://opendatacommunities.org/id/metropolitan-district-council/walsall,WC115-748,30/04/2020,Childrens,ASPIRE4U CIC,22/04/2020,740.00,73025-PROFESSIONAL SERVICES-PRIV CONTRACTOR & OTHER AGENCIES,YOUTH JUSTICE SERVICE,Third Party Payments,Revenue
Walsall Council,http://opendatacommunities.org/id/metropolitan-district-council/walsall,WC115-749,30/04/2020,Economy & Environment,ATKINS LIMITED,24/04/2020,259.00,01002-PROJECT FEES,CFR 1280 JUNCTION AND CYCLING IMPROVEMENTS - RING ROAD IMPROVEMENTS Dft FUNDED,Capital,Capital
Walsall Council,http://opendatacommunities.org/id/metropolitan-district-council/walsall,WC115-750,30/04/2020,Economy & Environment,ATKINS LIMITED,06/04/2020,350.00,01002-PROJECT FEES,CFR 1280 JUNCTION AND CYCLING IMPROVEMENTS - RING ROAD IMPROVEMENTS Dft FUNDED,Capital,Capital
Walsall Council,http://opendatacommunities.org/id/metropolitan-district-council/walsall,WC115-751,30/04/2020,Economy & Environment,ATKINS LIMITED,30/04/2020,"3,005.45",63248-SURVEYS & PROF SERVICES-PAYMENT TO CONTRACTOR,UNCAPITALISED SPEND,Supplies & Services,Revenue
Walsall Council,http://opendatacommunities.org/id/metropolitan-district-council/walsall,WC115-752,30/04/2020,Economy & Environment,ATKINS LIMITED,07/04/2020,"3,066.47",73025-PROFESSIONAL SERVICES-PRIV CONTRACTOR & OTHER AGENCIES,SECTION 38 OF HIGHWAYS ACT - SUPERVISION,Third Party Payments,Revenue
Walsall Council,http://opendatacommunities.org/id/metropolitan-district-council/walsall,WC115-753,30/04/2020,Economy & Environment,ATKINS LIMITED,27/04/2020,"3,770.25",73025-PROFESSIONAL SERVICES-PRIV CONTRACTOR & OTHER AGENCIES,SECTION 38 OF HIGHWAYS ACT - SUPERVISION,Third Party Payments,Revenue
Walsall Council,http://opendatacommunities.org/id/metropolitan-district-council/walsall,WC115-754,30/04/2020,Childrens,ATKINSON LEWIS LIMITED,01/04/2020,443.33,73014-LEGAL FEES-PRIV CONTRACTOR FEES,GENERAL MANAGEMENT SUPPORT (INC LEGAL),Third Party Payments,Revenue
Walsall Council,http://opendatacommunities.org/id/metropolitan-district-council/walsall,WC115-755,30/04/2020,Resources and Transformation,AURORA GRAPHICS & DISPLAYS LTD,02/04/2020,293.00,62008-OUTWORK PRINT & DESIGN,PRINTING SERVICES,Supplies & Services,Revenue
Walsall Council,http://opendatacommunities.org/id/metropolitan-district-council/walsall,WC115-756,30/04/2020,Adult Social Care,AUTISM WEST MIDLANDS,06/04/2020,"7,172.48",73500-RESIDENTIAL,LEARNING DISABILITY SUPPORT,Third Party Payments,Revenue
Walsall Council,http://opendatacommunities.org/id/metropolitan-district-council/walsall,WC115-757,30/04/2020,Adult Social Care,AUTISM WEST MIDLANDS,09/04/2020,"21,666.50",70000-SOCIAL SERVICES-FEES TO VOLUNTARY BODIES,COMPLEX NEEDS SLA,Third Party Payments,Revenue
Walsall Council,http://opendatacommunities.org/id/metropolitan-district-council/walsall,WC115-758,30/04/2020,Adult Social Care,AUTISM WEST MIDLANDS 001,06/04/2020,"5,542.84",73500-RESIDENTIAL,LEARNING DISABILITY SUPPORT,Third Party Payments,Revenue
Walsall Council,http://opendatacommunities.org/id/metropolitan-district-council/walsall,WC115-759,30/04/2020,Economy & Environment,AUTOBITS,14/04/2020,315.00,73005-LANDFILL PTYS-PRIV CONTRACTOR FEES,WASTE DISPOSAL - RESIDUAL,Third Party Payments,Revenue
Walsall Council,http://opendatacommunities.org/id/metropolitan-district-council/walsall,WC115-760,30/04/2020,Adult Social Care,AVERY HOMES NELSON LIMITED,06/04/2020,"3,423.14",73500-RESIDENTIAL,PHYSICAL SUPPORT,Third Party Payments,Revenue
Walsall Council,http://opendatacommunities.org/id/metropolitan-district-council/walsall,WC115-761,30/04/2020,Adult Social Care,AVERY HOMES NELSON LIMITED,06/04/2020,"3,600.00",73500-RESIDENTIAL,SUPPORT WITH MEMORY & COGNITION,Third Party Payments,Revenue
Walsall Council,http://opendatacommunities.org/id/metropolitan-district-council/walsall,WC115-762,30/04/2020,Adult Social Care,REDACTED,06/04/2020,"3,303.18",73506-DIRECT PAYMENT,LEARNING DISABILITY SUPPORT,Third Party Payments,Revenue
Walsall Council,http://opendatacommunities.org/id/metropolitan-district-council/walsall,WC115-763,30/04/2020,Economy & Environment,BAKER HALL PARTNERSHIP,14/04/2020,392.50,63000-PROFESSIONAL FEES AND SERVICES,BUILDING CONTROL REVENUE FUNDED,Supplies & Services,Revenue
Walsall Council,http://opendatacommunities.org/id/metropolitan-district-council/walsall,WC115-764,30/04/2020,Adult Social Care,REDACTED,06/04/2020,391.71,73506-DIRECT PAYMENT,LEARNING DISABILITY SUPPORT,Third Party Payments,Revenue
Walsall Council,http://opendatacommunities.org/id/metropolitan-district-council/walsall,WC115-765,30/04/2020,Adult Social Care,REDACTED,06/04/2020,"3,686.40",73506-DIRECT PAYMENT,LEARNING DISABILITY SUPPORT,Third Party Payments,Revenue
Walsall Council,http://opendatacommunities.org/id/metropolitan-district-council/walsall,WC115-766,30/04/2020,Childrens,BALTIMORE CONSULTING LTD,03/04/2020,"1,550.00",63000-PROFESSIONAL FEES AND SERVICES,SEN ASSESSMENT,Supplies & Services,Revenue
Walsall Council,http://opendatacommunities.org/id/metropolitan-district-council/walsall,WC115-767,30/04/2020,Childrens,BALTIMORE CONSULTING LTD,08/04/2020,"1,550.00",63000-PROFESSIONAL FEES AND SERVICES,SEN ASSESSMENT,Supplies & Services,Revenue
Walsall Council,http://opendatacommunities.org/id/metropolitan-district-council/walsall,WC115-768,30/04/2020,Childrens,BALTIMORE CONSULTING LTD,20/04/2020,"1,550.00",63000-PROFESSIONAL FEES AND SERVICES,SEN ASSESSMENT,Supplies & Services,Revenue
Walsall Council,http://opendatacommunities.org/id/metropolitan-district-council/walsall,WC115-769,30/04/2020,Childrens,REDACTED,06/04/2020,340.00,74508-INTERNAL FOSTER CARERS-CARER FEES,FAMILY & FRIENDS FOSTER CARE PROVISION,Transfer Payments,Revenue
Walsall Council,http://opendatacommunities.org/id/metropolitan-district-council/walsall,WC115-770,30/04/2020,Childrens,REDACTED,06/04/2020,540.00,74501-MAINTENANCE ALLOWANCE-FOSTER CARERS,FAMILY & FRIENDS FOSTER CARE PROVISION,Transfer Payments,Revenue
Walsall Council,http://opendatacommunities.org/id/metropolitan-district-council/walsall,WC115-771,30/04/2020,Economy & Environment,BARCHAM TREES PLC,08/04/2020,597.00,01006-SITE WORKS MAIN CONTRACTORS,CFR 1354 PELSALL MEMORIAL GARDEN,Capital,Capital
Walsall Council,http://opendatacommunities.org/id/metropolitan-district-council/walsall,WC115-772,30/04/2020,Economy & Environment,BARCHAM TREES PLC,08/04/2020,709.00,60500-GENERAL MATERIALS,COUNTRYSIDE MANAGEMENT-OTHER,Supplies & Services,Revenue
Walsall Council,http://opendatacommunities.org/id/metropolitan-district-council/walsall,WC115-773,30/04/2020,Economy & Environment,BARCHAM TREES PLC,08/04/2020,"1,552.00",60500-GENERAL MATERIALS,COUNTRYSIDE MANAGEMENT-OTHER,Supplies & Services,Revenue
Walsall Council,http://opendatacommunities.org/id/metropolitan-district-council/walsall,WC115-774,30/04/2020,Adult Social Care,BARONS COURT HOTEL,06/04/2020,786.67,76000-TRANSFER PAYMENTS - SOCIAL SERVICES CLIENTS,EAST LOCALITY TEAM,Transfer Payments,Revenue
Walsall Council,http://opendatacommunities.org/id/metropolitan-district-council/walsall,WC115-775,30/04/2020,Adult Social Care,BARTHOLAMEW LODGE CARE HOME,06/04/2020,"2,937.88",73503-NURSING EMI,PHYSICAL SUPPORT,Third Party Payments,Revenue
Walsall Council,http://opendatacommunities.org/id/metropolitan-district-council/walsall,WC115-776,30/04/2020,Childrens,BASE 25,14/04/2020,320.00,63000-PROFESSIONAL FEES AND SERVICES,VIRTUAL SCHOOL CENTRAL PUPIL PREMIUM,Supplies & Services,Revenue
Walsall Council,http://opendatacommunities.org/id/metropolitan-district-council/walsall,WC115-777,30/04/2020,Economy & Environment,BAT FABRICATIONS LTD,01/04/2020,285.00,60008-REPAIR & MAINTENANCE OF FURNITURE & EQUIPMENT,WALSALL GALA CENTRE,Supplies & Services,Revenue
Walsall Council,http://opendatacommunities.org/id/metropolitan-district-council/walsall,WC115-778,30/04/2020,Childrens,BAT FABRICATIONS LTD,20/04/2020,"1,350.00",01006-SITE WORKS MAIN CONTRACTORS,CFR 1297 CASTLE BUSINESS & ENTERPRISE COLLEGE EXPANSION,Capital,Capital
Walsall Council,http://opendatacommunities.org/id/metropolitan-district-council/walsall,WC115-779,30/04/2020,Economy & Environment,BAT FABRICATIONS LTD,24/04/2020,"1,850.00",40000-OPERATIONAL MAINTENANCE,RETAINED HOUSING-HIGHWAYS,Premises,Revenue
Walsall Council,http://opendatacommunities.org/id/metropolitan-district-council/walsall,WC115-780,30/04/2020,Economy & Environment,BAT FABRICATIONS LTD,24/04/2020,"5,740.68",40000-OPERATIONAL MAINTENANCE,GREEN SPACE MANAGEMENT,Premises,Revenue
Walsall Council,http://opendatacommunities.org/id/metropolitan-district-council/walsall,WC115-781,30/04/2020,Economy & Environment,BAT FABRICATIONS LTD,24/04/2020,"8,100.00",40000-OPERATIONAL MAINTENANCE,GREEN SPACE MANAGEMENT,Premises,Revenue
Walsall Council,http://opendatacommunities.org/id/metropolitan-district-council/walsall,WC115-782,30/04/2020,Economy & Environment,BATLEYS,21/04/2020,"1,225.56",61009-BEVERAGES-PROVISIONS,WALSALL ARENA AND ARTS CENTRE,Supplies & Services,Revenue
Walsall Council,http://opendatacommunities.org/id/metropolitan-district-council/walsall,WC115-783,30/04/2020,Resources and Transformation,BATLEYS,14/04/2020,"1,389.00",62515-MISCELLANEOUS SUPPLIES,WALSALL TOWN HALL,Supplies & Services,Revenue
Walsall Council,http://opendatacommunities.org/id/metropolitan-district-council/walsall,WC115-784,30/04/2020,Economy & Environment,BEACON PHARMACY,29/04/2020,400.00,71007-CONTRIBUTION TO PCT,PUBLIC HEALTH BUSINESS SUPPORT,Third Party Payments,Revenue
Walsall Council,http://opendatacommunities.org/id/metropolitan-district-council/walsall,WC115-785,30/04/2020,Adult Social Care,BEARWOOD NURSING HOME LTD,06/04/2020,"2,273.86",73503-NURSING EMI,SUPPORT WITH MEMORY & COGNITION,Third Party Payments,Revenue
Walsall Council,http://opendatacommunities.org/id/metropolitan-district-council/walsall,WC115-786,30/04/2020,Childrens,BECKIE'S CHILDMINDING,22/04/2020,"2,461.97",66505-OTHER-GRANTS TO OTHER ORGS,EARLY YEARS - 3 YR OLDS,Third Party Payments,Revenue
Walsall Council,http://opendatacommunities.org/id/metropolitan-district-council/walsall,WC115-787,30/04/2020,Childrens,BECKYS CHILDMINDING SERVICE,22/04/2020,"1,556.10",66505-OTHER-GRANTS TO OTHER ORGS,EARLY YEARS - 2 YR OLDS,Third Party Payments,Revenue
Walsall Council,http://opendatacommunities.org/id/metropolitan-district-council/walsall,WC115-788,30/04/2020,Childrens,BECKYS CHILDMINDING SERVICE,22/04/2020,"3,239.44",66505-OTHER-GRANTS TO OTHER ORGS,EARLY YEARS - 3 YR OLDS,Third Party Payments,Revenue
Walsall Council,http://opendatacommunities.org/id/metropolitan-district-council/walsall,WC115-789,30/04/2020,Adult Social Care,BEECHWOODCOURT LTD  T/A BEECHWOOD COLLEGE,27/04/2020,"29,075.67",73500-RESIDENTIAL,LEARNING DISABILITY SUPPORT,Third Party Payments,Revenue
Walsall Council,http://opendatacommunities.org/id/metropolitan-district-council/walsall,WC115-790,30/04/2020,Adult Social Care,BELVIDERE COURT,06/04/2020,"2,104.04",73502-NURSING,MENTAL HEALTH SUPPORT,Third Party Payments,Revenue
